Workbook

Sheet MENU
K1: 5
G2: السنة المالية : | H2: 2018
E8: 003006930049403000 92

Sheet الالتزام
B1: الواجهة | H1: فاتـــــــــــــورة رقم 01 | L1: فاتـــــــــــــورة رقم 02 | P1: فاتـــــــــــــورة رقم 03 | T1: فاتـــــــــــــورة رقم 04 | X1: فاتـــــــــــــورة رقم 05 | AB1: فاتـــــــــــــورة رقم 06 | AN1: وثائق اخرى | AP1: وثائق اخرى
A2: رقم الحوالة | B2: رمــز البند | C2: اسم الباب | D2: اسم المادة | E2: الجهة المستفيدة | F2: موضوع النفقة | G2: مبلغ الالتزام | H2: الرقم | I2: التــاريـــخ | J2: المبــلغ | K2: العــــدد | L2: الرقم | M2: التــاريـــخ | N2: المبــلغ | O2: العــــدد | P2: الرقم | Q2: التــاريـــخ | R2: المبــلغ | S2: العــــدد | T2: الرقم | U2: التــاريـــخ | V2: المبــلغ | W2: العــــدد | X2: الرقم | Y2: التــاريـــخ | Z2: المبــلغ | AA2: العــــدد | AB2: الرقم | AC2: التــاريـــخ | AD2: المبــلغ | AE2: العــــدد | AF2: الرقم | AG2: التــاريـــخ | AH2: المبــلغ | AI2: العــــدد | AJ2: وصل طلب | AK2: عددها | AL2: وصل تسليم | AM2: عددها | AN2: وثائق اخرى | AO2: عددها | AP2: وثائق اخرى | AQ2: عددها | AR2: الرصيد المتبقي | AS2: رقم حساب الممون | AT2: طريقة التسديد | AU2: رقم الصك | AV2: مبلغ الصك | AW2: تاريخ الصك | AY2: إسم البنك | BA2: تاريخ الحوالة | BB2: معلومات اخرى | BC2: تحقق من رقم الحساب البريدي | BD2: تحقق من رقم الحساب البنكي | BF2: code | BG2: nom | BH2: ism | BJ2: الرمز | BK2: المادة | BL2: الباب | DD2: تسديد المصاريف | DE2: التكاليف الملحقة | DF2: اللوازم | DG2: الأدوات و الأثاث | DH2: اللوازم البيداغوجية | DI2: نفقات الإطعام | DJ2: الألبسة | DK2: التأمين | DL2: مصاريف التكوين | DM2: حظيرة السيارات | DN2: نفقات تسيير وحدات الكشف و المتابعة (UDS) | DO2: المكتبة المدرسية | DP2: النفقات المتعلقة بالنشاط الثقافي والرياضي | DQ2: صيانة و تصليح المباني البيداغوجية والإدارية | DR2: المصاريف القضائية والتعويضات المستخقة على عاتق الدولة | DS2: نفقات تسيير أقسام الرياضة والدراسة | DT2: منحة التمدرس الخاصة لفائدة التلاميذ المعوزين | DU2: المنح المدرسية | DV2: نفقات الكتاب المدرسي | DW2: نفقات النشاط التربوي الإستثنائي | DX2: نفقات اعادة الادراج | DY2: نفقات في انتظار التعيين | DZ2: نفقات اجتماعية لخدمة التلاميذ
A3: 1 | B3: =IF(D3="","",INDEX(BG!A$3:$A$65,MATCH(D3,البند,0))) -> 51-2 | C3: نفقات في انتظار التعيين | D3: نفقات في انتظار التعيين | E3: أمين خزينة ولاية سطيف | F3: دفع فوائض 2017 | G3: =J3+N3+R3+V3+Z3+AD3 -> 606774.55 | J3: 606774.55 | AR3: =IF(B3="",0,LOOKUP(B3,[4]BG!$A$3:$A$65,[4]BG!$H$3:$H$65))-SUMIF($B$3:B3,B3,$G$3:G3) -> 20537.66 | AS3: =IF(E3="","",INDEX(Four!A:G,MATCH(الالتزام!E3,ممون,0),4)) -> 201007السطر10-07 | AT3: خزينة | AU3: 2348844 | AV3: =SUMIF(AU:AU,AU3,G:G) -> 606774.55 | AW3: 2018-05-31 | AX3: =LEFT(AS3,3) ->  | AY3: =IFERROR(LOOKUP(LEFT(AS3,3),$BF$3:$BF$33,$BH$3:$BH$33),"") ->  | AZ3: =IFERROR(LOOKUP(LEFT(AS3,3),$BF$3:$BF$33,$BG$3:$BG$33),"") ->  | BA3: 2018-06-30 | BB3: =MATCH(BC3,AS:AS) -> 237 | BC3: 007999990000331260 94 | BD3: 005003284002299150 96 | BE3: ب و ج | BF3: 001 | BG3: B-N-A | BH3: ب و ج | BJ3: =IF(D3="","",INDEX([4]BG!$A$3:$B$65,MATCH(D3,البند,0),1)) -> 51-2 | BK3: =RIGHT(BJ3,1) -> 2 | BL3: =IF(BJ3="","",LEFT(RIGHT(BJ3,4),2)) -> 51 | DD3: مصاريف المهام و التنقلات والاستقبالات داخل التراب الوطني و الخرجات البيداغوجية | DE3: الماء، الكهرباء و الغاز، الوقود، والطاقة الشمسية | DF3: اقتناء لوازم المكتب | DG3: تجديد وصيانة أدوات وأثاث المكاتب والعتاد المدرسي | DH3: لوازم التجارب | DI3: إطعام التلاميذ | DJ3: ملابس العمال المهنيين | DK3: تأمين التلاميذ أثناء الخرجات البيداغوجية | DL3: مصاريف التكوين والتحسين المستمرللمستوى المنظم على المستوى الولائي | DM3: اقتناء وتجديد السيارات | DN3: نفقات تسيير وحدات الكشف والمتابعة (UDS) | DO3: شراء كتب ومجلات تربوية | DP3: النفقات المتعلقة بالنشاط الثقافي | DQ3: صيانة وتصليح المباني البيدغوجية والإدارية | DR3: المصاريف القضائية والتعويضات المستحقة على عاتق الدولة | DS3: مصاريف الإطعام | DT3: منحة التمدرس الخاصة لفائدة التلاميذ المعوزين | DU3: منحة التجهيز لفائدة التلاميذ | DV3: تعويض النفقات المرتبطة بمجانية الكتاب المدرسي لفائدة التلاميذ المعوزين | DW3: الإطعام | DX3: نفقات اعادة الادراج | DY3: نفقات في انتظار التعيين | DZ3: نفقات اجتماعية لخدمة التلاميذ
A4: 2 | B4: =IF(D4="","",INDEX(BG!A$3:$A$65,MATCH(D4,البند,0))) -> 1-02-1 | C4: التكاليف الملحقة | D4: الماء، الكهرباء و الغاز، الوقود، والطاقة الشمسية | E4: شركة توزيع الكهرباء شرق | F4: تسديد فواتير الكهرباء و الغاز | G4: =J4+N4+R4+V4+Z4+AD4 -> 227470.17 | H4: 01/001068 | I4: 2018-02-18 | J4: 22513.22 | K4: 2 | L4: 02/001076 | M4: 2018-03-10 | N4: 22410.09 | O4: 2 | P4: 03/001069 | Q4: 2018-04-05 | R4: 17455.42 | S4: 2 | T4: 04/001080 | U4: 2018-05-07 | V4: 22309.54 | W4: 2 | X4: 05/001077 | Y4: 2018-06-05 | Z4: 16375.77 | AA4: 2 | AB4: 01/000344 | AC4: 2018-02-12 | AD4: 126406.13 | AE4: 2 | AR4: =IF(B4="",0,LOOKUP(B4,[4]BG!$A$3:$A$65,[4]BG!$H$3:$H$65))-SUMIF($B$3:B4,B4,$G$3:G4) -> 222529.83 | AS4: =IF(E4="","",INDEX(Four!A:G,MATCH(الالتزام!E4,ممون,0),4)) -> 007999990000380676 62 | AT4: خزينة | AU4: 2348845 | AV4: =SUMIF(AU:AU,AU4,G:G) -> 227470.17 | AW4: 2018-06-30 | AX4: =LEFT(AS4,3) -> 007 | AY4: ح ج ب | AZ4: =IFERROR(LOOKUP(LEFT(AS4,3),$BF$3:$BF$33,$BG$3:$BG$33),"") -> CCP | BA4: 2018-06-30 | BB4: =MATCH(BD3,AS:AS)+1 -> 238 | BC4: =RIGHT(BC3,13) -> 0000331260 94 | BD4: =+MID(BD3,4,15) -> 003284002299150 | BE4: ب خ ج | BF4: 002 | BG4: B-E-A | BH4: ب خ ج | BJ4: =IF(D4="","",INDEX([4]BG!$A$3:$B$65,MATCH(D4,البند,0),1)) -> 1-02-1 | BK4: =RIGHT(BJ4,1) -> 1 | BL4: =IF(BJ4="","",LEFT(RIGHT(BJ4,4),2)) -> 02 | DD4: مصاريف الدراسة، الخبرة، المحامون والمحضرون القضائيون | DE4: مصاريف البريد والمواصلات ( اتاوات الهاتف، التلكس، الانترنيت والرسوم المختلفة ) | DF4: مستهلكات وبرامج الإعلام الآلي | DG4: اقتناء و صيانة أجهزة الإعلام الآلي | DH4: مواد التجارب والكواشف ومواد المخابر | DI4: إطعام المستخدمين = العددx المدة x سعر الوجبة | DL4: نفقات التكوين ما قبل الترقية | DM4: الوقود والزيوت | DO4: الإشتراك في المجلات والدوريات البيداغوجية | DP4: النفقات المتعلقة بالنشاط الرياضي | DQ4: اقتناء مواد البناء، الترصيص، الخردوات، كهرباء، التدفئة التكييف وأدوات الصيانة الصغيرة | DS4: نقل وتأمين التلاميذ | DV4: تسديد مستحقات الديوان الوطني للمطبوعات المدرسية من بيع الكتاب المدرسي | DW4: مصاريف الإقامة و التمدرس
A5: 3 | B5: =IF(D5="","",INDEX(BG!A$3:$A$65,MATCH(D5,البند,0))) -> 1-06-1 | C5: نفقات الإطعام | D5: إطعام التلاميذ | E5: التونسي سعيدي | F5: تسديد فواتير تموين المؤسسة بالخبز | G5: =J5+N5+R5+V5+Z5+AD5 -> 147007.5 | H5: 01/2018 | I5: 2018-01-31 | J5: 40035 | K5: 2 | L5: 02/2018 | M5: 2018-02-28 | N5: 37315 | O5: 2 | P5: 03/2018 | Q5: 2018-03-31 | R5: 13345 | S5: 2 | T5: 04/2018 | U5: 2018-04-30 | V5: 34170 | W5: 2 | X5: 05/2018 | Y5: 2018-05-24 | Z5: 9435 | AA5: 2 | AB5: 06/2018 | AC5: 2018-06-26 | AD5: 12707.5 | AE5: 2 | AJ5: 1/5/9/13/17/19/23/27/31/35/36/40/52/48/44/60/61/66/70/ | AK5: 19 | AL5: 1/2/3/4/5/6/7/8/9/10/11/12/13/14/15/16/17/18/19/20/21/22/23/24/25/ | AM5: 20 | AN5: 1 | AO5: 2 | AP5: 3 | AQ5: 4 | AR5: =IF(B5="",0,LOOKUP(B5,[4]BG!$A$3:$A$65,[4]BG!$H$3:$H$65))-SUMIF($B$3:B5,B5,$G$3:G5) -> 4604992.5 | AS5: =IF(E5="","",INDEX(Four!A:G,MATCH(الالتزام!E5,ممون,0),4)) -> 00300699001265300077 | AT5: خزينة | AU5: 2348846 | AV5: =SUMIF(AU:AU,AU5,G:G) -> 1366235.5 | AW5: 2018-06-30 | AX5: 003 | AY5: ب ف ت ر | AZ5: B-A-D-R | BA5: 2018-06-30 | BC5: =LEFT(BC4,10) -> 0000331260 | BD5: =BD4*100 -> 328400229915000 | BE5: ب ف ت ر | BF5: 003 | BG5: B-A-D-R | BH5: ب ف ت ر | BJ5: =IF(D5="","",INDEX([4]BG!$A$3:$B$65,MATCH(D5,البند,0),1)) -> 1-06-1 | BK5: =RIGHT(BJ5,1) -> 1 | BL5: =IF(BJ5="","",LEFT(RIGHT(BJ5,4),2)) -> 06 | DE5: مصاريف الإعلان في الصحف | DF5: مصاريف النسخ والطبع | DG5: اقتناء وصيانة أدوات الوقاية والأمن | DH5: الإستنساخ ، الطباشير ، الأقلام ، الطلاسات وغيرها | DI5: إطعام المدعوين و آخرون= العددx المدة x سعر الوجبة | DL5: نفقات الامتحانات و المسابقات المهنية | DM5: صيانة وتصليح و شحن السيارات وشراء قطع الغيار | DQ5: صيانة المساحات الخضراء والمسالك | DS5: إقتناء الأدوات واللوازم الرياضية والبياغوجية
A6: 4 | B6: =IF(D6="","",INDEX(BG!A$3:$A$65,MATCH(D6,البند,0))) -> 1-06-1 | C6: نفقات الإطعام | D6: إطعام التلاميذ | E6: نبيل بلقيدوم | F6: تسديد فواتير تموين المؤسسة بمواد الغذائية | G6: =J6+N6+R6+V6+Z6+AD6 -> 398560 | H6: 01/2018 | I6: 2018-01-31 | J6: 73930 | K6: 2 | L6: 02/2018 | M6: 2018-02-28 | N6: 52220 | O6: 2 | P6: 03/2018 | Q6: 2018-03-31 | R6: 31200 | S6: 2 | T6: 04/2018 | U6: 2018-04-30 | V6: 178750 | W6: 2 | X6: 05/2018 | Y6: 2018-05-22 | Z6: 2800 | AA6: 2 | AB6: 06/2018 | AC6: 2018-06-26 | AD6: 59660 | AE6: 2 | AJ6: 2/6/10/14/32/24/20/37/41/45/49/53/57/67/71 | AK6: 15 | AL6: 1/2/3/4/5/6/7/8/9/10/11/12/13/14/15/16/17/18/19/20 | AM6: 25 | AR6: =IF(B6="",0,LOOKUP(B6,[4]BG!$A$3:$A$65,[4]BG!$H$3:$H$65))-SUMIF($B$3:B6,B6,$G$3:G6) -> 4206432.5 | AS6: =IF(E6="","",INDEX(Four!A:G,MATCH(الالتزام!E6,ممون,0),4)) -> 00300699010082300056 | AT6: خزينة | AU6: 2348846 | AV6: =SUMIF(AU:AU,AU7,G:G) -> 1366235.5 | AW6: 2018-06-30 | AX6: 003 | AY6: ب ف ت ر | AZ6: B-A-D-R | BA6: 2018-06-30 | BC6: =BC5*100 -> 33126000 | BD6: =+BD5/97 -> 3.385569381e+12 | BE6: ث ش ج | BF6: 004 | BG6: C-P-A | BH6: ق ش ج | BJ6: =IF(D6="","",INDEX([4]BG!$A$3:$B$65,MATCH(D6,البند,0),1)) -> 1-06-1 | BK6: 1 | BL6: =IF(BJ6="","",LEFT(RIGHT(BJ6,4),2)) -> 06 | DE6: تعويض مصاريف الاستهلاك المنزلي للكهرباء و الغاز بنسبة 50% للجنوب | DF6: البياضة | DG6: تجديد و صيانة لوازم ومستلزمات المطعم | DL6: تشجيع التكوين أثناء الخدمة و عن بعد لمعلمي التعليم الإبتدائي | DM6: اقتناء العجلات
A7: 5 | B7: =IF(D7="","",INDEX(BG!A$3:$A$65,MATCH(D7,البند,0))) -> 1-06-1 | C7: نفقات الإطعام | D7: إطعام التلاميذ | E7: فريد خلفاوي | F7: تسديد فواتير تموين المؤسسة بالخضر و الفواكه | G7: 744770 | H7: 01/2018 | I7: 2018-01-31 | J7: 287405 | K7: 2 | L7: 02/2018 | M7: 2018-02-28 | N7: 194070 | O7: 2 | P7: 03/2018 | Q7: 2018-03-31 | R7: 20610 | S7: 2 | T7: 04/2018 | U7: 2018-04-30 | V7: 117230 | W7: 2 | X7: 05/2018 | Y7: 2018-05-22 | Z7: 15725 | AA7: 2 | AB7: 06/2018 | AC7: 2018-06-26 | AD7: 109730 | AE7: 2 | AJ7: 4/8/12/16/22/26/30/34/39/43/47/51/55/59/64/69/73 | AK7: 17 | AL7: 1/2/3/4/5/6/7/8/9/10/11/12/13/14/15/16/17/18 | AM7: 18 | AR7: =IF(B7="",0,LOOKUP(B7,[4]BG!$A$3:$A$65,[4]BG!$H$3:$H$65))-SUMIF($B$3:B7,B7,$G$3:G7) -> 3461662.5 | AS7: =IF(E7="","",INDEX(Four!A:G,MATCH(الالتزام!E7,ممون,0),4)) -> 00400357400000891020 | AT7: خزينة | AU7: 2348846 | AV7: =SUMIF(AU:AU,AU7,G:G) -> 1366235.5 | AW7: 2018-06-30 | AX7: 004 | AY7: ق ش ج | AZ7: C-P-A | BA7: 2018-06-30 | BC7: =+MOD(BC6,97) -> 15 | BD7: =+INT(BD6) -> 3385569380567 | BE7: ب ت م | BF7: 005 | BG7: B-D-L | BH7: ب ت م | BJ7: =IF(D7="","",INDEX([4]BG!$A$3:$B$65,MATCH(D7,البند,0),1)) -> 1-06-1 | BK7: 1 | BL7: 06 | DE7: اقتناء و تركيب لواحق الهاتف والربط بالأنترنيت | DF7: المواد الصيدلانية | DG7: اقتناء الستائر و الأعلام و لوازم الداخلية | DM7: مصاريف الترقيم والتعريف
A8: 6 | B8: =IF(D8="","",INDEX(BG!A$3:$A$65,MATCH(D8,البند,0))) -> 1-06-1 | C8: نفقات الإطعام | D8: إطعام التلاميذ | E8: بعداش أحمد | F8: تسديد فواتير تموين المؤسسة باللحم و البيض | G8: 1265750 | H8: 01/2018 | I8: 2018-01-31 | J8: 416500 | K8: 2 | L8: 02/2018 | M8: 2018-02-28 | N8: 377800 | O8: 2 | P8: 03/2018 | Q8: 2018-03-31 | R8: 98350 | S8: 2 | T8: 04/2018 | U8: 2018-04-30 | V8: 319350 | W8: 2 | X8: 05/2018 | Y8: 2018-05-22 | Z8: 53750 | AA8: 2 | AJ8: 3/7/11/15/18/20/25/29/33/38/42/46/50/54/58/63/65/68 | AK8: 19 | AL8: 1/2/3/4/5/6/7/8/9/10/11/12/13/14/15/16/17/18/19/20/21/22/23/24/25/226/27/28/29/30/31/32/33/34/35/36/37/38/39/40/41 | AM8: 42 | AR8: =IF(B8="",0,LOOKUP(B8,[4]BG!$A$3:$A$65,[4]BG!$H$3:$H$65))-SUMIF($B$3:B8,B8,$G$3:G8) -> 2195912.5 | AS8: =IF(E8="","",INDEX(Four!A:G,MATCH(الالتزام!E8,ممون,0),4)) -> 00200036036220004616 | AT8: خزينة | AU8: 2348847 | AV8: =SUMIF(AU:AU,AU8,G:G) -> 1265750 | AW8: 2018-06-30 | AX8: 002 | AY8: ب خ ج | AZ8: B-E-A | BA8: 2018-06-30 | BC8: 85 | BD8: =+BD7*97 -> 328400229914999 | BE8: بركة | BF8: 006 | BG8: BARAKA | BH8: براكة | BJ8: =IF(D8="","",INDEX([4]BG!$A$3:$B$65,MATCH(D8,البند,0),1)) -> 1-06-1 | BK8: 1 | BL8: 06 | DE8: تأمين المباني | DF8: مواد التنظيف | DM8: تأمين السيارات
A9: 7 | B9: =IF(D9="","",INDEX(BG!A$3:$A$65,MATCH(D9,البند,0))) -> 3-02-1 | C9: المنح المدرسية | D9: منحة التجهيز لفائدة التلاميذ | E9: ليتيم فارس | F9: تسديد فاتورة صرف منح التجهيز لفائدة تلاميذ التقني | G9: 30000 | H9: 01/2018 | I9: 2018-05-15 | J9: 30000 | K9: 2 | AJ9: 1 | AK9: 1 | AL9: 1 | AM9: 1 | AR9: =IF(B9="",0,LOOKUP(B9,[4]BG!$A$3:$A$65,[4]BG!$H$3:$H$65))-SUMIF($B$3:B9,B9,$G$3:G9) -> 30000 | AS9: =IF(E9="","",INDEX(Four!A:G,MATCH(الالتزام!E9,ممون,0),4)) -> 00799999001880424164 | AT9: خزينة | AU9: 2348846 | AV9: =SUMIF(AU:AU,AU9,G:G) -> 1366235.5 | AW9: 2018-06-30 | AX9: 007 | AY9: ح ج ب | AZ9: CCP | BA9: 2018-06-30 | BC9: =IF(BC8+BC7>97,BC8+BC7-97,BC8+BC7) -> 3 | BD9: =BD5-BD8 -> 1 | BE9: ح ج ب | BF9: 007 | BG9: CCP | BH9: ح ج ب | BJ9: =IF(D9="","",INDEX([4]BG!$A$3:$B$65,MATCH(D9,البند,0),1)) -> 3-02-1 | BK9: 1 | BL9: 02 | DM9: مصاريف اقتناء قسيمة السيارات
A10: 8 | B10: =IF(D10="","",INDEX(BG!A$3:$A$65,MATCH(D10,البند,0))) -> 1-03-2 | C10: اللوازم | D10: مستهلكات وبرامج الإعلام الآلي | E10: ش ذ م م ميتاغروب | F10: تسديد فاتورة متابعة و تحين برنامج ميتاسكول | G10: 5541 | H10: 041/2018 | I10: 2018-02-02 | J10: 5541 | AR10: =IF(B10="",0,LOOKUP(B10,[4]BG!$A$3:$A$65,[4]BG!$H$3:$H$65))-SUMIF($B$3:B10,B10,$G$3:G10) -> 7459 | AS10: =IF(E10="","",INDEX(Four!A:G,MATCH(الالتزام!E10,ممون,0),4)) -> 00500374400242805066 | AT10: خزينة | AU10: 2348846 | AV10: 1366235.5 | AW10: 2018-06-30 | AX10: 005 | AY10: ب ت م | AZ10: B-D-L | BA10: 2018-06-30 | BC10: =97-BC9 -> 94 | BD10: =IF((97-BD9)<10,0&(97-BD9),97-BD9) -> 96 | BE10: خزينة | BF10: 008 | BG10: TP | BH10: خزينة الولاية | BJ10: =IF(D10="","",INDEX([4]BG!$A$3:$B$65,MATCH(D10,البند,0),1)) -> 1-03-2 | BK10: 2 | BL10: 03
A11: 9 | B11: =IF(D11="","",INDEX(BG!A$3:$A$65,MATCH(D11,البند,0))) -> 1-03-2 | C11: اللوازم | D11: مستهلكات وبرامج الإعلام الآلي | E11: ميكرولوجيسيال | F11: تسديد فاتورة متابعة و تحين برنامج الرواتب و المخزون | G11: 3510 | J11: 3510 | AR11: =IF(B11="",0,LOOKUP(B11,[4]BG!$A$3:$A$65,[4]BG!$H$3:$H$65))-SUMIF($B$3:B11,B11,$G$3:G11) -> 3949 | AS11: =IF(E11="","",INDEX(Four!A:G,MATCH(الالتزام!E11,ممون,0),4)) -> 00100711030000060236 | AT11: خزينة | AU11: 2348846 | AV11: 1366235.5 | AW11: 2018-06-30 | AX11: 001 | AY11: ب و ج | AZ11: B-N-A | BA11: 2018-06-30 | BC11: =IF(BC10<10,"0"&BC10,BC10) -> 94 | BD11: =RIGHT(BD3,2) -> 96 | BE11: ب ج ت | BF11: 009 | BG11: BAD | BH11: ب ج ت | BJ11: =IF(D11="","",INDEX([4]BG!$A$3:$B$65,MATCH(D11,البند,0),1)) -> 1-03-2 | BK11: 2 | BL11: 03
A12: 10 | B12: =IF(D12="","",INDEX(BG!A$3:$A$65,MATCH(D12,البند,0))) -> 1-04-3 | C12: الأدوات و الأثاث | D12: اقتناء وصيانة أدوات الوقاية والأمن | E12: عباس عبد العزيز | F12: تعبئة و مراقبة قارورات الإطفاء | G12: 13447 | J12: 13447 | AR12: =IF(B12="",0,LOOKUP(B12,[4]BG!$A$3:$A$65,[4]BG!$H$3:$H$65))-SUMIF($B$3:B12,B12,$G$3:G12) -> 14553 | AS12: =IF(E12="","",INDEX(Four!A:G,MATCH(الالتزام!E12,ممون,0),4)) -> 00200036360456201113 | AT12: خزينة | AU12: 2348846 | AV12: 1366235.5 | AW12: 2018-06-30 | AX12: 002 | AY12: ب خ ج | AZ12: B-E-A | BA12: 2018-06-30 | BC12: =RIGHT(BC3,2) -> 94 | BD12: =RIGHT(BD3,2) -> 96 | BF12: 010 | BG12: CNMA | BH12: ص و ت ف | BJ12: =IF(D12="","",INDEX([4]BG!$A$3:$B$65,MATCH(D12,البند,0),1)) -> 1-04-3 | BK12: 3 | BL12: 04
A13: 11 | B13: =IF(D13="","",INDEX(BG!A$3:$A$65,MATCH(D13,البند,0))) -> 1-04-1 | C13: الأدوات و الأثاث | D13: تجديد وصيانة أدوات وأثاث المكاتب والعتاد المدرسي | E13: فليفلة حدة | F13: تسديد فاتورة وسائل علمية | G13: 23400 | J13: 23400 | AR13: =IF(B13="",0,LOOKUP(B13,[4]BG!$A$3:$A$65,[4]BG!$H$3:$H$65))-SUMIF($B$3:B13,B13,$G$3:G13) -> 36600 | AS13: =IF(E13="","",INDEX(Four!A:G,MATCH(الالتزام!E13,ممون,0),4)) -> 00400351400000640478 | AT13: خزينة | AU13: 2348846 | AV13: 1366235.5 | AW13: 2018-06-30 | AX13: 004 | AY13: ق ش ج | AZ13: C-P-A | BA13: 2018-06-30 | BC13: =LEN(BC3) -> 21 | BD13: =LEN(BD3) -> 21 | BE13: ص و ت ا | BF13: 011 | BG13: CNEP | BH13: ص و ت ا | BJ13: =IF(D13="","",INDEX([4]BG!$A$3:$B$65,MATCH(D13,البند,0),1)) -> 1-04-1 | BK13: 1 | BL13: 04
A14: 12 | B14: =IF(D14="","",INDEX(BG!A$3:$A$65,MATCH(D14,البند,0))) ->  | G14: 0 | AR14: =IF(B14="",0,LOOKUP(B14,[4]BG!$A$3:$A$65,[4]BG!$H$3:$H$65))-SUMIF($B$3:B14,B14,$G$3:G14) -> 0 | AS14: =IF(E14="","",INDEX(Four!A:G,MATCH(الالتزام!E14,ممون,0),4)) ->  | AV14: 0 | BC14: =IF(BC13=21,"ممتاز","خطأ في عدد الارقام") -> ممتاز | BD14: =IF(BD13=21,"ممتاز","خطأ في عدد الارقام") -> ممتاز | BF14: 012 | BG14: CITY_BANK | BH14: سيتي بنك | BJ14: =IF(D14="","",INDEX([4]BG!$A$3:$B$65,MATCH(D14,البند,0),1)) -> 
A15: 13 | B15: =IF(D15="","",INDEX(BG!A$3:$A$65,MATCH(D15,البند,0))) ->  | G15: 0 | AR15: =IF(B15="",0,LOOKUP(B15,[4]BG!$A$3:$A$65,[4]BG!$H$3:$H$65))-SUMIF($B$3:B15,B15,$G$3:G15) -> 0 | AS15: =IF(E15="","",INDEX(Four!A:G,MATCH(الالتزام!E15,ممون,0),4)) ->  | AV15: 0 | BC15: =IF(BC11-BC12=0,"صحيح","خطا في مفتاح الحساب") -> صحيح | BD15: =IF(BD11-BD12=0,"صحيح","خطا في مفتاح الحساب") -> صحيح | BE15: ج ب | BF15: 014 | BG15: ABC_CORP | BH15: ابيسي كورب | BJ15: =IF(D15="","",INDEX([4]BG!$A$3:$B$65,MATCH(D15,البند,0),1)) -> 
A16: 14 | B16: =IF(D16="","",INDEX(BG!A$3:$A$65,MATCH(D16,البند,0))) ->  | G16: 0 | AR16: =IF(B16="",0,LOOKUP(B16,[4]BG!$A$3:$A$65,[4]BG!$H$3:$H$65))-SUMIF($B$3:B16,B16,$G$3:G16) -> 0 | AS16: =IF(E16="","",INDEX(Four!A:G,MATCH(الالتزام!E16,ممون,0),4)) ->  | AV16: 0 | BF16: 020 | BG16: NATEXIS | BH16: ناتكسيس | BJ16: =IF(D16="","",INDEX([4]BG!$A$3:$B$65,MATCH(D16,البند,0),1)) -> 
A17: 15 | B17: =IF(D17="","",INDEX(BG!A$3:$A$65,MATCH(D17,البند,0))) ->  | G17: 0 | AR17: =IF(B17="",0,LOOKUP(B17,[4]BG!$A$3:$A$65,[4]BG!$H$3:$H$65))-SUMIF($B$3:B17,B17,$G$3:G17) -> 0 | AS17: =IF(E17="","",INDEX(Four!A:G,MATCH(الالتزام!E17,ممون,0),4)) ->  | AV17: 0 | BE17: سوسيتي جنرال | BF17: 021 | BG17: SOCIETE-G | BH17: سوسيتي جنرال | BJ17: =IF(D17="","",INDEX([4]BG!$A$3:$B$65,MATCH(D17,البند,0),1)) -> 
A18: 16 | B18: =IF(D18="","",INDEX(BG!A$3:$A$65,MATCH(D18,البند,0))) ->  | G18: 0 | AR18: =IF(B18="",0,LOOKUP(B18,[4]BG!$A$3:$A$65,[4]BG!$H$3:$H$65))-SUMIF($B$3:B18,B18,$G$3:G18) -> 0 | AS18: =IF(E18="","",INDEX(Four!A:G,MATCH(الالتزام!E18,ممون,0),4)) ->  | AV18: 0 | BC18: يكتب رقم الحساب : 18 رقم الاولى ثم فراغ ثم الرقمين الاخيرين | BF18: 026 | BG18: ARAB_BANK_PLC | BH18: بنك العرب | BJ18: =IF(D18="","",INDEX([4]BG!$A$3:$B$65,MATCH(D18,البند,0),1)) -> 
A19: 17 | B19: =IF(D19="","",INDEX(BG!A$3:$A$65,MATCH(D19,البند,0))) ->  | G19: 0 | AR19: =IF(B19="",0,LOOKUP(B19,[4]BG!$A$3:$A$65,[4]BG!$H$3:$H$65))-SUMIF($B$3:B19,B19,$G$3:G19) -> 0 | AS19: =IF(E19="","",INDEX(Four!A:G,MATCH(الالتزام!E19,ممون,0),4)) ->  | AV19: 0 | BE19: بي سي يا | BF19: 027 | BG19: BNP | BH19: بي ان بي | BJ19: =IF(D19="","",INDEX([4]BG!$A$3:$B$65,MATCH(D19,البند,0),1)) -> 
A20: 18 | B20: =IF(D20="","",INDEX(BG!A$3:$A$65,MATCH(D20,البند,0))) ->  | G20: 0 | AR20: =IF(B20="",0,LOOKUP(B20,[4]BG!$A$3:$A$65,[4]BG!$H$3:$H$65))-SUMIF($B$3:B20,B20,$G$3:G20) -> 0 | AS20: =IF(E20="","",INDEX(Four!A:G,MATCH(الالتزام!E20,ممون,0),4)) ->  | AV20: 0 | BF20: 029 | BG20: TRUST_BANK | BH20: تروست بنك | BJ20: =IF(D20="","",INDEX([4]BG!$A$3:$B$65,MATCH(D20,البند,0),1)) -> 
A21: 19 | B21: =IF(D21="","",INDEX(BG!A$3:$A$65,MATCH(D21,البند,0))) ->  | G21: 0 | AR21: =IF(B21="",0,LOOKUP(B21,[4]BG!$A$3:$A$65,[4]BG!$H$3:$H$65))-SUMIF($B$3:B21,B21,$G$3:G21) -> 0 | AS21: =IF(E21="","",INDEX(Four!A:G,MATCH(الالتزام!E21,ممون,0),4)) ->  | AV21: 0 | BF21: 031 | BG21: HOUSING_BANK_AG | BH21: هوستيك بنك | BJ21: =IF(D21="","",INDEX([4]BG!$A$3:$B$65,MATCH(D21,البند,0),1)) -> 
A22: 20 | B22: =IF(D22="","",INDEX(BG!A$3:$A$65,MATCH(D22,البند,0))) ->  | G22: 0 | AR22: =IF(B22="",0,LOOKUP(B22,[4]BG!$A$3:$A$65,[4]BG!$H$3:$H$65))-SUMIF($B$3:B22,B22,$G$3:G22) -> 0 | AS22: =IF(E22="","",INDEX(Four!A:G,MATCH(الالتزام!E22,ممون,0),4)) ->  | AV22: 0 | BF22: 032 | BG22: ALGERIA_GULF_BANK | BH22: بنك الخليج الجزائري | BJ22: =IF(D22="","",INDEX([4]BG!$A$3:$B$65,MATCH(D22,البند,0),1)) -> 
A23: 21 | B23: =IF(D23="","",INDEX(BG!A$3:$A$65,MATCH(D23,البند,0))) ->  | G23: 0 | AR23: =IF(B23="",0,LOOKUP(B23,[4]BG!$A$3:$A$65,[4]BG!$H$3:$H$65))-SUMIF($B$3:B23,B23,$G$3:G23) -> 0 | AS23: =IF(E23="","",INDEX(Four!A:G,MATCH(الالتزام!E23,ممون,0),4)) ->  | AV23: 0 | BF23: 035 | BG23: FRANSABANK | BH23: فرنس بنك | BJ23: =IF(D23="","",INDEX([4]BG!$A$3:$B$65,MATCH(D23,البند,0),1)) -> 
A24: 22 | B24: =IF(D24="","",INDEX(BG!A$3:$A$65,MATCH(D24,البند,0))) ->  | G24: 0 | AR24: =IF(B24="",0,LOOKUP(B24,[4]BG!$A$3:$A$65,[4]BG!$H$3:$H$65))-SUMIF($B$3:B24,B24,$G$3:G24) -> 0 | AS24: =IF(E24="","",INDEX(Four!A:G,MATCH(الالتزام!E24,ممون,0),4)) ->  | AV24: 0 | BF24: 036 | BG24: CALYON | BH24: كاليون | BJ24: =IF(D24="","",INDEX([4]BG!$A$3:$B$65,MATCH(D24,البند,0),1)) -> 
A25: 23 | B25: =IF(D25="","",INDEX(BG!A$3:$A$65,MATCH(D25,البند,0))) ->  | G25: 0 | AR25: =IF(B25="",0,LOOKUP(B25,[4]BG!$A$3:$A$65,[4]BG!$H$3:$H$65))-SUMIF($B$3:B25,B25,$G$3:G25) -> 0 | AS25: =IF(E25="","",INDEX(Four!A:G,MATCH(الالتزام!E25,ممون,0),4)) ->  | AV25: 0 | BF25: 037 | BG25: HSBC ALGERIA | BH25: اش اس بي سي | BJ25: =IF(D25="","",INDEX([4]BG!$A$3:$B$65,MATCH(D25,البند,0),1)) -> 
A26: 24 | B26: =IF(D26="","",INDEX(BG!A$3:$A$65,MATCH(D26,البند,0))) ->  | G26: 0 | AR26: =IF(B26="",0,LOOKUP(B26,[4]BG!$A$3:$A$65,[4]BG!$H$3:$H$65))-SUMIF($B$3:B26,B26,$G$3:G26) -> 0 | AS26: =IF(E26="","",INDEX(Four!A:G,MATCH(الالتزام!E26,ممون,0),4)) ->  | AV26: 0 | BF26: 038 | BG26: AL_SALAM_BANK_ALGERIA | BH26: السلام بنك | BJ26: =IF(D26="","",INDEX([4]BG!$A$3:$B$65,MATCH(D26,البند,0),1)) -> 
A27: 25 | B27: =IF(D27="","",INDEX(BG!A$3:$A$65,MATCH(D27,البند,0))) ->  | G27: 0 | AR27: =IF(B27="",0,LOOKUP(B27,[4]BG!$A$3:$A$65,[4]BG!$H$3:$H$65))-SUMIF($B$3:B27,B27,$G$3:G27) -> 0 | AS27: =IF(E27="","",INDEX(Four!A:G,MATCH(الالتزام!E27,ممون,0),4)) ->  | AV27: 0 | BJ27: =IF(D27="","",INDEX([4]BG!$A$3:$B$65,MATCH(D27,البند,0),1)) -> 
A28: 26 | B28: =IF(D28="","",INDEX(BG!A$3:$A$65,MATCH(D28,البند,0))) ->  | G28: 0 | AR28: =IF(B28="",0,LOOKUP(B28,[4]BG!$A$3:$A$65,[4]BG!$H$3:$H$65))-SUMIF($B$3:B28,B28,$G$3:G28) -> 0 | AS28: =IF(E28="","",INDEX(Four!A:G,MATCH(الالتزام!E28,ممون,0),4)) ->  | AV28: 0 | BJ28: =IF(D28="","",INDEX([4]BG!$A$3:$B$65,MATCH(D28,البند,0),1)) -> 
A29: 27 | B29: =IF(D29="","",INDEX(BG!A$3:$A$65,MATCH(D29,البند,0))) ->  | G29: 0 | AR29: =IF(B29="",0,LOOKUP(B29,[4]BG!$A$3:$A$65,[4]BG!$H$3:$H$65))-SUMIF($B$3:B29,B29,$G$3:G29) -> 0 | AS29: =IF(E29="","",INDEX(Four!A:G,MATCH(الالتزام!E29,ممون,0),4)) ->  | AV29: 0 | BJ29: =IF(D29="","",INDEX([4]BG!$A$3:$B$65,MATCH(D29,البند,0),1)) -> 
A30: 28 | B30: =IF(D30="","",INDEX(BG!A$3:$A$65,MATCH(D30,البند,0))) ->  | G30: 0 | AR30: =IF(B30="",0,LOOKUP(B30,[4]BG!$A$3:$A$65,[4]BG!$H$3:$H$65))-SUMIF($B$3:B30,B30,$G$3:G30) -> 0 | AS30: =IF(E30="","",INDEX(Four!A:G,MATCH(الالتزام!E30,ممون,0),4)) ->  | AV30: 0 | BJ30: =IF(D30="","",INDEX([4]BG!$A$3:$B$65,MATCH(D30,البند,0),1)) -> 
A31: 29 | B31: =IF(D31="","",INDEX(BG!A$3:$A$65,MATCH(D31,البند,0))) ->  | G31: 0 | AR31: =IF(B31="",0,LOOKUP(B31,[4]BG!$A$3:$A$65,[4]BG!$H$3:$H$65))-SUMIF($B$3:B31,B31,$G$3:G31) -> 0 | AS31: =IF(E31="","",INDEX(Four!A:G,MATCH(الالتزام!E31,ممون,0),4)) ->  | AV31: 0 | BJ31: =IF(D31="","",INDEX([4]BG!$A$3:$B$65,MATCH(D31,البند,0),1)) -> 
A32: 30 | B32: =IF(D32="","",INDEX(BG!A$3:$A$65,MATCH(D32,البند,0))) ->  | G32: 0 | AR32: =IF(B32="",0,LOOKUP(B32,[4]BG!$A$3:$A$65,[4]BG!$H$3:$H$65))-SUMIF($B$3:B32,B32,$G$3:G32) -> 0 | AS32: =IF(E32="","",INDEX(Four!A:G,MATCH(الالتزام!E32,ممون,0),4)) ->  | AV32: 0 | BJ32: =IF(D32="","",INDEX([4]BG!$A$3:$B$65,MATCH(D32,البند,0),1)) -> 
A33: 31 | B33: =IF(D33="","",INDEX(BG!A$3:$A$65,MATCH(D33,البند,0))) ->  | G33: 0 | AR33: =IF(B33="",0,LOOKUP(B33,[4]BG!$A$3:$A$65,[4]BG!$H$3:$H$65))-SUMIF($B$3:B33,B33,$G$3:G33) -> 0 | AS33: =IF(E33="","",INDEX(Four!A:G,MATCH(الالتزام!E33,ممون,0),4)) ->  | AV33: 0 | BJ33: =IF(D33="","",INDEX([4]BG!$A$3:$B$65,MATCH(D33,البند,0),1)) -> 
A34: 32 | B34: =IF(D34="","",INDEX(BG!A$3:$A$65,MATCH(D34,البند,0))) ->  | G34: 0 | AR34: =IF(B34="",0,LOOKUP(B34,[4]BG!$A$3:$A$65,[4]BG!$H$3:$H$65))-SUMIF($B$3:B34,B34,$G$3:G34) -> 0 | AS34: =IF(E34="","",INDEX(Four!A:G,MATCH(الالتزام!E34,ممون,0),4)) ->  | AV34: 0 | BJ34: =IF(D34="","",INDEX([4]BG!$A$3:$B$65,MATCH(D34,البند,0),1)) -> 
A35: 33 | B35: =IF(D35="","",INDEX(BG!A$3:$A$65,MATCH(D35,البند,0))) ->  | G35: 0 | AR35: =IF(B35="",0,LOOKUP(B35,[4]BG!$A$3:$A$65,[4]BG!$H$3:$H$65))-SUMIF($B$3:B35,B35,$G$3:G35) -> 0 | AS35: =IF(E35="","",INDEX(Four!A:G,MATCH(الالتزام!E35,ممون,0),4)) ->  | AV35: 0 | BJ35: =IF(D35="","",INDEX([4]BG!$A$3:$B$65,MATCH(D35,البند,0),1)) -> 
A36: 34 | B36: =IF(D36="","",INDEX(BG!A$3:$A$65,MATCH(D36,البند,0))) ->  | G36: 0 | AR36: =IF(B36="",0,LOOKUP(B36,[4]BG!$A$3:$A$65,[4]BG!$H$3:$H$65))-SUMIF($B$3:B36,B36,$G$3:G36) -> 0 | AS36: =IF(E36="","",INDEX(Four!A:G,MATCH(الالتزام!E36,ممون,0),4)) ->  | AV36: 0 | BJ36: =IF(D36="","",INDEX([4]BG!$A$3:$B$65,MATCH(D36,البند,0),1)) -> 
A37: 35 | B37: =IF(D37="","",INDEX(BG!A$3:$A$65,MATCH(D37,البند,0))) ->  | G37: 0 | AR37: =IF(B37="",0,LOOKUP(B37,[4]BG!$A$3:$A$65,[4]BG!$H$3:$H$65))-SUMIF($B$3:B37,B37,$G$3:G37) -> 0 | AS37: =IF(E37="","",INDEX(Four!A:G,MATCH(الالتزام!E37,ممون,0),4)) ->  | AV37: 0 | BJ37: =IF(D37="","",INDEX([4]BG!$A$3:$B$65,MATCH(D37,البند,0),1)) -> 
A38: 36 | B38: =IF(D38="","",INDEX(BG!A$3:$A$65,MATCH(D38,البند,0))) ->  | G38: 0 | AR38: =IF(B38="",0,LOOKUP(B38,[4]BG!$A$3:$A$65,[4]BG!$H$3:$H$65))-SUMIF($B$3:B38,B38,$G$3:G38) -> 0 | AS38: =IF(E38="","",INDEX(Four!A:G,MATCH(الالتزام!E38,ممون,0),4)) ->  | AV38: 0 | BJ38: =IF(D38="","",INDEX([4]BG!$A$3:$B$65,MATCH(D38,البند,0),1)) -> 
A39: 37 | B39: =IF(D39="","",INDEX(BG!A$3:$A$65,MATCH(D39,البند,0))) ->  | G39: 0 | AR39: =IF(B39="",0,LOOKUP(B39,[4]BG!$A$3:$A$65,[4]BG!$H$3:$H$65))-SUMIF($B$3:B39,B39,$G$3:G39) -> 0 | AS39: =IF(E39="","",INDEX(Four!A:G,MATCH(الالتزام!E39,ممون,0),4)) ->  | AV39: 0 | BJ39: =IF(D39="","",INDEX([4]BG!$A$3:$B$65,MATCH(D39,البند,0),1)) -> 
A40: 38 | B40: =IF(D40="","",INDEX(BG!A$3:$A$65,MATCH(D40,البند,0))) ->  | G40: 0 | AR40: =IF(B40="",0,LOOKUP(B40,[4]BG!$A$3:$A$65,[4]BG!$H$3:$H$65))-SUMIF($B$3:B40,B40,$G$3:G40) -> 0 | AS40: =IF(E40="","",INDEX(Four!A:G,MATCH(الالتزام!E40,ممون,0),4)) ->  | AV40: 0 | BJ40: =IF(D40="","",INDEX([4]BG!$A$3:$B$65,MATCH(D40,البند,0),1)) -> 
A41: 39 | B41: =IF(D41="","",INDEX(BG!A$3:$A$65,MATCH(D41,البند,0))) ->  | G41: 0 | AR41: =IF(B41="",0,LOOKUP(B41,[4]BG!$A$3:$A$65,[4]BG!$H$3:$H$65))-SUMIF($B$3:B41,B41,$G$3:G41) -> 0 | AS41: =IF(E41="","",INDEX(Four!A:G,MATCH(الالتزام!E41,ممون,0),4)) ->  | AV41: 0 | BJ41: =IF(D41="","",INDEX([4]BG!$A$3:$B$65,MATCH(D41,البند,0),1)) -> 
A42: 40 | B42: =IF(D42="","",INDEX(BG!A$3:$A$65,MATCH(D42,البند,0))) ->  | G42: 0 | AR42: =IF(B42="",0,LOOKUP(B42,[4]BG!$A$3:$A$65,[4]BG!$H$3:$H$65))-SUMIF($B$3:B42,B42,$G$3:G42) -> 0 | AS42: =IF(E42="","",INDEX(Four!A:G,MATCH(الالتزام!E42,ممون,0),4)) ->  | AV42: 0 | BJ42: =IF(D42="","",INDEX([4]BG!$A$3:$B$65,MATCH(D42,البند,0),1)) -> 
A43: 41 | B43: =IF(D43="","",INDEX(BG!A$3:$A$65,MATCH(D43,البند,0))) ->  | G43: 0 | AR43: =IF(B43="",0,LOOKUP(B43,[4]BG!$A$3:$A$65,[4]BG!$H$3:$H$65))-SUMIF($B$3:B43,B43,$G$3:G43) -> 0 | AS43: =IF(E43="","",INDEX(Four!A:G,MATCH(الالتزام!E43,ممون,0),4)) ->  | AV43: 0 | BJ43: =IF(D43="","",INDEX([4]BG!$A$3:$B$65,MATCH(D43,البند,0),1)) -> 
A44: 42 | B44: =IF(D44="","",INDEX(BG!A$3:$A$65,MATCH(D44,البند,0))) ->  | G44: 0 | AR44: =IF(B44="",0,LOOKUP(B44,[4]BG!$A$3:$A$65,[4]BG!$H$3:$H$65))-SUMIF($B$3:B44,B44,$G$3:G44) -> 0 | AS44: =IF(E44="","",INDEX(Four!A:G,MATCH(الالتزام!E44,ممون,0),4)) ->  | AV44: 0 | BJ44: =IF(D44="","",INDEX([4]BG!$A$3:$B$65,MATCH(D44,البند,0),1)) -> 
A45: 43 | B45: =IF(D45="","",INDEX(BG!A$3:$A$65,MATCH(D45,البند,0))) ->  | G45: 0 | AR45: =IF(B45="",0,LOOKUP(B45,[4]BG!$A$3:$A$65,[4]BG!$H$3:$H$65))-SUMIF($B$3:B45,B45,$G$3:G45) -> 0 | AS45: =IF(E45="","",INDEX(Four!A:G,MATCH(الالتزام!E45,ممون,0),4)) ->  | AV45: 0 | BJ45: =IF(D45="","",INDEX([4]BG!$A$3:$B$65,MATCH(D45,البند,0),1)) -> 
A46: 44 | B46: =IF(D46="","",INDEX(BG!A$3:$A$65,MATCH(D46,البند,0))) ->  | G46: 0 | AR46: =IF(B46="",0,LOOKUP(B46,[4]BG!$A$3:$A$65,[4]BG!$H$3:$H$65))-SUMIF($B$3:B46,B46,$G$3:G46) -> 0 | AS46: =IF(E46="","",INDEX(Four!A:G,MATCH(الالتزام!E46,ممون,0),4)) ->  | AV46: 0 | BJ46: =IF(D46="","",INDEX([4]BG!$A$3:$B$65,MATCH(D46,البند,0),1)) -> 
A47: 45 | B47: =IF(D47="","",INDEX(BG!A$3:$A$65,MATCH(D47,البند,0))) ->  | G47: 0 | AR47: =IF(B47="",0,LOOKUP(B47,[4]BG!$A$3:$A$65,[4]BG!$H$3:$H$65))-SUMIF($B$3:B47,B47,$G$3:G47) -> 0 | AS47: =IF(E47="","",INDEX(Four!A:G,MATCH(الالتزام!E47,ممون,0),4)) ->  | AV47: 0 | BJ47: =IF(D47="","",INDEX([4]BG!$A$3:$B$65,MATCH(D47,البند,0),1)) -> 
A48: 46 | B48: =IF(D48="","",INDEX(BG!A$3:$A$65,MATCH(D48,البند,0))) ->  | G48: 0 | AR48: =IF(B48="",0,LOOKUP(B48,[4]BG!$A$3:$A$65,[4]BG!$H$3:$H$65))-SUMIF($B$3:B48,B48,$G$3:G48) -> 0 | AS48: =IF(E48="","",INDEX(Four!A:G,MATCH(الالتزام!E48,ممون,0),4)) ->  | AV48: 0 | BJ48: =IF(D48="","",INDEX([4]BG!$A$3:$B$65,MATCH(D48,البند,0),1)) -> 
A49: 47 | B49: =IF(D49="","",INDEX(BG!A$3:$A$65,MATCH(D49,البند,0))) ->  | G49: 0 | AR49: =IF(B49="",0,LOOKUP(B49,[4]BG!$A$3:$A$65,[4]BG!$H$3:$H$65))-SUMIF($B$3:B49,B49,$G$3:G49) -> 0 | AS49: =IF(E49="","",INDEX(Four!A:G,MATCH(الالتزام!E49,ممون,0),4)) ->  | AV49: 0 | BJ49: =IF(D49="","",INDEX([4]BG!$A$3:$B$65,MATCH(D49,البند,0),1)) -> 
A50: 48 | B50: =IF(D50="","",INDEX(BG!A$3:$A$65,MATCH(D50,البند,0))) ->  | G50: 0 | AR50: =IF(B50="",0,LOOKUP(B50,[4]BG!$A$3:$A$65,[4]BG!$H$3:$H$65))-SUMIF($B$3:B50,B50,$G$3:G50) -> 0 | AS50: =IF(E50="","",INDEX(Four!A:G,MATCH(الالتزام!E50,ممون,0),4)) ->  | AV50: 0 | BJ50: =IF(D50="","",INDEX([4]BG!$A$3:$B$65,MATCH(D50,البند,0),1)) -> 
A51: 49 | B51: =IF(D51="","",INDEX(BG!A$3:$A$65,MATCH(D51,البند,0))) ->  | G51: 0 | AR51: =IF(B51="",0,LOOKUP(B51,[4]BG!$A$3:$A$65,[4]BG!$H$3:$H$65))-SUMIF($B$3:B51,B51,$G$3:G51) -> 0 | AS51: =IF(E51="","",INDEX(Four!A:G,MATCH(الالتزام!E51,ممون,0),4)) ->  | AV51: 0 | BJ51: =IF(D51="","",INDEX([4]BG!$A$3:$B$65,MATCH(D51,البند,0),1)) -> 
A52: 50 | B52: =IF(D52="","",INDEX(BG!A$3:$A$65,MATCH(D52,البند,0))) ->  | G52: 0 | AR52: =IF(B52="",0,LOOKUP(B52,[4]BG!$A$3:$A$65,[4]BG!$H$3:$H$65))-SUMIF($B$3:B52,B52,$G$3:G52) -> 0 | AS52: =IF(E52="","",INDEX(Four!A:G,MATCH(الالتزام!E52,ممون,0),4)) ->  | AV52: 0 | BJ52: =IF(D52="","",INDEX([4]BG!$A$3:$B$65,MATCH(D52,البند,0),1)) -> 
A53: 51 | B53: =IF(D53="","",INDEX(BG!A$3:$A$65,MATCH(D53,البند,0))) ->  | G53: 0 | AR53: =IF(B53="",0,LOOKUP(B53,[4]BG!$A$3:$A$65,[4]BG!$H$3:$H$65))-SUMIF($B$3:B53,B53,$G$3:G53) -> 0 | AS53: =IF(E53="","",INDEX(Four!A:G,MATCH(الالتزام!E53,ممون,0),4)) ->  | AV53: 0 | BJ53: =IF(D53="","",INDEX([4]BG!$A$3:$B$65,MATCH(D53,البند,0),1)) -> 
A54: 52 | B54: =IF(D54="","",INDEX(BG!A$3:$A$65,MATCH(D54,البند,0))) ->  | G54: 0 | AR54: =IF(B54="",0,LOOKUP(B54,[4]BG!$A$3:$A$65,[4]BG!$H$3:$H$65))-SUMIF($B$3:B54,B54,$G$3:G54) -> 0 | AS54: =IF(E54="","",INDEX(Four!A:G,MATCH(الالتزام!E54,ممون,0),4)) ->  | AV54: 0 | BJ54: =IF(D54="","",INDEX([4]BG!$A$3:$B$65,MATCH(D54,البند,0),1)) -> 
A55: 53 | B55: =IF(D55="","",INDEX(BG!A$3:$A$65,MATCH(D55,البند,0))) ->  | G55: 0 | AR55: =IF(B55="",0,LOOKUP(B55,[4]BG!$A$3:$A$65,[4]BG!$H$3:$H$65))-SUMIF($B$3:B55,B55,$G$3:G55) -> 0 | AS55: =IF(E55="","",INDEX(Four!A:G,MATCH(الالتزام!E55,ممون,0),4)) ->  | AV55: 0 | BJ55: =IF(D55="","",INDEX([4]BG!$A$3:$B$65,MATCH(D55,البند,0),1)) -> 
A56: 54 | B56: =IF(D56="","",INDEX(BG!A$3:$A$65,MATCH(D56,البند,0))) ->  | G56: 0 | AR56: =IF(B56="",0,LOOKUP(B56,[4]BG!$A$3:$A$65,[4]BG!$H$3:$H$65))-SUMIF($B$3:B56,B56,$G$3:G56) -> 0 | AS56: =IF(E56="","",INDEX(Four!A:G,MATCH(الالتزام!E56,ممون,0),4)) ->  | AV56: 0 | BJ56: =IF(D56="","",INDEX([4]BG!$A$3:$B$65,MATCH(D56,البند,0),1)) -> 
A57: 55 | B57: =IF(D57="","",INDEX(BG!A$3:$A$65,MATCH(D57,البند,0))) ->  | G57: 0 | AR57: =IF(B57="",0,LOOKUP(B57,[4]BG!$A$3:$A$65,[4]BG!$H$3:$H$65))-SUMIF($B$3:B57,B57,$G$3:G57) -> 0 | AS57: =IF(E57="","",INDEX(Four!A:G,MATCH(الالتزام!E57,ممون,0),4)) ->  | AV57: 0 | BJ57: =IF(D57="","",INDEX([4]BG!$A$3:$B$65,MATCH(D57,البند,0),1)) -> 
A58: 56 | B58: =IF(D58="","",INDEX(BG!A$3:$A$65,MATCH(D58,البند,0))) ->  | G58: 0 | AR58: =IF(B58="",0,LOOKUP(B58,[4]BG!$A$3:$A$65,[4]BG!$H$3:$H$65))-SUMIF($B$3:B58,B58,$G$3:G58) -> 0 | AS58: =IF(E58="","",INDEX(Four!A:G,MATCH(الالتزام!E58,ممون,0),4)) ->  | AV58: 0 | BJ58: =IF(D58="","",INDEX([4]BG!$A$3:$B$65,MATCH(D58,البند,0),1)) -> 
A59: 57 | B59: =IF(D59="","",INDEX(BG!A$3:$A$65,MATCH(D59,البند,0))) ->  | G59: 0 | AR59: =IF(B59="",0,LOOKUP(B59,[4]BG!$A$3:$A$65,[4]BG!$H$3:$H$65))-SUMIF($B$3:B59,B59,$G$3:G59) -> 0 | AS59: =IF(E59="","",INDEX(Four!A:G,MATCH(الالتزام!E59,ممون,0),4)) ->  | AV59: 0 | BJ59: =IF(D59="","",INDEX([4]BG!$A$3:$B$65,MATCH(D59,البند,0),1)) -> 
A60: 58 | B60: =IF(D60="","",INDEX(BG!A$3:$A$65,MATCH(D60,البند,0))) ->  | G60: 0 | AR60: =IF(B60="",0,LOOKUP(B60,[4]BG!$A$3:$A$65,[4]BG!$H$3:$H$65))-SUMIF($B$3:B60,B60,$G$3:G60) -> 0 | AS60: =IF(E60="","",INDEX(Four!A:G,MATCH(الالتزام!E60,ممون,0),4)) ->  | AV60: 0 | BJ60: =IF(D60="","",INDEX([4]BG!$A$3:$B$65,MATCH(D60,البند,0),1)) -> 
A61: 59 | B61: =IF(D61="","",INDEX(BG!A$3:$A$65,MATCH(D61,البند,0))) ->  | G61: 0 | AR61: =IF(B61="",0,LOOKUP(B61,[4]BG!$A$3:$A$65,[4]BG!$H$3:$H$65))-SUMIF($B$3:B61,B61,$G$3:G61) -> 0 | AS61: =IF(E61="","",INDEX(Four!A:G,MATCH(الالتزام!E61,ممون,0),4)) ->  | AV61: 0 | BJ61: =IF(D61="","",INDEX([4]BG!$A$3:$B$65,MATCH(D61,البند,0),1)) -> 
A62: 60 | B62: =IF(D62="","",INDEX(BG!A$3:$A$65,MATCH(D62,البند,0))) ->  | G62: 0 | AR62: =IF(B62="",0,LOOKUP(B62,[4]BG!$A$3:$A$65,[4]BG!$H$3:$H$65))-SUMIF($B$3:B62,B62,$G$3:G62) -> 0 | AS62: =IF(E62="","",INDEX(Four!A:G,MATCH(الالتزام!E62,ممون,0),4)) ->  | AV62: 0 | BJ62: =IF(D62="","",INDEX([4]BG!$A$3:$B$65,MATCH(D62,البند,0),1)) -> 
A63: 61 | B63: =IF(D63="","",INDEX(BG!A$3:$A$65,MATCH(D63,البند,0))) ->  | G63: 0 | AR63: =IF(B63="",0,LOOKUP(B63,[4]BG!$A$3:$A$65,[4]BG!$H$3:$H$65))-SUMIF($B$3:B63,B63,$G$3:G63) -> 0 | AS63: =IF(E63="","",INDEX(Four!A:G,MATCH(الالتزام!E63,ممون,0),4)) ->  | AV63: 0 | BJ63: =IF(D63="","",INDEX([4]BG!$A$3:$B$65,MATCH(D63,البند,0),1)) -> 
A64: 62 | B64: =IF(D64="","",INDEX(BG!A$3:$A$65,MATCH(D64,البند,0))) ->  | G64: 0 | AR64: =IF(B64="",0,LOOKUP(B64,[4]BG!$A$3:$A$65,[4]BG!$H$3:$H$65))-SUMIF($B$3:B64,B64,$G$3:G64) -> 0 | AS64: =IF(E64="","",INDEX(Four!A:G,MATCH(الالتزام!E64,ممون,0),4)) ->  | AV64: 0 | BJ64: =IF(D64="","",INDEX([4]BG!$A$3:$B$65,MATCH(D64,البند,0),1)) -> 
A65: 63 | B65: =IF(D65="","",INDEX(BG!A$3:$A$65,MATCH(D65,البند,0))) ->  | G65: 0 | AR65: =IF(B65="",0,LOOKUP(B65,[4]BG!$A$3:$A$65,[4]BG!$H$3:$H$65))-SUMIF($B$3:B65,B65,$G$3:G65) -> 0 | AS65: =IF(E65="","",INDEX(Four!A:G,MATCH(الالتزام!E65,ممون,0),4)) ->  | AV65: 0 | BJ65: =IF(D65="","",INDEX([4]BG!$A$3:$B$65,MATCH(D65,البند,0),1)) -> 
A66: 64 | B66: =IF(D66="","",INDEX(BG!A$3:$A$65,MATCH(D66,البند,0))) ->  | G66: 0 | AR66: =IF(B66="",0,LOOKUP(B66,[4]BG!$A$3:$A$65,[4]BG!$H$3:$H$65))-SUMIF($B$3:B66,B66,$G$3:G66) -> 0 | AS66: =IF(E66="","",INDEX(Four!A:G,MATCH(الالتزام!E66,ممون,0),4)) ->  | AV66: 0 | BJ66: =IF(D66="","",INDEX([4]BG!$A$3:$B$65,MATCH(D66,البند,0),1)) -> 
A67: 65 | B67: =IF(D67="","",INDEX(BG!A$3:$A$65,MATCH(D67,البند,0))) ->  | G67: 0 | AR67: =IF(B67="",0,LOOKUP(B67,[4]BG!$A$3:$A$65,[4]BG!$H$3:$H$65))-SUMIF($B$3:B67,B67,$G$3:G67) -> 0 | AS67: =IF(E67="","",INDEX(Four!A:G,MATCH(الالتزام!E67,ممون,0),4)) ->  | AV67: 0 | AY67: =IFERROR(LOOKUP(LEFT(AS67,3),$BF$3:$BF$33,$BH$3:$BH$33),"") ->  | BJ67: =IF(D67="","",INDEX([4]BG!$A$3:$B$65,MATCH(D67,البند,0),1)) -> 
A68: 66 | B68: =IF(D68="","",INDEX(BG!A$3:$A$65,MATCH(D68,البند,0))) ->  | G68: 0 | AR68: =IF(B68="",0,LOOKUP(B68,[4]BG!$A$3:$A$65,[4]BG!$H$3:$H$65))-SUMIF($B$3:B68,B68,$G$3:G68) -> 0 | AS68: =IF(E68="","",INDEX(Four!A:G,MATCH(الالتزام!E68,ممون,0),4)) ->  | AV68: 0 | AX68: =LEFT(AS68,3) ->  | AZ68: =IFERROR(LOOKUP(LEFT(AS68,3),$BF$3:$BF$33,$BG$3:$BG$33),"") ->  | BJ68: =IF(D68="","",INDEX([4]BG!$A$3:$B$65,MATCH(D68,البند,0),1)) -> 
A69: 67 | B69: =IF(D69="","",INDEX(BG!A$3:$A$65,MATCH(D69,البند,0))) ->  | G69: 0 | AR69: =IF(B69="",0,LOOKUP(B69,[4]BG!$A$3:$A$65,[4]BG!$H$3:$H$65))-SUMIF($B$3:B69,B69,$G$3:G69) -> 0 | AS69: =IF(E69="","",INDEX(Four!A:G,MATCH(الالتزام!E69,ممون,0),4)) ->  | AV69: 0 | BJ69: =IF(D69="","",INDEX([4]BG!$A$3:$B$65,MATCH(D69,البند,0),1)) ->  | BK69: =RIGHT(BJ69,1) -> 
A70: 68 | B70: =IF(D70="","",INDEX(BG!A$3:$A$65,MATCH(D70,البند,0))) ->  | G70: =J70+N70+R70+V70+Z70+AD70 -> 0 | AR70: =IF(B70="",0,LOOKUP(B70,[4]BG!$A$3:$A$65,[4]BG!$H$3:$H$65))-SUMIF($B$3:B70,B70,$G$3:G70) -> 0 | AS70: =IF(E70="","",INDEX(Four!A:G,MATCH(الالتزام!E70,ممون,0),4)) ->  | AV70: 0 | BJ70: =IF(D70="","",INDEX([4]BG!$A$3:$B$65,MATCH(D70,البند,0),1)) ->  | BL70: =IF(BJ70="","",LEFT(RIGHT(BJ70,4),2)) -> 
A71: 69 | B71: =IF(D71="","",INDEX(BG!A$3:$A$65,MATCH(D71,البند,0))) ->  | G71: 0 | AR71: =IF(B71="",0,LOOKUP(B71,[4]BG!$A$3:$A$65,[4]BG!$H$3:$H$65))-SUMIF($B$3:B71,B71,$G$3:G71) -> 0 | AS71: =IF(E71="","",INDEX(Four!A:G,MATCH(الالتزام!E71,ممون,0),4)) ->  | AV71: 0 | BJ71: =IF(D71="","",INDEX([4]BG!$A$3:$B$65,MATCH(D71,البند,0),1)) -> 
A72: 70 | B72: =IF(D72="","",INDEX(BG!A$3:$A$65,MATCH(D72,البند,0))) ->  | G72: 0 | AR72: =IF(B72="",0,LOOKUP(B72,[4]BG!$A$3:$A$65,[4]BG!$H$3:$H$65))-SUMIF($B$3:B72,B72,$G$3:G72) -> 0 | AS72: =IF(E72="","",INDEX(Four!A:G,MATCH(الالتزام!E72,ممون,0),4)) ->  | AV72: 0 | BJ72: =IF(D72="","",INDEX([4]BG!$A$3:$B$65,MATCH(D72,البند,0),1)) -> 
A73: 71 | B73: =IF(D73="","",INDEX(BG!A$3:$A$65,MATCH(D73,البند,0))) ->  | G73: 0 | AR73: =IF(B73="",0,LOOKUP(B73,[4]BG!$A$3:$A$65,[4]BG!$H$3:$H$65))-SUMIF($B$3:B73,B73,$G$3:G73) -> 0 | AS73: =IF(E73="","",INDEX(Four!A:G,MATCH(الالتزام!E73,ممون,0),4)) ->  | AV73: =SUMIF(AU:AU,AU73,G:G) -> 0 | BJ73: =IF(D73="","",INDEX([4]BG!$A$3:$B$65,MATCH(D73,البند,0),1)) -> 
A74: 72 | B74: =IF(D74="","",INDEX(BG!A$3:$A$65,MATCH(D74,البند,0))) ->  | G74: 0 | AR74: =IF(B74="",0,LOOKUP(B74,[4]BG!$A$3:$A$65,[4]BG!$H$3:$H$65))-SUMIF($B$3:B74,B74,$G$3:G74) -> 0 | AS74: =IF(E74="","",INDEX(Four!A:G,MATCH(الالتزام!E74,ممون,0),4)) ->  | AV74: 0 | BJ74: =IF(D74="","",INDEX([4]BG!$A$3:$B$65,MATCH(D74,البند,0),1)) -> 
A75: 73 | B75: =IF(D75="","",INDEX(BG!A$3:$A$65,MATCH(D75,البند,0))) ->  | G75: 0 | AR75: =IF(B75="",0,LOOKUP(B75,[4]BG!$A$3:$A$65,[4]BG!$H$3:$H$65))-SUMIF($B$3:B75,B75,$G$3:G75) -> 0 | AS75: =IF(E75="","",INDEX(Four!A:G,MATCH(الالتزام!E75,ممون,0),4)) ->  | AV75: 0 | BJ75: =IF(D75="","",INDEX([4]BG!$A$3:$B$65,MATCH(D75,البند,0),1)) -> 
A76: 74 | B76: =IF(D76="","",INDEX(BG!A$3:$A$65,MATCH(D76,البند,0))) ->  | G76: 0 | AR76: =IF(B76="",0,LOOKUP(B76,[4]BG!$A$3:$A$65,[4]BG!$H$3:$H$65))-SUMIF($B$3:B76,B76,$G$3:G76) -> 0 | AS76: =IF(E76="","",INDEX(Four!A:G,MATCH(الالتزام!E76,ممون,0),4)) ->  | AV76: 0 | BJ76: =IF(D76="","",INDEX([4]BG!$A$3:$B$65,MATCH(D76,البند,0),1)) -> 
A77: 75 | B77: =IF(D77="","",INDEX(BG!A$3:$A$65,MATCH(D77,البند,0))) ->  | G77: 0 | AR77: =IF(B77="",0,LOOKUP(B77,[4]BG!$A$3:$A$65,[4]BG!$H$3:$H$65))-SUMIF($B$3:B77,B77,$G$3:G77) -> 0 | AS77: =IF(E77="","",INDEX(Four!A:G,MATCH(الالتزام!E77,ممون,0),4)) ->  | AV77: 0 | BJ77: =IF(D77="","",INDEX([4]BG!$A$3:$B$65,MATCH(D77,البند,0),1)) -> 
A78: 76 | B78: =IF(D78="","",INDEX(BG!A$3:$A$65,MATCH(D78,البند,0))) ->  | G78: 0 | AR78: =IF(B78="",0,LOOKUP(B78,[4]BG!$A$3:$A$65,[4]BG!$H$3:$H$65))-SUMIF($B$3:B78,B78,$G$3:G78) -> 0 | AS78: =IF(E78="","",INDEX(Four!A:G,MATCH(الالتزام!E78,ممون,0),4)) ->  | AV78: 0 | BJ78: =IF(D78="","",INDEX([4]BG!$A$3:$B$65,MATCH(D78,البند,0),1)) -> 
A79: 77 | B79: =IF(D79="","",INDEX(BG!A$3:$A$65,MATCH(D79,البند,0))) ->  | G79: 0 | AR79: =IF(B79="",0,LOOKUP(B79,[4]BG!$A$3:$A$65,[4]BG!$H$3:$H$65))-SUMIF($B$3:B79,B79,$G$3:G79) -> 0 | AS79: =IF(E79="","",INDEX(Four!A:G,MATCH(الالتزام!E79,ممون,0),4)) ->  | AV79: 0 | BJ79: =IF(D79="","",INDEX([4]BG!$A$3:$B$65,MATCH(D79,البند,0),1)) -> 
A80: 78 | B80: =IF(D80="","",INDEX(BG!A$3:$A$65,MATCH(D80,البند,0))) ->  | G80: 0 | AR80: =IF(B80="",0,LOOKUP(B80,[4]BG!$A$3:$A$65,[4]BG!$H$3:$H$65))-SUMIF($B$3:B80,B80,$G$3:G80) -> 0 | AS80: =IF(E80="","",INDEX(Four!A:G,MATCH(الالتزام!E80,ممون,0),4)) ->  | AV80: 0 | BJ80: =IF(D80="","",INDEX([4]BG!$A$3:$B$65,MATCH(D80,البند,0),1)) -> 
A81: 79 | B81: =IF(D81="","",INDEX(BG!A$3:$A$65,MATCH(D81,البند,0))) ->  | G81: 0 | AR81: =IF(B81="",0,LOOKUP(B81,[4]BG!$A$3:$A$65,[4]BG!$H$3:$H$65))-SUMIF($B$3:B81,B81,$G$3:G81) -> 0 | AS81: =IF(E81="","",INDEX(Four!A:G,MATCH(الالتزام!E81,ممون,0),4)) ->  | AV81: 0 | BJ81: =IF(D81="","",INDEX([4]BG!$A$3:$B$65,MATCH(D81,البند,0),1)) -> 
A82: 80 | B82: =IF(D82="","",INDEX(BG!A$3:$A$65,MATCH(D82,البند,0))) ->  | G82: 0 | AR82: =IF(B82="",0,LOOKUP(B82,[4]BG!$A$3:$A$65,[4]BG!$H$3:$H$65))-SUMIF($B$3:B82,B82,$G$3:G82) -> 0 | AS82: =IF(E82="","",INDEX(Four!A:G,MATCH(الالتزام!E82,ممون,0),4)) ->  | AV82: 0 | BJ82: =IF(D82="","",INDEX([4]BG!$A$3:$B$65,MATCH(D82,البند,0),1)) -> 
A83: 81 | B83: =IF(D83="","",INDEX(BG!A$3:$A$65,MATCH(D83,البند,0))) ->  | G83: 0 | AR83: =IF(B83="",0,LOOKUP(B83,[4]BG!$A$3:$A$65,[4]BG!$H$3:$H$65))-SUMIF($B$3:B83,B83,$G$3:G83) -> 0 | AS83: =IF(E83="","",INDEX(Four!A:G,MATCH(الالتزام!E83,ممون,0),4)) ->  | AV83: 0 | BJ83: =IF(D83="","",INDEX([4]BG!$A$3:$B$65,MATCH(D83,البند,0),1)) -> 
A84: 82 | B84: =IF(D84="","",INDEX(BG!A$3:$A$65,MATCH(D84,البند,0))) ->  | G84: 0 | AR84: =IF(B84="",0,LOOKUP(B84,[4]BG!$A$3:$A$65,[4]BG!$H$3:$H$65))-SUMIF($B$3:B84,B84,$G$3:G84) -> 0 | AS84: =IF(E84="","",INDEX(Four!A:G,MATCH(الالتزام!E84,ممون,0),4)) ->  | AV84: 0 | BJ84: =IF(D84="","",INDEX([4]BG!$A$3:$B$65,MATCH(D84,البند,0),1)) -> 
A85: 83 | B85: =IF(D85="","",INDEX(BG!A$3:$A$65,MATCH(D85,البند,0))) ->  | G85: 0 | AR85: =IF(B85="",0,LOOKUP(B85,[4]BG!$A$3:$A$65,[4]BG!$H$3:$H$65))-SUMIF($B$3:B85,B85,$G$3:G85) -> 0 | AS85: =IF(E85="","",INDEX(Four!A:G,MATCH(الالتزام!E85,ممون,0),4)) ->  | AV85: 0 | BJ85: =IF(D85="","",INDEX([4]BG!$A$3:$B$65,MATCH(D85,البند,0),1)) -> 
A86: 84 | B86: =IF(D86="","",INDEX(BG!A$3:$A$65,MATCH(D86,البند,0))) ->  | G86: 0 | AR86: =IF(B86="",0,LOOKUP(B86,[4]BG!$A$3:$A$65,[4]BG!$H$3:$H$65))-SUMIF($B$3:B86,B86,$G$3:G86) -> 0 | AS86: =IF(E86="","",INDEX(Four!A:G,MATCH(الالتزام!E86,ممون,0),4)) ->  | AV86: 0 | BJ86: =IF(D86="","",INDEX([4]BG!$A$3:$B$65,MATCH(D86,البند,0),1)) -> 
A87: 85 | B87: =IF(D87="","",INDEX(BG!A$3:$A$65,MATCH(D87,البند,0))) ->  | G87: 0 | AR87: =IF(B87="",0,LOOKUP(B87,[4]BG!$A$3:$A$65,[4]BG!$H$3:$H$65))-SUMIF($B$3:B87,B87,$G$3:G87) -> 0 | AS87: =IF(E87="","",INDEX(Four!A:G,MATCH(الالتزام!E87,ممون,0),4)) ->  | AV87: 0 | BJ87: =IF(D87="","",INDEX([4]BG!$A$3:$B$65,MATCH(D87,البند,0),1)) -> 
A88: 86 | B88: =IF(D88="","",INDEX(BG!A$3:$A$65,MATCH(D88,البند,0))) ->  | G88: 0 | AR88: =IF(B88="",0,LOOKUP(B88,[4]BG!$A$3:$A$65,[4]BG!$H$3:$H$65))-SUMIF($B$3:B88,B88,$G$3:G88) -> 0 | AS88: =IF(E88="","",INDEX(Four!A:G,MATCH(الالتزام!E88,ممون,0),4)) ->  | AV88: 0 | BJ88: =IF(D88="","",INDEX([4]BG!$A$3:$B$65,MATCH(D88,البند,0),1)) -> 
A89: 87 | B89: =IF(D89="","",INDEX(BG!A$3:$A$65,MATCH(D89,البند,0))) ->  | G89: 0 | AR89: =IF(B89="",0,LOOKUP(B89,[4]BG!$A$3:$A$65,[4]BG!$H$3:$H$65))-SUMIF($B$3:B89,B89,$G$3:G89) -> 0 | AS89: =IF(E89="","",INDEX(Four!A:G,MATCH(الالتزام!E89,ممون,0),4)) ->  | AV89: 0 | BJ89: =IF(D89="","",INDEX([4]BG!$A$3:$B$65,MATCH(D89,البند,0),1)) -> 
A90: 88 | B90: =IF(D90="","",INDEX([4]BG!A$3:$A$65,MATCH(D90,البند,0))) ->  | G90: 0 | AR90: =IF(B90="",0,LOOKUP(B90,[4]BG!$A$3:$A$65,[4]BG!$H$3:$H$65))-SUMIF($B$3:B90,B90,$G$3:G90) -> 0 | AS90: =IF(E90="","",INDEX(Four!A:G,MATCH(الالتزام!E90,ممون,0),4)) ->  | AV90: 0 | BJ90: =IF(D90="","",INDEX([4]BG!$A$3:$B$65,MATCH(D90,البند,0),1)) -> 
A91: 89 | B91: =IF(D91="","",INDEX([4]BG!A$3:$A$65,MATCH(D91,البند,0))) ->  | G91: 0 | AR91: =IF(B91="",0,LOOKUP(B91,[4]BG!$A$3:$A$65,[4]BG!$H$3:$H$65))-SUMIF($B$3:B91,B91,$G$3:G91) -> 0 | AS91: =IF(E91="","",INDEX(Four!A:G,MATCH(الالتزام!E91,ممون,0),4)) ->  | AV91: 0 | BJ91: =IF(D91="","",INDEX([4]BG!$A$3:$B$65,MATCH(D91,البند,0),1)) -> 
A92: 90 | B92: =IF(D92="","",INDEX([4]BG!A$3:$A$65,MATCH(D92,البند,0))) ->  | G92: 0 | AR92: =IF(B92="",0,LOOKUP(B92,[4]BG!$A$3:$A$65,[4]BG!$H$3:$H$65))-SUMIF($B$3:B92,B92,$G$3:G92) -> 0 | AS92: =IF(E92="","",INDEX(Four!A:G,MATCH(الالتزام!E92,ممون,0),4)) ->  | AV92: 0 | BJ92: =IF(D92="","",INDEX([4]BG!$A$3:$B$65,MATCH(D92,البند,0),1)) -> 
A93: 91 | B93: =IF(D93="","",INDEX([4]BG!A$3:$A$65,MATCH(D93,البند,0))) ->  | G93: 0 | AR93: =IF(B93="",0,LOOKUP(B93,[4]BG!$A$3:$A$65,[4]BG!$H$3:$H$65))-SUMIF($B$3:B93,B93,$G$3:G93) -> 0 | AS93: =IF(E93="","",INDEX(Four!A:G,MATCH(الالتزام!E93,ممون,0),4)) ->  | AV93: 0 | BJ93: =IF(D93="","",INDEX([4]BG!$A$3:$B$65,MATCH(D93,البند,0),1)) -> 
A94: 92 | B94: =IF(D94="","",INDEX([4]BG!A$3:$A$65,MATCH(D94,البند,0))) ->  | G94: 0 | AR94: =IF(B94="",0,LOOKUP(B94,[4]BG!$A$3:$A$65,[4]BG!$H$3:$H$65))-SUMIF($B$3:B94,B94,$G$3:G94) -> 0 | AS94: =IF(E94="","",INDEX(Four!A:G,MATCH(الالتزام!E94,ممون,0),4)) ->  | AV94: 0 | BJ94: =IF(D94="","",INDEX([4]BG!$A$3:$B$65,MATCH(D94,البند,0),1)) -> 
A95: 93 | B95: =IF(D95="","",INDEX([4]BG!A$3:$A$65,MATCH(D95,البند,0))) ->  | G95: 0 | AR95: =IF(B95="",0,LOOKUP(B95,[4]BG!$A$3:$A$65,[4]BG!$H$3:$H$65))-SUMIF($B$3:B95,B95,$G$3:G95) -> 0 | AS95: =IF(E95="","",INDEX(Four!A:G,MATCH(الالتزام!E95,ممون,0),4)) ->  | AV95: 0 | BJ95: =IF(D95="","",INDEX([4]BG!$A$3:$B$65,MATCH(D95,البند,0),1)) -> 
A96: 94 | B96: =IF(D96="","",INDEX([4]BG!A$3:$A$65,MATCH(D96,البند,0))) ->  | G96: 0 | AR96: =IF(B96="",0,LOOKUP(B96,[4]BG!$A$3:$A$65,[4]BG!$H$3:$H$65))-SUMIF($B$3:B96,B96,$G$3:G96) -> 0 | AS96: =IF(E96="","",INDEX(Four!A:G,MATCH(الالتزام!E96,ممون,0),4)) ->  | AV96: 0 | BJ96: =IF(D96="","",INDEX([4]BG!$A$3:$B$65,MATCH(D96,البند,0),1)) -> 
A97: 95 | B97: =IF(D97="","",INDEX([4]BG!A$3:$A$65,MATCH(D97,البند,0))) ->  | G97: 0 | AR97: =IF(B97="",0,LOOKUP(B97,[4]BG!$A$3:$A$65,[4]BG!$H$3:$H$65))-SUMIF($B$3:B97,B97,$G$3:G97) -> 0 | AS97: =IF(E97="","",INDEX(Four!A:G,MATCH(الالتزام!E97,ممون,0),4)) ->  | AV97: 0 | BJ97: =IF(D97="","",INDEX([4]BG!$A$3:$B$65,MATCH(D97,البند,0),1)) -> 
A98: 96 | B98: =IF(D98="","",INDEX([4]BG!A$3:$A$65,MATCH(D98,البند,0))) ->  | G98: 0 | AR98: =IF(B98="",0,LOOKUP(B98,[4]BG!$A$3:$A$65,[4]BG!$H$3:$H$65))-SUMIF($B$3:B98,B98,$G$3:G98) -> 0 | AS98: =IF(E98="","",INDEX(Four!A:G,MATCH(الالتزام!E98,ممون,0),4)) ->  | AV98: 0 | BJ98: =IF(D98="","",INDEX([4]BG!$A$3:$B$65,MATCH(D98,البند,0),1)) -> 
A99: 97 | B99: =IF(D99="","",INDEX([4]BG!A$3:$A$65,MATCH(D99,البند,0))) ->  | G99: 0 | AR99: =IF(B99="",0,LOOKUP(B99,[4]BG!$A$3:$A$65,[4]BG!$H$3:$H$65))-SUMIF($B$3:B99,B99,$G$3:G99) -> 0 | AS99: =IF(E99="","",INDEX(Four!A:G,MATCH(الالتزام!E99,ممون,0),4)) ->  | AV99: 0 | BJ99: =IF(D99="","",INDEX([4]BG!$A$3:$B$65,MATCH(D99,البند,0),1)) -> 
A100: 98 | B100: =IF(D100="","",INDEX([4]BG!A$3:$A$65,MATCH(D100,البند,0))) ->  | G100: 0 | AR100: =IF(B100="",0,LOOKUP(B100,[4]BG!$A$3:$A$65,[4]BG!$H$3:$H$65))-SUMIF($B$3:B100,B100,$G$3:G100) -> 0 | AS100: =IF(E100="","",INDEX(Four!A:G,MATCH(الالتزام!E100,ممون,0),4)) ->  | AV100: 0 | BJ100: =IF(D100="","",INDEX([4]BG!$A$3:$B$65,MATCH(D100,البند,0),1)) -> 
A101: 99 | B101: =IF(D101="","",INDEX([4]BG!A$3:$A$65,MATCH(D101,البند,0))) ->  | G101: 0 | AR101: =IF(B101="",0,LOOKUP(B101,[4]BG!$A$3:$A$65,[4]BG!$H$3:$H$65))-SUMIF($B$3:B101,B101,$G$3:G101) -> 0 | AS101: =IF(E101="","",INDEX(Four!A:G,MATCH(الالتزام!E101,ممون,0),4)) ->  | AV101: 0 | BJ101: =IF(D101="","",INDEX([4]BG!$A$3:$B$65,MATCH(D101,البند,0),1)) -> 
A102: 100 | B102: =IF(D102="","",INDEX([4]BG!A$3:$A$65,MATCH(D102,البند,0))) ->  | G102: 0 | AR102: =IF(B102="",0,LOOKUP(B102,[4]BG!$A$3:$A$65,[4]BG!$H$3:$H$65))-SUMIF($B$3:B102,B102,$G$3:G102) -> 0 | AS102: =IF(E102="","",INDEX(Four!A:G,MATCH(الالتزام!E102,ممون,0),4)) ->  | AV102: 0 | BJ102: =IF(D102="","",INDEX([4]BG!$A$3:$B$65,MATCH(D102,البند,0),1)) -> 
A103: 101 | B103: =IF(D103="","",INDEX([4]BG!A$3:$A$65,MATCH(D103,البند,0))) ->  | G103: 0 | AR103: =IF(B103="",0,LOOKUP(B103,[4]BG!$A$3:$A$65,[4]BG!$H$3:$H$65))-SUMIF($B$3:B103,B103,$G$3:G103) -> 0 | AS103: =IF(E103="","",INDEX(Four!A:G,MATCH(الالتزام!E103,ممون,0),4)) ->  | AV103: 0 | BJ103: =IF(D103="","",INDEX([4]BG!$A$3:$B$65,MATCH(D103,البند,0),1)) -> 
A104: 102 | B104: =IF(D104="","",INDEX([4]BG!A$3:$A$65,MATCH(D104,البند,0))) ->  | G104: 0 | AR104: =IF(B104="",0,LOOKUP(B104,[4]BG!$A$3:$A$65,[4]BG!$H$3:$H$65))-SUMIF($B$3:B104,B104,$G$3:G104) -> 0 | AS104: =IF(E104="","",INDEX(Four!A:G,MATCH(الالتزام!E104,ممون,0),4)) ->  | AV104: 0 | BJ104: =IF(D104="","",INDEX([4]BG!$A$3:$B$65,MATCH(D104,البند,0),1)) -> 
A105: 103 | B105: =IF(D105="","",INDEX([4]BG!A$3:$A$65,MATCH(D105,البند,0))) ->  | G105: 0 | AR105: =IF(B105="",0,LOOKUP(B105,[4]BG!$A$3:$A$65,[4]BG!$H$3:$H$65))-SUMIF($B$3:B105,B105,$G$3:G105) -> 0 | AS105: =IF(E105="","",INDEX(Four!A:G,MATCH(الالتزام!E105,ممون,0),4)) ->  | AV105: 0 | BJ105: =IF(D105="","",INDEX([4]BG!$A$3:$B$65,MATCH(D105,البند,0),1)) -> 
A106: 104 | B106: =IF(D106="","",INDEX([4]BG!A$3:$A$65,MATCH(D106,البند,0))) ->  | G106: 0 | AR106: =IF(B106="",0,LOOKUP(B106,[4]BG!$A$3:$A$65,[4]BG!$H$3:$H$65))-SUMIF($B$3:B106,B106,$G$3:G106) -> 0 | AS106: =IF(E106="","",INDEX(Four!A:G,MATCH(الالتزام!E106,ممون,0),4)) ->  | AV106: 0 | BJ106: =IF(D106="","",INDEX([4]BG!$A$3:$B$65,MATCH(D106,البند,0),1)) -> 
A107: 105 | B107: =IF(D107="","",INDEX([4]BG!A$3:$A$65,MATCH(D107,البند,0))) ->  | G107: 0 | AR107: =IF(B107="",0,LOOKUP(B107,[4]BG!$A$3:$A$65,[4]BG!$H$3:$H$65))-SUMIF($B$3:B107,B107,$G$3:G107) -> 0 | AS107: =IF(E107="","",INDEX(Four!A:G,MATCH(الالتزام!E107,ممون,0),4)) ->  | AV107: 0 | BJ107: =IF(D107="","",INDEX([4]BG!$A$3:$B$65,MATCH(D107,البند,0),1)) -> 
A108: 106 | B108: =IF(D108="","",INDEX([4]BG!A$3:$A$65,MATCH(D108,البند,0))) ->  | G108: 0 | AR108: =IF(B108="",0,LOOKUP(B108,[4]BG!$A$3:$A$65,[4]BG!$H$3:$H$65))-SUMIF($B$3:B108,B108,$G$3:G108) -> 0 | AS108: =IF(E108="","",INDEX(Four!A:G,MATCH(الالتزام!E108,ممون,0),4)) ->  | AV108: 0 | BJ108: =IF(D108="","",INDEX([4]BG!$A$3:$B$65,MATCH(D108,البند,0),1)) -> 
A109: 107 | B109: =IF(D109="","",INDEX([4]BG!A$3:$A$65,MATCH(D109,البند,0))) ->  | G109: 0 | AR109: =IF(B109="",0,LOOKUP(B109,[4]BG!$A$3:$A$65,[4]BG!$H$3:$H$65))-SUMIF($B$3:B109,B109,$G$3:G109) -> 0 | AS109: =IF(E109="","",INDEX(Four!A:G,MATCH(الالتزام!E109,ممون,0),4)) ->  | AV109: 0 | BJ109: =IF(D109="","",INDEX([4]BG!$A$3:$B$65,MATCH(D109,البند,0),1)) -> 
A110: 108 | B110: =IF(D110="","",INDEX([4]BG!A$3:$A$65,MATCH(D110,البند,0))) ->  | G110: 0 | AR110: =IF(B110="",0,LOOKUP(B110,[4]BG!$A$3:$A$65,[4]BG!$H$3:$H$65))-SUMIF($B$3:B110,B110,$G$3:G110) -> 0 | AS110: =IF(E110="","",INDEX(Four!A:G,MATCH(الالتزام!E110,ممون,0),4)) ->  | AV110: 0 | BJ110: =IF(D110="","",INDEX([4]BG!$A$3:$B$65,MATCH(D110,البند,0),1)) -> 
A111: 109 | B111: =IF(D111="","",INDEX([4]BG!A$3:$A$65,MATCH(D111,البند,0))) ->  | G111: 0 | AR111: =IF(B111="",0,LOOKUP(B111,[4]BG!$A$3:$A$65,[4]BG!$H$3:$H$65))-SUMIF($B$3:B111,B111,$G$3:G111) -> 0 | AS111: =IF(E111="","",INDEX(Four!A:G,MATCH(الالتزام!E111,ممون,0),4)) ->  | AV111: 0 | BJ111: =IF(D111="","",INDEX([4]BG!$A$3:$B$65,MATCH(D111,البند,0),1)) -> 
A112: 110 | B112: =IF(D112="","",INDEX([4]BG!A$3:$A$65,MATCH(D112,البند,0))) ->  | G112: 0 | AR112: =IF(B112="",0,LOOKUP(B112,[4]BG!$A$3:$A$65,[4]BG!$H$3:$H$65))-SUMIF($B$3:B112,B112,$G$3:G112) -> 0 | AS112: =IF(E112="","",INDEX(Four!A:G,MATCH(الالتزام!E112,ممون,0),4)) ->  | AV112: 0 | BJ112: =IF(D112="","",INDEX([4]BG!$A$3:$B$65,MATCH(D112,البند,0),1)) -> 
A113: 111 | B113: =IF(D113="","",INDEX([4]BG!A$3:$A$65,MATCH(D113,البند,0))) ->  | G113: 0 | AR113: =IF(B113="",0,LOOKUP(B113,[4]BG!$A$3:$A$65,[4]BG!$H$3:$H$65))-SUMIF($B$3:B113,B113,$G$3:G113) -> 0 | AS113: =IF(E113="","",INDEX(Four!A:G,MATCH(الالتزام!E113,ممون,0),4)) ->  | AV113: 0 | BJ113: =IF(D113="","",INDEX([4]BG!$A$3:$B$65,MATCH(D113,البند,0),1)) -> 
A114: 112 | B114: =IF(D114="","",INDEX([4]BG!A$3:$A$65,MATCH(D114,البند,0))) ->  | G114: 0 | AR114: =IF(B114="",0,LOOKUP(B114,[4]BG!$A$3:$A$65,[4]BG!$H$3:$H$65))-SUMIF($B$3:B114,B114,$G$3:G114) -> 0 | AS114: =IF(E114="","",INDEX(Four!A:G,MATCH(الالتزام!E114,ممون,0),4)) ->  | AV114: 0 | BJ114: =IF(D114="","",INDEX([4]BG!$A$3:$B$65,MATCH(D114,البند,0),1)) -> 
A115: 113 | B115: =IF(D115="","",INDEX([4]BG!A$3:$A$65,MATCH(D115,البند,0))) ->  | G115: 0 | AR115: =IF(B115="",0,LOOKUP(B115,[4]BG!$A$3:$A$65,[4]BG!$H$3:$H$65))-SUMIF($B$3:B115,B115,$G$3:G115) -> 0 | AS115: =IF(E115="","",INDEX(Four!A:G,MATCH(الالتزام!E115,ممون,0),4)) ->  | AV115: 0 | BJ115: =IF(D115="","",INDEX([4]BG!$A$3:$B$65,MATCH(D115,البند,0),1)) -> 
A116: 114 | B116: =IF(D116="","",INDEX([4]BG!A$3:$A$65,MATCH(D116,البند,0))) ->  | G116: 0 | AR116: =IF(B116="",0,LOOKUP(B116,[4]BG!$A$3:$A$65,[4]BG!$H$3:$H$65))-SUMIF($B$3:B116,B116,$G$3:G116) -> 0 | AS116: =IF(E116="","",INDEX(Four!A:G,MATCH(الالتزام!E116,ممون,0),4)) ->  | AV116: 0 | BJ116: =IF(D116="","",INDEX([4]BG!$A$3:$B$65,MATCH(D116,البند,0),1)) -> 
B117: =IF(D117="","",INDEX([4]BG!A$3:$A$65,MATCH(D117,البند,0))) ->  | G117: 0 | AR117: =IF(B117="",0,LOOKUP(B117,[4]BG!$A$3:$A$65,[4]BG!$H$3:$H$65))-SUMIF($B$3:B117,B117,$G$3:G117) -> 0 | AS117: =IF(E117="","",INDEX(Four!A:G,MATCH(الالتزام!E117,ممون,0),4)) ->  | AV117: 0 | BJ117: =IF(D117="","",INDEX([4]BG!$A$3:$B$65,MATCH(D117,البند,0),1)) -> 
B118: =IF(D118="","",INDEX([4]BG!A$3:$A$65,MATCH(D118,البند,0))) ->  | G118: 0 | AR118: =IF(B118="",0,LOOKUP(B118,[4]BG!$A$3:$A$65,[4]BG!$H$3:$H$65))-SUMIF($B$3:B118,B118,$G$3:G118) -> 0 | AS118: =IF(E118="","",INDEX(Four!A:G,MATCH(الالتزام!E118,ممون,0),4)) ->  | AV118: 0 | BJ118: =IF(D118="","",INDEX([4]BG!$A$3:$B$65,MATCH(D118,البند,0),1)) -> 
B119: =IF(D119="","",INDEX([4]BG!A$3:$A$65,MATCH(D119,البند,0))) ->  | G119: 0 | AR119: =IF(B119="",0,LOOKUP(B119,[4]BG!$A$3:$A$65,[4]BG!$H$3:$H$65))-SUMIF($B$3:B119,B119,$G$3:G119) -> 0 | AS119: =IF(E119="","",INDEX(Four!A:G,MATCH(الالتزام!E119,ممون,0),4)) ->  | AV119: 0 | BJ119: =IF(D119="","",INDEX([4]BG!$A$3:$B$65,MATCH(D119,البند,0),1)) -> 
B120: =IF(D120="","",INDEX([4]BG!A$3:$A$65,MATCH(D120,البند,0))) ->  | G120: 0 | AR120: =IF(B120="",0,LOOKUP(B120,[4]BG!$A$3:$A$65,[4]BG!$H$3:$H$65))-SUMIF($B$3:B120,B120,$G$3:G120) -> 0 | AS120: =IF(E120="","",INDEX(Four!A:G,MATCH(الالتزام!E120,ممون,0),4)) ->  | AV120: 0 | BJ120: =IF(D120="","",INDEX([4]BG!$A$3:$B$65,MATCH(D120,البند,0),1)) -> 
B121: =IF(D121="","",INDEX([4]BG!A$3:$A$65,MATCH(D121,البند,0))) ->  | G121: 0 | AR121: =IF(B121="",0,LOOKUP(B121,[4]BG!$A$3:$A$65,[4]BG!$H$3:$H$65))-SUMIF($B$3:B121,B121,$G$3:G121) -> 0 | AS121: =IF(E121="","",INDEX(Four!A:G,MATCH(الالتزام!E121,ممون,0),4)) ->  | AV121: 0 | BJ121: =IF(D121="","",INDEX([4]BG!$A$3:$B$65,MATCH(D121,البند,0),1)) -> 
B122: =IF(D122="","",INDEX([4]BG!A$3:$A$65,MATCH(D122,البند,0))) ->  | G122: 0 | AR122: =IF(B122="",0,LOOKUP(B122,[4]BG!$A$3:$A$65,[4]BG!$H$3:$H$65))-SUMIF($B$3:B122,B122,$G$3:G122) -> 0 | AS122: =IF(E122="","",INDEX(Four!A:G,MATCH(الالتزام!E122,ممون,0),4)) ->  | AV122: 0 | BJ122: =IF(D122="","",INDEX([4]BG!$A$3:$B$65,MATCH(D122,البند,0),1)) -> 
B123: =IF(D123="","",INDEX([4]BG!A$3:$A$65,MATCH(D123,البند,0))) ->  | G123: 0 | AR123: =IF(B123="",0,LOOKUP(B123,[4]BG!$A$3:$A$65,[4]BG!$H$3:$H$65))-SUMIF($B$3:B123,B123,$G$3:G123) -> 0 | AS123: =IF(E123="","",INDEX(Four!A:G,MATCH(الالتزام!E123,ممون,0),4)) ->  | AV123: 0 | BJ123: =IF(D123="","",INDEX([4]BG!$A$3:$B$65,MATCH(D123,البند,0),1)) -> 
B124: =IF(D124="","",INDEX([4]BG!A$3:$A$65,MATCH(D124,البند,0))) ->  | G124: 0 | AR124: =IF(B124="",0,LOOKUP(B124,[4]BG!$A$3:$A$65,[4]BG!$H$3:$H$65))-SUMIF($B$3:B124,B124,$G$3:G124) -> 0 | AS124: =IF(E124="","",INDEX(Four!A:G,MATCH(الالتزام!E124,ممون,0),4)) ->  | AV124: 0 | BJ124: =IF(D124="","",INDEX([4]BG!$A$3:$B$65,MATCH(D124,البند,0),1)) -> 
B125: =IF(D125="","",INDEX([4]BG!A$3:$A$65,MATCH(D125,البند,0))) ->  | G125: 0 | AR125: =IF(B125="",0,LOOKUP(B125,[4]BG!$A$3:$A$65,[4]BG!$H$3:$H$65))-SUMIF($B$3:B125,B125,$G$3:G125) -> 0 | AS125: =IF(E125="","",INDEX(Four!A:G,MATCH(الالتزام!E125,ممون,0),4)) ->  | AV125: 0 | BJ125: =IF(D125="","",INDEX([4]BG!$A$3:$B$65,MATCH(D125,البند,0),1)) -> 
B126: =IF(D126="","",INDEX([4]BG!A$3:$A$65,MATCH(D126,البند,0))) ->  | G126: 0 | AR126: =IF(B126="",0,LOOKUP(B126,[4]BG!$A$3:$A$65,[4]BG!$H$3:$H$65))-SUMIF($B$3:B126,B126,$G$3:G126) -> 0 | AS126: =IF(E126="","",INDEX(Four!A:G,MATCH(الالتزام!E126,ممون,0),4)) ->  | AV126: 0 | BJ126: =IF(D126="","",INDEX([4]BG!$A$3:$B$65,MATCH(D126,البند,0),1)) -> 
B127: =IF(D127="","",INDEX([4]BG!A$3:$A$65,MATCH(D127,البند,0))) ->  | G127: 0 | AR127: =IF(B127="",0,LOOKUP(B127,[4]BG!$A$3:$A$65,[4]BG!$H$3:$H$65))-SUMIF($B$3:B127,B127,$G$3:G127) -> 0 | AS127: =IF(E127="","",INDEX(Four!A:G,MATCH(الالتزام!E127,ممون,0),4)) ->  | AV127: 0 | BJ127: =IF(D127="","",INDEX([4]BG!$A$3:$B$65,MATCH(D127,البند,0),1)) -> 
B128: =IF(D128="","",INDEX([4]BG!A$3:$A$65,MATCH(D128,البند,0))) ->  | G128: 0 | AR128: =IF(B128="",0,LOOKUP(B128,[4]BG!$A$3:$A$65,[4]BG!$H$3:$H$65))-SUMIF($B$3:B128,B128,$G$3:G128) -> 0 | AS128: =IF(E128="","",INDEX(Four!A:G,MATCH(الالتزام!E128,ممون,0),4)) ->  | AV128: 0 | BJ128: =IF(D128="","",INDEX([4]BG!$A$3:$B$65,MATCH(D128,البند,0),1)) -> 
B129: =IF(D129="","",INDEX([4]BG!A$3:$A$65,MATCH(D129,البند,0))) ->  | G129: 0 | AR129: =IF(B129="",0,LOOKUP(B129,[4]BG!$A$3:$A$65,[4]BG!$H$3:$H$65))-SUMIF($B$3:B129,B129,$G$3:G129) -> 0 | AS129: =IF(E129="","",INDEX(Four!A:G,MATCH(الالتزام!E129,ممون,0),4)) ->  | AV129: 0 | BJ129: =IF(D129="","",INDEX([4]BG!$A$3:$B$65,MATCH(D129,البند,0),1)) -> 
B130: =IF(D130="","",INDEX([4]BG!A$3:$A$65,MATCH(D130,البند,0))) ->  | G130: 0 | AR130: =IF(B130="",0,LOOKUP(B130,[4]BG!$A$3:$A$65,[4]BG!$H$3:$H$65))-SUMIF($B$3:B130,B130,$G$3:G130) -> 0 | AS130: =IF(E130="","",INDEX(Four!A:G,MATCH(الالتزام!E130,ممون,0),4)) ->  | AV130: 0 | BJ130: =IF(D130="","",INDEX([4]BG!$A$3:$B$65,MATCH(D130,البند,0),1)) -> 
B131: =IF(D131="","",INDEX([4]BG!A$3:$A$65,MATCH(D131,البند,0))) ->  | G131: 0 | AR131: =IF(B131="",0,LOOKUP(B131,[4]BG!$A$3:$A$65,[4]BG!$H$3:$H$65))-SUMIF($B$3:B131,B131,$G$3:G131) -> 0 | AS131: =IF(E131="","",INDEX(Four!A:G,MATCH(الالتزام!E131,ممون,0),4)) ->  | AV131: 0 | AY131: =IFERROR(LOOKUP(LEFT(AS131,3),$BF$3:$BF$33,$BH$3:$BH$33),"") ->  | BJ131: =IF(D131="","",INDEX([4]BG!$A$3:$B$65,MATCH(D131,البند,0),1)) -> 
B132: =IF(D132="","",INDEX([4]BG!A$3:$A$65,MATCH(D132,البند,0))) ->  | G132: 0 | AR132: =IF(B132="",0,LOOKUP(B132,[4]BG!$A$3:$A$65,[4]BG!$H$3:$H$65))-SUMIF($B$3:B132,B132,$G$3:G132) -> 0 | AS132: =IF(E132="","",INDEX(Four!A:G,MATCH(الالتزام!E132,ممون,0),4)) ->  | AV132: 0 | AX132: =LEFT(AS132,3) ->  | AZ132: =IFERROR(LOOKUP(LEFT(AS132,3),$BF$3:$BF$33,$BG$3:$BG$33),"") ->  | BJ132: =IF(D132="","",INDEX([4]BG!$A$3:$B$65,MATCH(D132,البند,0),1)) -> 
B133: =IF(D133="","",INDEX([4]BG!A$3:$A$65,MATCH(D133,البند,0))) ->  | G133: 0 | AR133: =IF(B133="",0,LOOKUP(B133,[4]BG!$A$3:$A$65,[4]BG!$H$3:$H$65))-SUMIF($B$3:B133,B133,$G$3:G133) -> 0 | AS133: =IF(E133="","",INDEX(Four!A:G,MATCH(الالتزام!E133,ممون,0),4)) ->  | AV133: 0 | BJ133: =IF(D133="","",INDEX([4]BG!$A$3:$B$65,MATCH(D133,البند,0),1)) ->  | BK133: =RIGHT(BJ133,1) -> 
B134: =IF(D134="","",INDEX([4]BG!A$3:$A$65,MATCH(D134,البند,0))) ->  | G134: =J134+N134+R134+V134+Z134+AD134 -> 0 | AR134: =IF(B134="",0,LOOKUP(B134,[4]BG!$A$3:$A$65,[4]BG!$H$3:$H$65))-SUMIF($B$3:B134,B134,$G$3:G134) -> 0 | AS134: =IF(E134="","",INDEX(Four!A:G,MATCH(الالتزام!E134,ممون,0),4)) ->  | AV134: 0 | BJ134: =IF(D134="","",INDEX([4]BG!$A$3:$B$65,MATCH(D134,البند,0),1)) ->  | BL134: =IF(BJ134="","",LEFT(RIGHT(BJ134,4),2)) -> 
B135: =IF(D135="","",INDEX([4]BG!A$3:$A$65,MATCH(D135,البند,0))) ->  | G135: 0 | AR135: =IF(B135="",0,LOOKUP(B135,[4]BG!$A$3:$A$65,[4]BG!$H$3:$H$65))-SUMIF($B$3:B135,B135,$G$3:G135) -> 0 | AS135: =IF(E135="","",INDEX(Four!A:G,MATCH(الالتزام!E135,ممون,0),4)) ->  | AV135: 0 | BJ135: =IF(D135="","",INDEX([4]BG!$A$3:$B$65,MATCH(D135,البند,0),1)) -> 
B136: =IF(D136="","",INDEX([4]BG!A$3:$A$65,MATCH(D136,البند,0))) ->  | G136: 0 | AR136: =IF(B136="",0,LOOKUP(B136,[4]BG!$A$3:$A$65,[4]BG!$H$3:$H$65))-SUMIF($B$3:B136,B136,$G$3:G136) -> 0 | AS136: =IF(E136="","",INDEX(Four!A:G,MATCH(الالتزام!E136,ممون,0),4)) ->  | AV136: 0 | BJ136: =IF(D136="","",INDEX([4]BG!$A$3:$B$65,MATCH(D136,البند,0),1)) -> 
B137: =IF(D137="","",INDEX([4]BG!A$3:$A$65,MATCH(D137,البند,0))) ->  | G137: 0 | AR137: =IF(B137="",0,LOOKUP(B137,[4]BG!$A$3:$A$65,[4]BG!$H$3:$H$65))-SUMIF($B$3:B137,B137,$G$3:G137) -> 0 | AS137: =IF(E137="","",INDEX(Four!A:G,MATCH(الالتزام!E137,ممون,0),4)) ->  | AV137: =SUMIF(AU:AU,AU137,G:G) -> 0 | BJ137: =IF(D137="","",INDEX([4]BG!$A$3:$B$65,MATCH(D137,البند,0),1)) -> 
B138: =IF(D138="","",INDEX([4]BG!A$3:$A$65,MATCH(D138,البند,0))) ->  | G138: 0 | AR138: =IF(B138="",0,LOOKUP(B138,[4]BG!$A$3:$A$65,[4]BG!$H$3:$H$65))-SUMIF($B$3:B138,B138,$G$3:G138) -> 0 | AS138: =IF(E138="","",INDEX(Four!A:G,MATCH(الالتزام!E138,ممون,0),4)) ->  | AV138: 0 | BJ138: =IF(D138="","",INDEX([4]BG!$A$3:$B$65,MATCH(D138,البند,0),1)) -> 
B139: =IF(D139="","",INDEX([4]BG!A$3:$A$65,MATCH(D139,البند,0))) ->  | G139: 0 | AR139: =IF(B139="",0,LOOKUP(B139,[4]BG!$A$3:$A$65,[4]BG!$H$3:$H$65))-SUMIF($B$3:B139,B139,$G$3:G139) -> 0 | AS139: =IF(E139="","",INDEX(Four!A:G,MATCH(الالتزام!E139,ممون,0),4)) ->  | AV139: 0 | BJ139: =IF(D139="","",INDEX([4]BG!$A$3:$B$65,MATCH(D139,البند,0),1)) -> 
B140: =IF(D140="","",INDEX([4]BG!A$3:$A$65,MATCH(D140,البند,0))) ->  | G140: 0 | AR140: =IF(B140="",0,LOOKUP(B140,[4]BG!$A$3:$A$65,[4]BG!$H$3:$H$65))-SUMIF($B$3:B140,B140,$G$3:G140) -> 0 | AS140: =IF(E140="","",INDEX(Four!A:G,MATCH(الالتزام!E140,ممون,0),4)) ->  | AV140: 0 | BJ140: =IF(D140="","",INDEX([4]BG!$A$3:$B$65,MATCH(D140,البند,0),1)) -> 
B141: =IF(D141="","",INDEX([4]BG!A$3:$A$65,MATCH(D141,البند,0))) ->  | G141: 0 | AR141: =IF(B141="",0,LOOKUP(B141,[4]BG!$A$3:$A$65,[4]BG!$H$3:$H$65))-SUMIF($B$3:B141,B141,$G$3:G141) -> 0 | AS141: =IF(E141="","",INDEX(Four!A:G,MATCH(الالتزام!E141,ممون,0),4)) ->  | AV141: 0 | BJ141: =IF(D141="","",INDEX([4]BG!$A$3:$B$65,MATCH(D141,البند,0),1)) -> 
B142: =IF(D142="","",INDEX([4]BG!A$3:$A$65,MATCH(D142,البند,0))) ->  | G142: 0 | AR142: =IF(B142="",0,LOOKUP(B142,[4]BG!$A$3:$A$65,[4]BG!$H$3:$H$65))-SUMIF($B$3:B142,B142,$G$3:G142) -> 0 | AS142: =IF(E142="","",INDEX(Four!A:G,MATCH(الالتزام!E142,ممون,0),4)) ->  | AV142: 0 | BJ142: =IF(D142="","",INDEX([4]BG!$A$3:$B$65,MATCH(D142,البند,0),1)) -> 
B143: =IF(D143="","",INDEX([4]BG!A$3:$A$65,MATCH(D143,البند,0))) ->  | G143: 0 | AR143: =IF(B143="",0,LOOKUP(B143,[4]BG!$A$3:$A$65,[4]BG!$H$3:$H$65))-SUMIF($B$3:B143,B143,$G$3:G143) -> 0 | AS143: =IF(E143="","",INDEX(Four!A:G,MATCH(الالتزام!E143,ممون,0),4)) ->  | AV143: 0 | BJ143: =IF(D143="","",INDEX([4]BG!$A$3:$B$65,MATCH(D143,البند,0),1)) -> 
B144: =IF(D144="","",INDEX([4]BG!A$3:$A$65,MATCH(D144,البند,0))) ->  | G144: 0 | AR144: =IF(B144="",0,LOOKUP(B144,[4]BG!$A$3:$A$65,[4]BG!$H$3:$H$65))-SUMIF($B$3:B144,B144,$G$3:G144) -> 0 | AS144: =IF(E144="","",INDEX(Four!A:G,MATCH(الالتزام!E144,ممون,0),4)) ->  | AV144: 0 | BJ144: =IF(D144="","",INDEX([4]BG!$A$3:$B$65,MATCH(D144,البند,0),1)) -> 
B145: =IF(D145="","",INDEX([4]BG!A$3:$A$65,MATCH(D145,البند,0))) ->  | G145: 0 | AR145: =IF(B145="",0,LOOKUP(B145,[4]BG!$A$3:$A$65,[4]BG!$H$3:$H$65))-SUMIF($B$3:B145,B145,$G$3:G145) -> 0 | AS145: =IF(E145="","",INDEX(Four!A:G,MATCH(الالتزام!E145,ممون,0),4)) ->  | AV145: 0 | BJ145: =IF(D145="","",INDEX([4]BG!$A$3:$B$65,MATCH(D145,البند,0),1)) -> 
B146: =IF(D146="","",INDEX([4]BG!A$3:$A$65,MATCH(D146,البند,0))) ->  | G146: 0 | AR146: =IF(B146="",0,LOOKUP(B146,[4]BG!$A$3:$A$65,[4]BG!$H$3:$H$65))-SUMIF($B$3:B146,B146,$G$3:G146) -> 0 | AS146: =IF(E146="","",INDEX(Four!A:G,MATCH(الالتزام!E146,ممون,0),4)) ->  | AV146: 0 | BJ146: =IF(D146="","",INDEX([4]BG!$A$3:$B$65,MATCH(D146,البند,0),1)) -> 
B147: =IF(D147="","",INDEX([4]BG!A$3:$A$65,MATCH(D147,البند,0))) ->  | G147: 0 | AR147: =IF(B147="",0,LOOKUP(B147,[4]BG!$A$3:$A$65,[4]BG!$H$3:$H$65))-SUMIF($B$3:B147,B147,$G$3:G147) -> 0 | AS147: =IF(E147="","",INDEX(Four!A:G,MATCH(الالتزام!E147,ممون,0),4)) ->  | AV147: 0 | BJ147: =IF(D147="","",INDEX([4]BG!$A$3:$B$65,MATCH(D147,البند,0),1)) -> 
B148: =IF(D148="","",INDEX([4]BG!A$3:$A$65,MATCH(D148,البند,0))) ->  | G148: 0 | AR148: =IF(B148="",0,LOOKUP(B148,[4]BG!$A$3:$A$65,[4]BG!$H$3:$H$65))-SUMIF($B$3:B148,B148,$G$3:G148) -> 0 | AS148: =IF(E148="","",INDEX(Four!A:G,MATCH(الالتزام!E148,ممون,0),4)) ->  | AV148: 0 | BJ148: =IF(D148="","",INDEX([4]BG!$A$3:$B$65,MATCH(D148,البند,0),1)) -> 
B149: =IF(D149="","",INDEX([4]BG!A$3:$A$65,MATCH(D149,البند,0))) ->  | G149: 0 | AR149: =IF(B149="",0,LOOKUP(B149,[4]BG!$A$3:$A$65,[4]BG!$H$3:$H$65))-SUMIF($B$3:B149,B149,$G$3:G149) -> 0 | AS149: =IF(E149="","",INDEX(Four!A:G,MATCH(الالتزام!E149,ممون,0),4)) ->  | AV149: 0 | BJ149: =IF(D149="","",INDEX([4]BG!$A$3:$B$65,MATCH(D149,البند,0),1)) -> 
B150: =IF(D150="","",INDEX([4]BG!A$3:$A$65,MATCH(D150,البند,0))) ->  | G150: 0 | AR150: =IF(B150="",0,LOOKUP(B150,[4]BG!$A$3:$A$65,[4]BG!$H$3:$H$65))-SUMIF($B$3:B150,B150,$G$3:G150) -> 0 | AS150: =IF(E150="","",INDEX(Four!A:G,MATCH(الالتزام!E150,ممون,0),4)) ->  | AV150: 0 | BJ150: =IF(D150="","",INDEX([4]BG!$A$3:$B$65,MATCH(D150,البند,0),1)) -> 
B151: =IF(D151="","",INDEX([4]BG!A$3:$A$65,MATCH(D151,البند,0))) ->  | G151: 0 | AR151: =IF(B151="",0,LOOKUP(B151,[4]BG!$A$3:$A$65,[4]BG!$H$3:$H$65))-SUMIF($B$3:B151,B151,$G$3:G151) -> 0 | AS151: =IF(E151="","",INDEX(Four!A:G,MATCH(الالتزام!E151,ممون,0),4)) ->  | AV151: 0 | BJ151: =IF(D151="","",INDEX([4]BG!$A$3:$B$65,MATCH(D151,البند,0),1)) -> 
B152: =IF(D152="","",INDEX([4]BG!A$3:$A$65,MATCH(D152,البند,0))) ->  | G152: 0 | AR152: =IF(B152="",0,LOOKUP(B152,[4]BG!$A$3:$A$65,[4]BG!$H$3:$H$65))-SUMIF($B$3:B152,B152,$G$3:G152) -> 0 | AS152: =IF(E152="","",INDEX(Four!A:G,MATCH(الالتزام!E152,ممون,0),4)) ->  | AV152: 0 | BJ152: =IF(D152="","",INDEX([4]BG!$A$3:$B$65,MATCH(D152,البند,0),1)) -> 
B153: =IF(D153="","",INDEX([4]BG!A$3:$A$65,MATCH(D153,البند,0))) ->  | G153: 0 | AR153: =IF(B153="",0,LOOKUP(B153,[4]BG!$A$3:$A$65,[4]BG!$H$3:$H$65))-SUMIF($B$3:B153,B153,$G$3:G153) -> 0 | AS153: =IF(E153="","",INDEX(Four!A:G,MATCH(الالتزام!E153,ممون,0),4)) ->  | AV153: 0 | BJ153: =IF(D153="","",INDEX([4]BG!$A$3:$B$65,MATCH(D153,البند,0),1)) -> 
B154: =IF(D154="","",INDEX([4]BG!A$3:$A$65,MATCH(D154,البند,0))) ->  | G154: 0 | AR154: =IF(B154="",0,LOOKUP(B154,[4]BG!$A$3:$A$65,[4]BG!$H$3:$H$65))-SUMIF($B$3:B154,B154,$G$3:G154) -> 0 | AS154: =IF(E154="","",INDEX(Four!A:G,MATCH(الالتزام!E154,ممون,0),4)) ->  | AV154: 0 | BJ154: =IF(D154="","",INDEX([4]BG!$A$3:$B$65,MATCH(D154,البند,0),1)) -> 
B155: =IF(D155="","",INDEX([4]BG!A$3:$A$65,MATCH(D155,البند,0))) ->  | G155: 0 | AR155: =IF(B155="",0,LOOKUP(B155,[4]BG!$A$3:$A$65,[4]BG!$H$3:$H$65))-SUMIF($B$3:B155,B155,$G$3:G155) -> 0 | AS155: =IF(E155="","",INDEX(Four!A:G,MATCH(الالتزام!E155,ممون,0),4)) ->  | AV155: 0 | BJ155: =IF(D155="","",INDEX([4]BG!$A$3:$B$65,MATCH(D155,البند,0),1)) -> 
B156: =IF(D156="","",INDEX([4]BG!A$3:$A$65,MATCH(D156,البند,0))) ->  | G156: 0 | AR156: =IF(B156="",0,LOOKUP(B156,[4]BG!$A$3:$A$65,[4]BG!$H$3:$H$65))-SUMIF($B$3:B156,B156,$G$3:G156) -> 0 | AS156: =IF(E156="","",INDEX(Four!A:G,MATCH(الالتزام!E156,ممون,0),4)) ->  | AV156: 0 | BJ156: =IF(D156="","",INDEX([4]BG!$A$3:$B$65,MATCH(D156,البند,0),1)) -> 
B157: =IF(D157="","",INDEX([4]BG!A$3:$A$65,MATCH(D157,البند,0))) ->  | G157: 0 | AR157: =IF(B157="",0,LOOKUP(B157,[4]BG!$A$3:$A$65,[4]BG!$H$3:$H$65))-SUMIF($B$3:B157,B157,$G$3:G157) -> 0 | AS157: =IF(E157="","",INDEX(Four!A:G,MATCH(الالتزام!E157,ممون,0),4)) ->  | AV157: 0 | BJ157: =IF(D157="","",INDEX([4]BG!$A$3:$B$65,MATCH(D157,البند,0),1)) -> 
B158: =IF(D158="","",INDEX([4]BG!A$3:$A$65,MATCH(D158,البند,0))) ->  | G158: 0 | AR158: =IF(B158="",0,LOOKUP(B158,[4]BG!$A$3:$A$65,[4]BG!$H$3:$H$65))-SUMIF($B$3:B158,B158,$G$3:G158) -> 0 | AS158: =IF(E158="","",INDEX(Four!A:G,MATCH(الالتزام!E158,ممون,0),4)) ->  | AV158: 0 | BJ158: =IF(D158="","",INDEX([4]BG!$A$3:$B$65,MATCH(D158,البند,0),1)) -> 
B159: =IF(D159="","",INDEX([4]BG!A$3:$A$65,MATCH(D159,البند,0))) ->  | G159: 0 | AR159: =IF(B159="",0,LOOKUP(B159,[4]BG!$A$3:$A$65,[4]BG!$H$3:$H$65))-SUMIF($B$3:B159,B159,$G$3:G159) -> 0 | AS159: =IF(E159="","",INDEX(Four!A:G,MATCH(الالتزام!E159,ممون,0),4)) ->  | AV159: 0 | BJ159: =IF(D159="","",INDEX([4]BG!$A$3:$B$65,MATCH(D159,البند,0),1)) -> 
B160: =IF(D160="","",INDEX([4]BG!A$3:$A$65,MATCH(D160,البند,0))) ->  | G160: 0 | AR160: =IF(B160="",0,LOOKUP(B160,[4]BG!$A$3:$A$65,[4]BG!$H$3:$H$65))-SUMIF($B$3:B160,B160,$G$3:G160) -> 0 | AS160: =IF(E160="","",INDEX(Four!A:G,MATCH(الالتزام!E160,ممون,0),4)) ->  | AV160: 0 | BJ160: =IF(D160="","",INDEX([4]BG!$A$3:$B$65,MATCH(D160,البند,0),1)) -> 
B161: =IF(D161="","",INDEX([4]BG!A$3:$A$65,MATCH(D161,البند,0))) ->  | G161: 0 | AR161: =IF(B161="",0,LOOKUP(B161,[4]BG!$A$3:$A$65,[4]BG!$H$3:$H$65))-SUMIF($B$3:B161,B161,$G$3:G161) -> 0 | AS161: =IF(E161="","",INDEX(Four!A:G,MATCH(الالتزام!E161,ممون,0),4)) ->  | AV161: 0 | BJ161: =IF(D161="","",INDEX([4]BG!$A$3:$B$65,MATCH(D161,البند,0),1)) -> 
B162: =IF(D162="","",INDEX([4]BG!A$3:$A$65,MATCH(D162,البند,0))) ->  | G162: 0 | AR162: =IF(B162="",0,LOOKUP(B162,[4]BG!$A$3:$A$65,[4]BG!$H$3:$H$65))-SUMIF($B$3:B162,B162,$G$3:G162) -> 0 | AS162: =IF(E162="","",INDEX(Four!A:G,MATCH(الالتزام!E162,ممون,0),4)) ->  | AV162: 0 | BJ162: =IF(D162="","",INDEX([4]BG!$A$3:$B$65,MATCH(D162,البند,0),1)) -> 
B163: =IF(D163="","",INDEX([4]BG!A$3:$A$65,MATCH(D163,البند,0))) ->  | G163: 0 | AR163: =IF(B163="",0,LOOKUP(B163,[4]BG!$A$3:$A$65,[4]BG!$H$3:$H$65))-SUMIF($B$3:B163,B163,$G$3:G163) -> 0 | AS163: =IF(E163="","",INDEX(Four!A:G,MATCH(الالتزام!E163,ممون,0),4)) ->  | AV163: 0 | BJ163: =IF(D163="","",INDEX([4]BG!$A$3:$B$65,MATCH(D163,البند,0),1)) -> 
B164: =IF(D164="","",INDEX([4]BG!A$3:$A$65,MATCH(D164,البند,0))) ->  | G164: 0 | AR164: =IF(B164="",0,LOOKUP(B164,[4]BG!$A$3:$A$65,[4]BG!$H$3:$H$65))-SUMIF($B$3:B164,B164,$G$3:G164) -> 0 | AS164: =IF(E164="","",INDEX(Four!A:G,MATCH(الالتزام!E164,ممون,0),4)) ->  | AV164: 0 | BJ164: =IF(D164="","",INDEX([4]BG!$A$3:$B$65,MATCH(D164,البند,0),1)) -> 
B165: =IF(D165="","",INDEX([4]BG!A$3:$A$65,MATCH(D165,البند,0))) ->  | G165: 0 | AR165: =IF(B165="",0,LOOKUP(B165,[4]BG!$A$3:$A$65,[4]BG!$H$3:$H$65))-SUMIF($B$3:B165,B165,$G$3:G165) -> 0 | AS165: =IF(E165="","",INDEX(Four!A:G,MATCH(الالتزام!E165,ممون,0),4)) ->  | AV165: 0 | BJ165: =IF(D165="","",INDEX([4]BG!$A$3:$B$65,MATCH(D165,البند,0),1)) -> 
B166: =IF(D166="","",INDEX([4]BG!A$3:$A$65,MATCH(D166,البند,0))) ->  | G166: 0 | AR166: =IF(B166="",0,LOOKUP(B166,[4]BG!$A$3:$A$65,[4]BG!$H$3:$H$65))-SUMIF($B$3:B166,B166,$G$3:G166) -> 0 | AS166: =IF(E166="","",INDEX(Four!A:G,MATCH(الالتزام!E166,ممون,0),4)) ->  | AV166: 0 | BJ166: =IF(D166="","",INDEX([4]BG!$A$3:$B$65,MATCH(D166,البند,0),1)) -> 
B167: =IF(D167="","",INDEX([4]BG!A$3:$A$65,MATCH(D167,البند,0))) ->  | G167: 0 | AR167: =IF(B167="",0,LOOKUP(B167,[4]BG!$A$3:$A$65,[4]BG!$H$3:$H$65))-SUMIF($B$3:B167,B167,$G$3:G167) -> 0 | AS167: =IF(E167="","",INDEX(Four!A:G,MATCH(الالتزام!E167,ممون,0),4)) ->  | AV167: 0 | BJ167: =IF(D167="","",INDEX([4]BG!$A$3:$B$65,MATCH(D167,البند,0),1)) -> 
B168: =IF(D168="","",INDEX([4]BG!A$3:$A$65,MATCH(D168,البند,0))) ->  | G168: 0 | AR168: =IF(B168="",0,LOOKUP(B168,[4]BG!$A$3:$A$65,[4]BG!$H$3:$H$65))-SUMIF($B$3:B168,B168,$G$3:G168) -> 0 | AS168: =IF(E168="","",INDEX(Four!A:G,MATCH(الالتزام!E168,ممون,0),4)) ->  | AV168: 0 | BJ168: =IF(D168="","",INDEX([4]BG!$A$3:$B$65,MATCH(D168,البند,0),1)) -> 
B169: =IF(D169="","",INDEX([4]BG!A$3:$A$65,MATCH(D169,البند,0))) ->  | G169: 0 | AR169: =IF(B169="",0,LOOKUP(B169,[4]BG!$A$3:$A$65,[4]BG!$H$3:$H$65))-SUMIF($B$3:B169,B169,$G$3:G169) -> 0 | AS169: =IF(E169="","",INDEX(Four!A:G,MATCH(الالتزام!E169,ممون,0),4)) ->  | AV169: 0 | BJ169: =IF(D169="","",INDEX([4]BG!$A$3:$B$65,MATCH(D169,البند,0),1)) -> 
B170: =IF(D170="","",INDEX([4]BG!A$3:$A$65,MATCH(D170,البند,0))) ->  | G170: 0 | AR170: =IF(B170="",0,LOOKUP(B170,[4]BG!$A$3:$A$65,[4]BG!$H$3:$H$65))-SUMIF($B$3:B170,B170,$G$3:G170) -> 0 | AS170: =IF(E170="","",INDEX(Four!A:G,MATCH(الالتزام!E170,ممون,0),4)) ->  | AV170: 0 | BJ170: =IF(D170="","",INDEX([4]BG!$A$3:$B$65,MATCH(D170,البند,0),1)) -> 
B171: =IF(D171="","",INDEX([4]BG!A$3:$A$65,MATCH(D171,البند,0))) ->  | G171: 0 | AR171: =IF(B171="",0,LOOKUP(B171,[4]BG!$A$3:$A$65,[4]BG!$H$3:$H$65))-SUMIF($B$3:B171,B171,$G$3:G171) -> 0 | AS171: =IF(E171="","",INDEX(Four!A:G,MATCH(الالتزام!E171,ممون,0),4)) ->  | AV171: 0 | BJ171: =IF(D171="","",INDEX([4]BG!$A$3:$B$65,MATCH(D171,البند,0),1)) -> 
B172: =IF(D172="","",INDEX([4]BG!A$3:$A$65,MATCH(D172,البند,0))) ->  | G172: 0 | AR172: =IF(B172="",0,LOOKUP(B172,[4]BG!$A$3:$A$65,[4]BG!$H$3:$H$65))-SUMIF($B$3:B172,B172,$G$3:G172) -> 0 | AS172: =IF(E172="","",INDEX(Four!A:G,MATCH(الالتزام!E172,ممون,0),4)) ->  | AV172: 0 | BJ172: =IF(D172="","",INDEX([4]BG!$A$3:$B$65,MATCH(D172,البند,0),1)) -> 
B173: =IF(D173="","",INDEX([4]BG!A$3:$A$65,MATCH(D173,البند,0))) ->  | G173: 0 | AR173: =IF(B173="",0,LOOKUP(B173,[4]BG!$A$3:$A$65,[4]BG!$H$3:$H$65))-SUMIF($B$3:B173,B173,$G$3:G173) -> 0 | AS173: =IF(E173="","",INDEX(Four!A:G,MATCH(الالتزام!E173,ممون,0),4)) ->  | AV173: 0 | BJ173: =IF(D173="","",INDEX([4]BG!$A$3:$B$65,MATCH(D173,البند,0),1)) -> 
B174: =IF(D174="","",INDEX([4]BG!A$3:$A$65,MATCH(D174,البند,0))) ->  | G174: 0 | AR174: =IF(B174="",0,LOOKUP(B174,[4]BG!$A$3:$A$65,[4]BG!$H$3:$H$65))-SUMIF($B$3:B174,B174,$G$3:G174) -> 0 | AS174: =IF(E174="","",INDEX(Four!A:G,MATCH(الالتزام!E174,ممون,0),4)) ->  | AV174: 0 | BJ174: =IF(D174="","",INDEX([4]BG!$A$3:$B$65,MATCH(D174,البند,0),1)) -> 
B175: =IF(D175="","",INDEX([4]BG!A$3:$A$65,MATCH(D175,البند,0))) ->  | G175: 0 | AR175: =IF(B175="",0,LOOKUP(B175,[4]BG!$A$3:$A$65,[4]BG!$H$3:$H$65))-SUMIF($B$3:B175,B175,$G$3:G175) -> 0 | AS175: =IF(E175="","",INDEX(Four!A:G,MATCH(الالتزام!E175,ممون,0),4)) ->  | AV175: 0 | BJ175: =IF(D175="","",INDEX([4]BG!$A$3:$B$65,MATCH(D175,البند,0),1)) -> 
B176: =IF(D176="","",INDEX([4]BG!A$3:$A$65,MATCH(D176,البند,0))) ->  | G176: 0 | AR176: =IF(B176="",0,LOOKUP(B176,[4]BG!$A$3:$A$65,[4]BG!$H$3:$H$65))-SUMIF($B$3:B176,B176,$G$3:G176) -> 0 | AS176: =IF(E176="","",INDEX(Four!A:G,MATCH(الالتزام!E176,ممون,0),4)) ->  | AV176: 0 | BJ176: =IF(D176="","",INDEX([4]BG!$A$3:$B$65,MATCH(D176,البند,0),1)) -> 
B177: =IF(D177="","",INDEX([4]BG!A$3:$A$65,MATCH(D177,البند,0))) ->  | G177: 0 | AR177: =IF(B177="",0,LOOKUP(B177,[4]BG!$A$3:$A$65,[4]BG!$H$3:$H$65))-SUMIF($B$3:B177,B177,$G$3:G177) -> 0 | AS177: =IF(E177="","",INDEX(Four!A:G,MATCH(الالتزام!E177,ممون,0),4)) ->  | AV177: 0 | BJ177: =IF(D177="","",INDEX([4]BG!$A$3:$B$65,MATCH(D177,البند,0),1)) -> 
B178: =IF(D178="","",INDEX([4]BG!A$3:$A$65,MATCH(D178,البند,0))) ->  | G178: 0 | AR178: =IF(B178="",0,LOOKUP(B178,[4]BG!$A$3:$A$65,[4]BG!$H$3:$H$65))-SUMIF($B$3:B178,B178,$G$3:G178) -> 0 | AS178: =IF(E178="","",INDEX(Four!A:G,MATCH(الالتزام!E178,ممون,0),4)) ->  | AV178: 0 | BJ178: =IF(D178="","",INDEX([4]BG!$A$3:$B$65,MATCH(D178,البند,0),1)) -> 
B179: =IF(D179="","",INDEX([4]BG!A$3:$A$65,MATCH(D179,البند,0))) ->  | G179: 0 | AR179: =IF(B179="",0,LOOKUP(B179,[4]BG!$A$3:$A$65,[4]BG!$H$3:$H$65))-SUMIF($B$3:B179,B179,$G$3:G179) -> 0 | AS179: =IF(E179="","",INDEX(Four!A:G,MATCH(الالتزام!E179,ممون,0),4)) ->  | AV179: 0 | BJ179: =IF(D179="","",INDEX([4]BG!$A$3:$B$65,MATCH(D179,البند,0),1)) -> 
B180: =IF(D180="","",INDEX([4]BG!A$3:$A$65,MATCH(D180,البند,0))) ->  | G180: 0 | AR180: =IF(B180="",0,LOOKUP(B180,[4]BG!$A$3:$A$65,[4]BG!$H$3:$H$65))-SUMIF($B$3:B180,B180,$G$3:G180) -> 0 | AS180: =IF(E180="","",INDEX(Four!A:G,MATCH(الالتزام!E180,ممون,0),4)) ->  | AV180: 0 | BJ180: =IF(D180="","",INDEX([4]BG!$A$3:$B$65,MATCH(D180,البند,0),1)) -> 
B181: =IF(D181="","",INDEX([4]BG!A$3:$A$65,MATCH(D181,البند,0))) ->  | G181: 0 | AR181: =IF(B181="",0,LOOKUP(B181,[4]BG!$A$3:$A$65,[4]BG!$H$3:$H$65))-SUMIF($B$3:B181,B181,$G$3:G181) -> 0 | AS181: =IF(E181="","",INDEX(Four!A:G,MATCH(الالتزام!E181,ممون,0),4)) ->  | AV181: 0 | BJ181: =IF(D181="","",INDEX([4]BG!$A$3:$B$65,MATCH(D181,البند,0),1)) -> 
B182: =IF(D182="","",INDEX([4]BG!A$3:$A$65,MATCH(D182,البند,0))) ->  | G182: 0 | AR182: =IF(B182="",0,LOOKUP(B182,[4]BG!$A$3:$A$65,[4]BG!$H$3:$H$65))-SUMIF($B$3:B182,B182,$G$3:G182) -> 0 | AS182: =IF(E182="","",INDEX(Four!A:G,MATCH(الالتزام!E182,ممون,0),4)) ->  | AV182: 0 | BJ182: =IF(D182="","",INDEX([4]BG!$A$3:$B$65,MATCH(D182,البند,0),1)) -> 
B183: =IF(D183="","",INDEX([4]BG!A$3:$A$65,MATCH(D183,البند,0))) ->  | G183: 0 | AR183: =IF(B183="",0,LOOKUP(B183,[4]BG!$A$3:$A$65,[4]BG!$H$3:$H$65))-SUMIF($B$3:B183,B183,$G$3:G183) -> 0 | AS183: =IF(E183="","",INDEX(Four!A:G,MATCH(الالتزام!E183,ممون,0),4)) ->  | AV183: 0 | BJ183: =IF(D183="","",INDEX([4]BG!$A$3:$B$65,MATCH(D183,البند,0),1)) -> 
B184: =IF(D184="","",INDEX([4]BG!A$3:$A$65,MATCH(D184,البند,0))) ->  | G184: 0 | AR184: =IF(B184="",0,LOOKUP(B184,[4]BG!$A$3:$A$65,[4]BG!$H$3:$H$65))-SUMIF($B$3:B184,B184,$G$3:G184) -> 0 | AS184: =IF(E184="","",INDEX(Four!A:G,MATCH(الالتزام!E184,ممون,0),4)) ->  | AV184: 0 | BJ184: =IF(D184="","",INDEX([4]BG!$A$3:$B$65,MATCH(D184,البند,0),1)) -> 
B185: =IF(D185="","",INDEX([4]BG!A$3:$A$65,MATCH(D185,البند,0))) ->  | G185: 0 | AR185: =IF(B185="",0,LOOKUP(B185,[4]BG!$A$3:$A$65,[4]BG!$H$3:$H$65))-SUMIF($B$3:B185,B185,$G$3:G185) -> 0 | AS185: =IF(E185="","",INDEX(Four!A:G,MATCH(الالتزام!E185,ممون,0),4)) ->  | AV185: 0 | BJ185: =IF(D185="","",INDEX([4]BG!$A$3:$B$65,MATCH(D185,البند,0),1)) -> 
B186: =IF(D186="","",INDEX([4]BG!A$3:$A$65,MATCH(D186,البند,0))) ->  | G186: 0 | AR186: =IF(B186="",0,LOOKUP(B186,[4]BG!$A$3:$A$65,[4]BG!$H$3:$H$65))-SUMIF($B$3:B186,B186,$G$3:G186) -> 0 | AS186: =IF(E186="","",INDEX(Four!A:G,MATCH(الالتزام!E186,ممون,0),4)) ->  | AV186: 0 | BJ186: =IF(D186="","",INDEX([4]BG!$A$3:$B$65,MATCH(D186,البند,0),1)) -> 
B187: =IF(D187="","",INDEX([4]BG!A$3:$A$65,MATCH(D187,البند,0))) ->  | G187: 0 | AR187: =IF(B187="",0,LOOKUP(B187,[4]BG!$A$3:$A$65,[4]BG!$H$3:$H$65))-SUMIF($B$3:B187,B187,$G$3:G187) -> 0 | AS187: =IF(E187="","",INDEX(Four!A:G,MATCH(الالتزام!E187,ممون,0),4)) ->  | AV187: 0 | BJ187: =IF(D187="","",INDEX([4]BG!$A$3:$B$65,MATCH(D187,البند,0),1)) -> 
B188: =IF(D188="","",INDEX([4]BG!A$3:$A$65,MATCH(D188,البند,0))) ->  | G188: 0 | AR188: =IF(B188="",0,LOOKUP(B188,[4]BG!$A$3:$A$65,[4]BG!$H$3:$H$65))-SUMIF($B$3:B188,B188,$G$3:G188) -> 0 | AS188: =IF(E188="","",INDEX(Four!A:G,MATCH(الالتزام!E188,ممون,0),4)) ->  | AV188: 0 | BJ188: =IF(D188="","",INDEX([4]BG!$A$3:$B$65,MATCH(D188,البند,0),1)) -> 
B189: =IF(D189="","",INDEX([4]BG!A$3:$A$65,MATCH(D189,البند,0))) ->  | G189: 0 | AR189: =IF(B189="",0,LOOKUP(B189,[4]BG!$A$3:$A$65,[4]BG!$H$3:$H$65))-SUMIF($B$3:B189,B189,$G$3:G189) -> 0 | AS189: =IF(E189="","",INDEX(Four!A:G,MATCH(الالتزام!E189,ممون,0),4)) ->  | AV189: 0 | BJ189: =IF(D189="","",INDEX([4]BG!$A$3:$B$65,MATCH(D189,البند,0),1)) -> 
B190: =IF(D190="","",INDEX([4]BG!A$3:$A$65,MATCH(D190,البند,0))) ->  | G190: 0 | AR190: =IF(B190="",0,LOOKUP(B190,[4]BG!$A$3:$A$65,[4]BG!$H$3:$H$65))-SUMIF($B$3:B190,B190,$G$3:G190) -> 0 | AS190: =IF(E190="","",INDEX(Four!A:G,MATCH(الالتزام!E190,ممون,0),4)) ->  | AV190: 0 | BJ190: =IF(D190="","",INDEX([4]BG!$A$3:$B$65,MATCH(D190,البند,0),1)) -> 
B191: =IF(D191="","",INDEX([4]BG!A$3:$A$65,MATCH(D191,البند,0))) ->  | G191: 0 | AR191: =IF(B191="",0,LOOKUP(B191,[4]BG!$A$3:$A$65,[4]BG!$H$3:$H$65))-SUMIF($B$3:B191,B191,$G$3:G191) -> 0 | AS191: =IF(E191="","",INDEX(Four!A:G,MATCH(الالتزام!E191,ممون,0),4)) ->  | AV191: 0 | BJ191: =IF(D191="","",INDEX([4]BG!$A$3:$B$65,MATCH(D191,البند,0),1)) -> 
B192: =IF(D192="","",INDEX([4]BG!A$3:$A$65,MATCH(D192,البند,0))) ->  | G192: 0 | AR192: =IF(B192="",0,LOOKUP(B192,[4]BG!$A$3:$A$65,[4]BG!$H$3:$H$65))-SUMIF($B$3:B192,B192,$G$3:G192) -> 0 | AS192: =IF(E192="","",INDEX(Four!A:G,MATCH(الالتزام!E192,ممون,0),4)) ->  | AV192: 0 | BJ192: =IF(D192="","",INDEX([4]BG!$A$3:$B$65,MATCH(D192,البند,0),1)) -> 
B193: =IF(D193="","",INDEX([4]BG!A$3:$A$65,MATCH(D193,البند,0))) ->  | G193: 0 | AR193: =IF(B193="",0,LOOKUP(B193,[4]BG!$A$3:$A$65,[4]BG!$H$3:$H$65))-SUMIF($B$3:B193,B193,$G$3:G193) -> 0 | AS193: =IF(E193="","",INDEX(Four!A:G,MATCH(الالتزام!E193,ممون,0),4)) ->  | AV193: 0 | BJ193: =IF(D193="","",INDEX([4]BG!$A$3:$B$65,MATCH(D193,البند,0),1)) -> 
B194: =IF(D194="","",INDEX([4]BG!A$3:$A$65,MATCH(D194,البند,0))) ->  | G194: 0 | AR194: =IF(B194="",0,LOOKUP(B194,[4]BG!$A$3:$A$65,[4]BG!$H$3:$H$65))-SUMIF($B$3:B194,B194,$G$3:G194) -> 0 | AS194: =IF(E194="","",INDEX(Four!A:G,MATCH(الالتزام!E194,ممون,0),4)) ->  | AV194: 0 | BJ194: =IF(D194="","",INDEX([4]BG!$A$3:$B$65,MATCH(D194,البند,0),1)) -> 
B195: =IF(D195="","",INDEX([4]BG!A$3:$A$65,MATCH(D195,البند,0))) ->  | G195: 0 | AR195: =IF(B195="",0,LOOKUP(B195,[4]BG!$A$3:$A$65,[4]BG!$H$3:$H$65))-SUMIF($B$3:B195,B195,$G$3:G195) -> 0 | AS195: =IF(E195="","",INDEX(Four!A:G,MATCH(الالتزام!E195,ممون,0),4)) ->  | AV195: 0 | BJ195: =IF(D195="","",INDEX([4]BG!$A$3:$B$65,MATCH(D195,البند,0),1)) -> 
B196: =IF(D196="","",INDEX([4]BG!A$3:$A$65,MATCH(D196,البند,0))) ->  | G196: 0 | AR196: =IF(B196="",0,LOOKUP(B196,[4]BG!$A$3:$A$65,[4]BG!$H$3:$H$65))-SUMIF($B$3:B196,B196,$G$3:G196) -> 0 | AS196: =IF(E196="","",INDEX(Four!A:G,MATCH(الالتزام!E196,ممون,0),4)) ->  | AV196: 0 | AX196: =LEFT(AS196,3) ->  | AZ196: =IFERROR(LOOKUP(LEFT(AS196,3),$BF$3:$BF$33,$BG$3:$BG$33),"") ->  | BJ196: =IF(D196="","",INDEX([4]BG!$A$3:$B$65,MATCH(D196,البند,0),1)) -> 
B197: =IF(D197="","",INDEX([4]BG!A$3:$A$65,MATCH(D197,البند,0))) ->  | G197: 0 | AR197: =IF(B197="",0,LOOKUP(B197,[4]BG!$A$3:$A$65,[4]BG!$H$3:$H$65))-SUMIF($B$3:B197,B197,$G$3:G197) -> 0 | AS197: =IF(E197="","",INDEX(Four!A:G,MATCH(الالتزام!E197,ممون,0),4)) ->  | AV197: 0 | AX197: =LEFT(AS197,3) ->  | BJ197: =IF(D197="","",INDEX([4]BG!$A$3:$B$65,MATCH(D197,البند,0),1)) ->  | BK197: =RIGHT(BJ197,1) -> 
B198: =IF(D198="","",INDEX([4]BG!A$3:$A$65,MATCH(D198,البند,0))) ->  | G198: =J198+N198+R198+V198+Z198+AD198 -> 0 | AR198: =IF(B198="",0,LOOKUP(B198,[4]BG!$A$3:$A$65,[4]BG!$H$3:$H$65))-SUMIF($B$3:B198,B198,$G$3:G198) -> 0 | AS198: =IF(E198="","",INDEX(Four!A:G,MATCH(الالتزام!E198,ممون,0),4)) ->  | AV198: 0 | BJ198: =IF(D198="","",INDEX([4]BG!$A$3:$B$65,MATCH(D198,البند,0),1)) ->  | BL198: =IF(BJ198="","",LEFT(RIGHT(BJ198,4),2)) -> 
B199: =IF(D199="","",INDEX([4]BG!A$3:$A$65,MATCH(D199,البند,0))) ->  | G199: 0 | AR199: =IF(B199="",0,LOOKUP(B199,[4]BG!$A$3:$A$65,[4]BG!$H$3:$H$65))-SUMIF($B$3:B199,B199,$G$3:G199) -> 0 | AS199: =IF(E199="","",INDEX(Four!A:G,MATCH(الالتزام!E199,ممون,0),4)) ->  | AV199: 0 | BJ199: =IF(D199="","",INDEX([4]BG!$A$3:$B$65,MATCH(D199,البند,0),1)) -> 
B200: =IF(D200="","",INDEX([4]BG!A$3:$A$65,MATCH(D200,البند,0))) ->  | G200: 0 | AR200: =IF(B200="",0,LOOKUP(B200,[4]BG!$A$3:$A$65,[4]BG!$H$3:$H$65))-SUMIF($B$3:B200,B200,$G$3:G200) -> 0 | AS200: =IF(E200="","",INDEX(Four!A:G,MATCH(الالتزام!E200,ممون,0),4)) ->  | AV200: 0 | BJ200: =IF(D200="","",INDEX([4]BG!$A$3:$B$65,MATCH(D200,البند,0),1)) -> 
... 925 more rows

Sheet الحوالة باديس
AR1: 1 | AS1: 2
Z2: =Z4&Z3 -> 03 | AC2: =U5+2 -> 10 | AI2: DA | AR2: 1 | AS2: الفرع الأول :نفقات التسيير
C3: اســم المؤسســـة | F3: حوالـــة الدفــــع | Z3: =LEFT(RIGHT(AC4,3),1) -> 3 | AA3: =RIGHT(AC4,1) -> 2 | AB3: 1 | AC3: =INDEX(الالتزام!A:BA,$AC$2,AB3) -> 8 | AD3: رقم الحوالة | AE3: رمــز البند | AN3: DA | AR3: 2 | AS3: الفرع الثاني: نفقات أقسام رياضة
N4: المــــــــــادة | P4: =AC4 -> 1-03-2 | Q4: حســـاب | Z4: =LEFT(RIGHT(AC4,4),1) -> 0 | AA4: =LEFT(AC4,1) -> 1 | AB4: 2 | AC4: =INDEX(الالتزام!A:BA,$AC$2,AB4) -> 1-03-2 | AD4: رمــز البند | AE4: اسم البند | AG4: 0 | AH4: Zero | AI4: =#REF! ->  | AR4: 3 | AS4: الفرع الثالث : نفقات ذات طابع خاص
C5: ='[4]بطاقة المعلومات '!C3 -> ثانوية البشير الإبراهيمي | N5: الوثائق رقم | Q5: حســـاب | U5: 8 | AB5: 3 | AC5: =INDEX(الالتزام!A:BA,$AC$2,AB5) -> اللوازم | AD5: اسم البند | AE5: الجهة المستفيدة | AG5: 1 | AH5: Un | AR5: 5 | AS5: حسابات خارج الميزانية
C6: عيــن الحجــر | F6: السنـــــــــــة الماليـــــــــــة : | J6: ='[4]مجـمع النـفقـات'!C4 -> 2018 | N6: حــوالة رقـــــــم | Z6: باقي في البند | AB6: 4 | AC6: =INDEX(الالتزام!A:BA,$AC$2,AB6) -> مستهلكات وبرامج الإعلام الآلي | AD6: الجهة المستفيدة | AE6: موضوع النفقة | AG6: 2 | AH6: Deux | AI6: cent | AJ6: =INT($Q$53/100000000000) -> 0 | AK6: =AJ6*100000000000 -> 0 | AL6: =IF(OR(AJ6=0,AJ6=1),"",LOOKUP(AJ6,AG4:AH113)) ->  | AM6: =IF(AJ6>0,"Cent","") ->  | AN6: =IF(AND(AL6="",AM6=""),"",CONCATENATE(AL6," ",AM6," ")) -> 
Z7: =AC32 -> 00:00:00 | AB7: 5 | AC7: =INDEX(الالتزام!A:BA,$AC$2,AB7) -> ش ذ م م ميتاغروب | AD7: موضوع النفقة | AE7: مبلغ الالتزام | AG7: 3 | AH7: Trois | AI7: Milliard | AJ7: =INT((AI4-AK6)/1000000000) ->  | AK7: =AJ7*1000000000 ->  | AL7: =IF(AJ7=0,"",LOOKUP(AJ7,AH4:AH114,AG4:AG114)) ->  | AM7: =IF(OR(AJ7>0,AJ6>0),"Milliard","") ->  | AN7: =IF(AND(AL7="",AM7=""),"",CONCATENATE(AL7," ",AM7," ")) -> 
C8: 19022 | F8: =LOOKUP(VALUE(P13),AR2:AR5,AS2:AS5) -> الفرع الأول :نفقات التسيير | P8: =U5 -> 8 | Y8: طريقة التسديد | Z8: =I40 -> 0 | AB8: 6 | AC8: =INDEX(الالتزام!A:BA,$AC$2,AB8) -> تسديد فاتورة متابعة و تحين برنامج ميتاسكول | AD8: مبلغ الالتزام | AE8: الوثائق الثبوتية | AG8: 4 | AH8: Quatre | AI8: cent | AJ8: =INT((AI4-SUM(AK6:AK$7))/100000000) ->  | AK8: =AJ8*100000000 ->  | AL8: =IF(OR(AJ8=0,AJ8=1,),"",LOOKUP(AJ8,AG$26:AG113,AH$26:AH113)) ->  | AM8: =IF(AJ8>0,"Cent","") -> 
F9: البــاب : | G9: =Z2 -> 03 | J9: المـــــــادة : | K9: =AA3 -> 2 | Y9: =AC49 -> خزينة | Z9: =I17 -> 0 | AB9: 7 | AC9: =INDEX(الالتزام!A:BA,$AC$2,AB9) -> 5541
Y10: التاريخ الامر | Z10: =#REF! ->  | AB10: 8 | AC10: =INDEX(الالتزام!A:BA,$AC$2,AB10) -> 041/2018 | AD10: الرقم
AB11: 9 | AC11: =INDEX(الالتزام!A:BA,$AC$2,AB11) -> 2018-02-02 | AD11: التــاريـــخ | AE11: عددها | AG11: 5 | AH11: Cinq | AI11: million | AJ11: =INT((AI4-SUM(AK6:AK$8))/1000000) ->  | AK11: =AJ11*1000000 ->  | AL11: =IF(AJ11=0,"",LOOKUP(AJ11,AG4:AG113,AH4:AH113)) ->  | AM11: =IF(OR(AJ11>0,AJ8>0),"Million","") -> 
C12: موضـــــــــــــوع المصاريــــــــــــف: | AB12: 10 | AC12: =INDEX(الالتزام!A:BA,$AC$2,AB12) -> 5541 | AD12: المبــلغ | AE12: الوثائق الثبوتية | AG12: 6 | AH12: Six | AI12: cent mille | AJ12: =INT((AI4-SUM(AK6:AK$11))/100000) ->  | AK12: =AJ12*100000 ->  | AL12: =IF(OR(AJ12=0,AJ12=1),"",LOOKUP(AJ12,AG4:AG113,AH4:AH113)) ->  | AM12: =IF(AJ12>0,"Cent","") -> 
C13: =F8 -> الفرع الأول :نفقات التسيير | K13: الــــفــــــــــــــــــــــــــــــرع : | P13: =AA4 -> 1 | AB13: 11 | AC13: =INDEX(الالتزام!A:BA,$AC$2,AB13) -> 0 | AD13: العــــدد | AE13: عددها | AG13: 7 | AH13: Sept | AI13: mille | AJ13: =INT((AI4-SUM(AK6:AK$12))/1000) ->  | AK13: =AJ13*1000 ->  | AL13: =IF(OR(AJ13=0,AJ13=1),"",LOOKUP(AJ13,AG4:AG113,AH4:AH113)) ->  | AM13: =IF(OR(AJ13>0,AJ12>0),"Mille","") -> 
C14: ="الباب"&" "&L14&":"&AC6 -> الباب :مستهلكات وبرامج الإعلام الآلي | K14: البــــــــــــــــــــــــــــــــــاب : | P14: =G9 -> 03 | AB14: 12 | AC14: =INDEX(الالتزام!A:BA,$AC$2,AB14) -> 0 | AD14: الرقم | AE14: الوثائق الثبوتية | AG14: 8 | AH14: Huit | AI14: cent | AJ14: =INT((AI4-SUM(AK6:AK$13))/100) ->  | AK14: =AJ14*100 ->  | AL14: =IF(OR(AJ14=0,AJ14=1),"",LOOKUP(AJ14,AG4:AG113,AH4:AH113)) ->  | AM14: =IF(AJ14>0,"Cent","") ->  | AN14: =IF(AND(AL14="",AM14=""),"",CONCATENATE(AL14," ",AM14," ")) -> 
C15: =AC8 -> تسديد فاتورة متابعة و تحين برنامج ميتاسكول | K15: المـــــــــــــــــــــــــــــــــــادة: | P15: =K9 -> 2 | AB15: 13 | AC15: =INDEX(الالتزام!A:BA,$AC$2,AB15) -> 00:00:00 | AD15: التــاريـــخ | AE15: عددها | AG15: 9 | AH15: Neuf | AI15: moins de cent | AJ15: =INT((AI4-SUM(AK6:AK$14))) ->  | AK15: =AJ15 ->  | AL15: =IF(AJ15=0,"",LOOKUP(AJ15,AG4:AG113,AH4:AH113)) -> 
C17: الوثائق التي تثبت المصاريف: | J17: العـــدد | K17: المبـــــالغ | AB17: 14 | AC17: =INDEX(الالتزام!A:BA,$AC$2,AB17) -> 0 | AD17: المبــلغ | AG17: 10 | AH17: Dix | AJ17: =ROUND(100*(AI4-INT(AI4)),0) ->  | AK17: =AJ17 ->  | AL17: =IF(AK17=0,"",LOOKUP(AK17,AG4:AG113,AH4:AH113)) ->  | AM17: =IF(AK17=0,"","Centimes") -> 
C18: أرقام سنـدات الطلب : | D18: =AC39 -> 0 | J18: =AC40 -> 0 | AB18: 15 | AC18: =INDEX(الالتزام!A:BA,$AC$2,AB18) -> 0 | AD18: العــــدد | AG18: 11 | AH18: Onze
D19: =AC41 -> 0 | J19: العــــدد | P19: =AC9 -> 5541 | AB19: 16 | AC19: =INDEX(الالتزام!A:BA,$AC$2,AB19) -> 0 | AD19: الرقم | AG19: 12 | AH19: Douze
C20: وصلات الإستلام : | J20: =AC42 -> 0 | K20: المبلــــغ الإجمــــالي للحـــــــوالــة | AB20: 17 | AC20: =INDEX(الالتزام!A:BA,$AC$2,AB20) -> 00:00:00 | AD20: التــاريـــخ | AG20: 13 | AH20: Treize | AI20: =CONCATENATE(AN6,AN7,AN8,AN11,AN12,AN13,AN14,AN15,AI2," ", AN17) -> 
D21: الرقم | G21: المبــلغ | I21: التــاريـــخ | J21: العــــدد | AB21: 18 | AC21: =INDEX(الالتزام!A:BA,$AC$2,AB21) -> 0 | AD21: المبــلغ | AG21: 14 | AH21: Quatorze
C22: =الالتزام!H1 -> فاتـــــــــــــورة رقم 01 | D22: =AC10 -> 041/2018 | G22: =AC12 -> 5541 | I22: =AC11 -> 2018-02-02 | J22: =AC13 -> 0 | AB22: 19 | AC22: =INDEX(الالتزام!A:BA,$AC$2,AB22) -> 0 | AD22: العــــدد | AG22: 15 | AH22: Quinze
C23: =الالتزام!L1 -> فاتـــــــــــــورة رقم 02 | D23: =AC14 -> 0 | G23: =AC17 -> 0 | I23: =AC15 -> 00:00:00 | J23: =AC18 -> 0 | AB23: 20 | AC23: =INDEX(الالتزام!A:BA,$AC$2,AB23) -> 0 | AD23: الرقم | AG23: 16 | AH23: Seize
C24: =الالتزام!P1 -> فاتـــــــــــــورة رقم 03 | D24: =AC19 -> 0 | G24: =AC21 -> 0 | I24: =AC20 -> 00:00:00 | J24: =AC22 -> 0 | AB24: 21 | AC24: =INDEX(الالتزام!A:BA,$AC$2,AB24) -> 00:00:00 | AD24: التــاريـــخ | AG24: 17 | AH24: Dix- sept
C25: =الالتزام!T1 -> فاتـــــــــــــورة رقم 04 | D25: =AC23 -> 0 | G25: =AC25 -> 0 | I25: =AC24 -> 00:00:00 | J25: =AC26 -> 0 | AB25: 22 | AC25: =INDEX(الالتزام!A:BA,$AC$2,AB25) -> 0 | AD25: المبــلغ | AG25: 18 | AH25: Dix -huit
C26: =الالتزام!X1 -> فاتـــــــــــــورة رقم 05 | D26: =AC27 -> 0 | G26: =AC29 -> 0 | I26: =AC28 -> 00:00:00 | J26: =AC30 -> 0 | K26: المبلـــــــــــــغ المحســــــــــــــــوم | P26: =IF($Y$9="ع د",$P$19,0) -> 0 | AB26: 23 | AC26: =INDEX(الالتزام!A:BA,$AC$2,AB26) -> 0 | AD26: العــــدد | AG26: 19 | AH26: Dix- neuf
C27: =الالتزام!AB1 -> فاتـــــــــــــورة رقم 06 | D27: =AC31 -> 0 | G27: =AC33 -> 0 | I27: =AC32 -> 00:00:00 | J27: =AC34 -> 0 | AB27: 24 | AC27: =INDEX(الالتزام!A:BA,$AC$2,AB27) -> 0 | AD27: الرقم
C28: =الالتزام!AF1 -> 0 | D28: =AC43 -> 00:00:00 | J28: =AC44 -> 0 | AB28: 25 | AC28: =INDEX(الالتزام!A:BA,$AC$2,AB28) -> 00:00:00 | AD28: التــاريـــخ
C29: =الالتزام!AN1 -> وثائق اخرى | D29: =AC45 -> 00:00:00 | J29: =AC46 -> 0 | AB29: 26 | AC29: =INDEX(الالتزام!A:BA,$AC$2,AB29) -> 0 | AD29: المبــلغ
C30: =الالتزام!AP1 -> وثائق اخرى | AB30: 27 | AC30: =INDEX(الالتزام!A:BA,$AC$2,AB30) -> 0 | AD30: العــــدد
AB31: 28 | AC31: =INDEX(الالتزام!A:BA,$AC$2,AB31) -> 0 | AD31: الرقم | AG31: 20 | AH31: Vingt
G32: 0 | J32: 0 | AB32: 29 | AC32: =INDEX(الالتزام!A:BA,$AC$2,AB32) -> 00:00:00 | AD32: التــاريـــخ | AG32: 21 | AH32: Vingt et un
C33: عـــــدد الوثــــائـــــق : | I33: =J22+J23+J24+J25+J26+J27+J28+J29+J30+J31+J32+J18+J20 -> 0 | K33: المبلـــــــغ الصــــــافي للدفــــــــــع | P33: =P19-P26 -> 5541 | AB33: 30 | AC33: =INDEX(الالتزام!A:BA,$AC$2,AB33) -> 0 | AD33: المبــلغ | AG33: 22 | AH33: Vingt deux
AB34: 31 | AC34: =INDEX(الالتزام!A:BA,$AC$2,AB34) -> 0 | AD34: العــــدد | AG34: 23 | AH34: Vingt trois
AB35: 32 | AC35: =INDEX(الالتزام!A:BA,$AC$2,AB35) -> 0 | AD35: فاتورة 06 | AG35: 24 | AH35: Vingt quatre
C36: دفــع المصــــاريف | U36: =IF(P33=SUM(L39:N44),"صحيح","خطأ") -> صحيح | AB36: 33 | AC36: =INDEX(الالتزام!A:BA,$AC$2,AB36) -> 0 | AD36: الوثائق الثبوتية فاتورة | AG36: 25 | AH36: Vingt cinq
C37: تعييــــن الدائــــــــــــــن | F37: رقم حســاب المستفيــــد | I37: الصك المدفوع | K37: المبالغ المسددة عن طريق | AB37: 34 | AC37: =INDEX(الالتزام!A:BA,$AC$2,AB37) -> 0 | AD37: عددها | AG37: 26 | AH37: Vingt six
I38: رقم | J38: التاريخ | K38: حساب بريدي | L38: حساب الخزينة | O38: نقدا | Q38: م. داخلية | AB38: 35 | AC38: =INDEX(الالتزام!A:BA,$AC$2,AB38) -> 0 | AD38: الوثائق الثبوتية وصل طب | AG38: 27 | AH38: Vingt sept
C39: =AC7 -> ش ذ م م ميتاغروب | F39: =AC48 -> 00500374400242805066 | I39: ='الحوالة باديس'!AC50 -> 2348846 | J39: =AC56 -> 2018-06-30 | L39: =IF($Y$9="خزينة",VLOOKUP($U$5,الالتزام!$A$3:$AF$201,10,0),"") -> 5541 | O39: =IF($Y$9="نقدي",VLOOKUP($U$5,الالتزام!$A$3:$AF$201,10,0),"") ->  | Q39: =IF($Y$9="ع د",VLOOKUP($U$5,الالتزام!$A$3:$AF$201,10,0),"") ->  | AB39: 36 | AC39: =INDEX(الالتزام!A:BA,$AC$2,AB39) -> 0 | AD39: عددها | AG39: 28 | AH39: Vingt Huit
L40: =IF($Y$9="خزينة",VLOOKUP($U$5,الالتزام!$A$3:$AF$201,14,0),"") -> 0 | O40: =IF($Y$9="نقدي",VLOOKUP($U$5,الالتزام!$A$3:$AF$201,14,0),"") ->  | Q40: =IF($Y$9="ع د",VLOOKUP($U$5,الالتزام!$A$3:$AF$201,14,0),"") ->  | AB40: 37 | AC40: =INDEX(الالتزام!A:BA,$AC$2,AB40) -> 0 | AD40: الوثائق الثبوتية وصل تسليم | AG40: 29 | AH40: Vingt Neuf
F41: لــــــــــــــــدى | L41: =IF($Y$9="خزينة",VLOOKUP($U$5,الالتزام!$A$3:$AF$201,18,0),"") -> 0 | O41: =IF($Y$9="نقدي",VLOOKUP($U$5,الالتزام!$A$3:$AF$201,18,0),"") ->  | Q41: =IF($Y$9="ع د",VLOOKUP($U$5,الالتزام!$A$3:$AF$201,18,0),"") ->  | AB41: 38 | AC41: =INDEX(الالتزام!A:BA,$AC$2,AB41) -> 0 | AD41: عددها | AG41: 30 | AH41: Trente
L42: =IF($Y$9="خزينة",VLOOKUP($U$5,الالتزام!$A$3:$AF$201,22,0),"") -> 0 | O42: =IF($Y$9="نقدي",VLOOKUP($U$5,الالتزام!$A$3:$AF$201,22,0),"") ->  | Q42: =IF($Y$9="ع د",VLOOKUP($U$5,الالتزام!$A$3:$AF$201,22,0),"") ->  | AB42: 39 | AC42: =INDEX(الالتزام!A:BA,$AC$2,AB42) -> 0 | AD42: الوثائق الثبوتية محضر | AG42: 31 | AH42: Trente et Un
F43: ='الحوالة باديس'!AC55 -> B-D-L | L43: =IF($Y$9="خزينة",VLOOKUP($U$5,الالتزام!$A$3:$AF$201,26,0),"") -> 0 | O43: =IF($Y$9="نقدي",VLOOKUP($U$5,الالتزام!$A$3:$AF$201,26,0),"") ->  | Q43: =IF($Y$9="ع د",VLOOKUP($U$5,الالتزام!$A$3:$AF$201,26,0),"") ->  | AB43: 40 | AC43: =INDEX(الالتزام!A:BA,$AC$2,AB43) -> 0 | AD43: عددها | AG43: 32 | AH43: Trente deux
L44: =IF($Y$9="خزينة",VLOOKUP($U$5,الالتزام!$A$3:$AF$201,30,0),"") -> 0 | O44: =IF($Y$9="نقدي",VLOOKUP($U$5,الالتزام!$A$3:$AF$201,30,0),"") ->  | Q44: =IF($Y$9="ع د",VLOOKUP($U$5,الالتزام!$A$3:$AF$201,30,0),"") ->  | AB44: 41 | AC44: =INDEX(الالتزام!A:BA,$AC$2,AB44) -> 0 | AD44: عددها | AG44: 34 | AH44: Trente quatre
AB45: 42 | AC45: =INDEX(الالتزام!A:BA,$AC$2,AB45) -> 0 | AD45: الرصيد المتبقي | AG45: 35 | AH45: Trente cinq
AB46: 43 | AC46: =INDEX(الالتزام!A:BA,$AC$2,AB46) -> 0 | AD46: رقم حساب الممون | AG46: 36 | AH46: Trente six
C47: الأمر بالصــرف | I47: الصــــرف | N47: التسديد نقـــدا | AB47: 44 | AC47: =INDEX(الالتزام!A:BA,$AC$2,AB47) -> 7459 | AD47: رقم حساب الممون | AG47: 37 | AH47: Trente Sept
C48: حددت هذه الحوالة بمبلغ قدره: | I48: حوالة الدفع محددة بمبلغ صافي قدره : | M48: إسم ولقب المستفيد:................................. | AB48: 45 | AC48: =INDEX(الالتزام!A:BA,$AC$2,AB48) -> 00500374400242805066 | AD48: طريقة التسديد | AG48: 38 | AH48: Trente Huit
C49: =I49 -> خمسة آلاف وخمسمائة وواحد وأربعون دينار جزائري | I49: =[13]!ar(P33) -> خمسة آلاف وخمسمائة وواحد وأربعون دينار جزائري | M49: طبيعة الوثيقة الشخصية:........................... | AB49: 46 | AC49: =INDEX(الالتزام!A:BA,$AC$2,AB49) -> خزينة | AD49: رقم الصك | AG49: 39 | AH49: Trente Neuf
M50: ............................................... | AB50: 47 | AC50: =INDEX(الالتزام!A:BA,$AC$2,AB50) -> 2348846 | AD50: مبلغ الصك | AG50: 40 | AH50: Quarante
M51: رقمها :............................................ | AB51: 48 | AC51: =INDEX(الالتزام!A:BA,$AC$2,AB51) -> 1366235.5 | AG51: 41 | AH51: Quarante et Un
C52: بــ: | D52: عيــن الحجــر | I52: تاريخ التسجيل في دفتر المصاريف : | M52: تاريخ صدورها:....................................... | AB52: 49 | AC52: =INDEX(الالتزام!A:BA,$AC$2,AB52) -> 43281 | AD52: إسم البنك | AG52: 42 | AH52: Quarante Deux
C53: في: | D53: =AC56 -> 2018-06-30 | I53: ............................................... | M53: بـ:.................................................... | AB53: 50 | AC53: =INDEX(الالتزام!A:BA,$AC$2,AB53) -> 005 | AG53: 43 | AH53: Quarante Trois
C54: رئيس المؤسسة، | I54: المقتصــــد، | M54: لاستلام المبلغ المذكور أعلاه | AB54: 51 | AC54: =INDEX(الالتزام!A:BA,$AC$2,AB54) -> ب ت م | AG54: 44 | AH54: Quarante Quatre
M55: فــــــــي:............................................. | AB55: 52 | AC55: =INDEX(الالتزام!A:BA,$AC$2,AB55) -> B-D-L | AG55: 45 | AH55: Quarante Cinq
AB56: 53 | AC56: =INDEX(الالتزام!A:BA,$AC$2,AB56) -> 43281 | AG56: 46 | AH56: Quarante Six
C57: الاسم و اللقب | D57: ='[4]بطاقة المعلومات '!C12 -> بوجليدة العيد | I57: الاسم و اللقب | J57: ='[4]بطاقة المعلومات '!C7 -> خيطاس عبد الكريم | P57: توقيع الدائن،
AB58: 55 | AC58: =INDEX(الالتزام!A:BA,$AC$2,AB58) ->  | AG58: 47 | AH58: Quarante Sept
K59: =Horof_fr(P33) ->  | L59: Arréter ce présent mandat à la somme de: | AB59: 56 | AC59: =INDEX(الالتزام!A:BA,$AC$2,AB59) -> 
AB60: 57 | AC60: =INDEX(الالتزام!A:BA,$AC$2,AB60) -> 
AB61: 58 | AC61: =INDEX(الالتزام!A:BA,$AC$2,AB61) -> 
AB62: 59 | AC62: =INDEX(الالتزام!A:BA,$AC$2,AB62) ->  | AG62: 48 | AH62: Quarante Huit
AB63: 60 | AC63: =INDEX(الالتزام!A:BA,$AC$2,AB63) ->  | AG63: 49 | AH63: Quarante Neuf
AB64: 61 | AC64: =INDEX(الالتزام!A:BA,$AC$2,AB64) ->  | AG64: 50 | AH64: Cinquante
AB65: 62 | AC65: =INDEX(الالتزام!A:BA,$AC$2,AB65) ->  | AG65: 51 | AH65: Cinquante et Un
AB66: 63 | AC66: =INDEX(الالتزام!A:BA,$AC$2,AB66) ->  | AG66: 52 | AH66: Cinquante deux
AB67: 64 | AC67: =INDEX(الالتزام!A:BA,$AC$2,AB67) ->  | AG67: 53 | AH67: Cinquante Trois
AB68: 65 | AC68: =INDEX(الالتزام!A:BA,$AC$2,AB68) ->  | AG68: 54 | AH68: Cinquante Quatre
AB69: 65 | AC69: =INDEX(الالتزام!A:BA,$AC$2,AB69) ->  | AG69: 55 | AH69: Cinquante Cinq
AB70: 59 | AC70: =INDEX(الالتزام!A:BA,$AC$2,AB70) ->  | AG70: 56 | AH70: Cinquante six
AB71: 60 | AC71: =INDEX(الالتزام!A:BA,$AC$2,AB71) ->  | AG71: 57 | AH71: Cinquante Sept
AB72: 61 | AC72: =INDEX(الالتزام!A:BA,$AC$2,AB72) ->  | AG72: 58 | AH72: Cinquante Huit
AB73: 62 | AC73: =INDEX(الالتزام!A:BA,$AC$2,AB73) ->  | AG73: 59 | AH73: Cinquante Neuf
AB74: 63 | AC74: =INDEX(الالتزام!A:BA,$AC$2,AB74) ->  | AG74: 60 | AH74: Soixante
AB75: 64 | AC75: =INDEX(الالتزام!A:BA,$AC$2,AB75) ->  | AG75: 61 | AH75: Soixante et Un
AC76: =INDEX(الالتزام!A:BA,$AC$2,AB76) -> 0 | AG76: 62 | AH76: Soixante Deux
AC77: =INDEX(الالتزام!A:BA,$AC$2,AB77) -> 0 | AG77: 63 | AH77: Soixante Trois
AC78: =INDEX(الالتزام!G:AH,$AC$2,AB78) -> 0 | AG78: 64 | AH78: Soixante Quatre
AC79: =INDEX(الالتزام!G:AH,$AC$2,AB79) -> 0 | AG79: 65 | AH79: Soixante cinq
AC80: =INDEX(الالتزام!G:AH,$AC$2,AB80) -> 0 | AG80: 66 | AH80: Soixante Six
AC81: =INDEX(الالتزام!G:AH,$AC$2,AB81) -> 0 | AG81: 67 | AH81: Soixante Sept
AG82: 68 | AH82: Soixante huit
AG83: 69 | AH83: Soixante neuf
AG84: 70 | AH84: Soixante Dix
AG85: 71 | AH85: Soixante et Onze
AG86: 72 | AH86: Soixante Douze
AG87: 73 | AH87: Soixante Treize
AG88: 74 | AH88: Soixante Quatorze
AG89: 75 | AH89: Soixante Quinze
AG90: 76 | AH90: Soixante Seize
AG91: 77 | AH91: Soixante Dix-sept
AG92: 78 | AH92: Soixante Dix-huit
AG93: 79 | AH93: Soixante Dix-neuf
AG94: 80 | AH94: Quatre-vingt
AG95: 81 | AH95: Quatre-vingt et Un
AG96: 82 | AH96: Quatre-vingt Deux
AG97: 83 | AH97: Quatre-vingt Trois
AG98: 84 | AH98: Quatre-vingt Quatre
AG99: 85 | AH99: Quatre-vingt Cinq
AG100: 86 | AH100: Quatre-vingt Six
AG101: 87 | AH101: Quatre-vingt Sept
AG102: 88 | AH102: Quatre-vingt Huit
AG103: 89 | AH103: Quatre vingt neuf
AG104: 90 | AH104: Quatre-vingt Dix
AG105: 91 | AH105: Quatre-vingt Onze
AG106: 92 | AH106: Quatre-vingt Douze
AG107: 93 | AH107: Quatre-vingt Treize
AG108: 94 | AH108: Quatre-vingt Quatorze
AG109: 95 | AH109: Quatre-vingt Quinze
AG110: 96 | AH110: Quatre-vingt Seize
AG111: 97 | AH111: Quatre-vingt Dix-sept
AG112: 98 | AH112: Quatre-vingt Dix-huit
AG113: 99 | AH113: Quatre-vingt Dix-neuf

Sheet هام جدا
D1: DECALER(تسديد_المصاريف;1;EQUIV(G2;المادة_01;0)-1);NBVAL(DECALER(تسديد_المصاريف;;EQUIV(G2;المادة_01;0)-1))-1 | F1: =INDEX(J28:K50,MATCH(F2,K28:K50,0),1) -> 302 | M1: Listes en cascade
F2: المنح المدرسية | G2: منحة التجهيز لفائدة التلاميذ | N2: DECALER(Choix2;1;EQUIV(D12;choix1;0)-1;NBVAL(DECALER(Choix2;;EQUIV(D12;choix1;0)-1))-1=
A4: تسديد المصاريف | B4: التكاليف الملحقة | C4: اللوازم | D4: الأدوات و الأثاث | E4: اللوازم البيداغوجية | F4: نفقات الإطعام | G4: الألبسة | H4: التأمين | I4: مصاريف التكوين | J4: حظيرة السيارات | K4: نفقات تسيير وحدات الكشف و المتابعة (UDS) | L4: المكتبة المدرسية | M4: النفقات المتعلقة بالنشاط الثقافي والرياضي | N4: صيانة و تصليح المباني البيداغوجية والإدارية | O4: المصاريف القضائية والتعويضات المستخقة على عاتق الدولة | P4: نفقات تسيير أقسام الرياضة والدراسة | Q4: منحة التمدرس الخاصة لفائدة التلاميذ المعوزين | R4: المنح المدرسية | S4: نفقات الكتاب المدرسي | T4: نفقات النشاط التربوي الإستثنائي | U4: نفقات اعادة الادراج | V4: نفقات في انتظار التعيين | W4: نفقات اجتماعية لخدمة التلاميذ | AJ4: نفقات اجتماعية لفائدة التلاميذ
A5: مصاريف المهام و التنقلات والاستقبالات داخل التراب الوطني و الخرجات البيداغوجية | B5: الماء، الكهرباء و الغاز، الوقود، والطاقة الشمسية | C5: اقتناء لوازم المكتب | D5: تجديد وصيانة أدوات وأثاث المكاتب والعتاد المدرسي | E5: لوازم التجارب | F5: إطعام التلاميذ | G5: ملابس العمال المهنيين | H5: تأمين التلاميذ أثناء الخرجات البيداغوجية | I5: نفقات التكوين ما قبل الترقية | J5: اقتناء وتجديد السيارات | K5: نفقات تسيير وحدات الكشف والمتابعة (UDS) | L5: شراء كتب ومجلات تربوية | M5: النفقات المتعلقة بالنشاط الثقافي | N5: صيانة وتصليح المباني البيدغوجية والإدارية | O5: المصاريف القضائية والتعويضات المستحقة على عاتق الدولة | P5: مصاريف الإطعام | Q5: منحة التمدرس الخاصة لفائدة التلاميذ المعوزين | R5: منحة التجهيز لفائدة التلاميذ | S5: تعويض النفقات المرتبطة بمجانية الكتاب المدرسي لفائدة التلاميذ المعوزين | T5: الإطعام | U5: نفقات اعادة الادراج | V5: نفقات في انتظار التعيين | W5: نفقات اجتماعية لخدمة التلاميذ | AJ5: نفقات اجتماعية لفائدة التلاميذ
A6: مصاريف الدراسة، الخبرة، المحامون والمحضرون القضائيون | B6: مصاريف البريد والمواصلات ( اتاوات الهاتف، التلكس، الانترنيت والرسوم المختلفة ) | C6: مستهلكات وبرامج الإعلام الآلي | D6: اقتناء و صيانة أجهزة الإعلام الآلي | E6: مواد التجارب والكواشف ومواد المخابر | F6: إطعام المستخدمين = العددx المدة x سعر الوجبة | I6: نفقات الامتحانات و المسابقات المهنية | J6: الوقود والزيوت | L6: الإشتراك في المجلات والدوريات البيداغوجية | M6: النفقات المتعلقة بالنشاط الرياضي | N6: اقتناء مواد البناء، الترصيص، الخردوات، كهرباء، التدفئة التكييف وأدوات الصيانة الصغيرة | P6: نقل وتأمين التلاميذ | S6: تسديد مستحقات الديوان الوطني للمطبوعات المدرسية من بيع الكتاب المدرسي | T6: مصاريف الإقامة و التمدرس
B7: مصاريف الإعلان في الصحف | C7: مصاريف النسخ والطبع | D7: اقتناء وصيانة أدوات الوقاية والأمن | E7: الإستنساخ ، الطباشير ، الأقلام ، الطلاسات وغيرها | F7: إطعام المدعوين و آخرون= العددx المدة x سعر الوجبة | I7: تشجيع التكوين أثناء الخدمة و عن بعد لمعلمي التعليم الإبتدائي | J7: صيانة وتصليح و شحن السيارات وشراء قطع الغيار | N7: صيانة المساحات الخضراء والمسالك | P7: إقتناء الأدوات واللوازم الرياضية والبياغوجية
B8: تعويض مصاريف الاستهلاك المنزلي للكهرباء و الغاز بنسبة 50% للجنوب | C8: البياضة | D8: تجديد و صيانة لوازم ومستلزمات المطعم | J8: اقتناء العجلات
B9: اقتناء و تركيب لواحق الهاتف والربط بالأنترنيت | C9: المواد الصيدلانية | D9: اقتناء الستائر و الأعلام و لوازم الداخلية | J9: مصاريف الترقيم والتعريف
B10: تأمين المباني | C10: مواد التنظيف | J10: تأمين السيارات
J11: مصاريف اقتناء قسيمة السيارات
J28: 101 | K28: تسديد المصاريف | L28: تسديد المصاريف
J29: 102 | K29: التكاليف الملحقة | L29: مصاريف المهام و التنقلات والاستقبالات داخل التراب الوطني و الخرجات البيداغوجية
J30: 103 | K30: اللوازم | L30: مصاريف الدراسة، الخبرة، المحامون والمحضرون القضائيون
J31: 104 | K31: الأدوات و الأثاث | L31: التكاليف الملحقة
J32: 105 | K32: اللوازم البيداغوجية | L32: الماء، الكهرباء و الغاز، الوقود، والطاقة الشمسية
J33: 106 | K33: نفقات الإطعام | L33: مصاريف البريد والمواصلات ( اتاوات الهاتف، التلكس، الانترنيت والرسوم المختلفة )
J34: 107 | K34: الألبسة | L34: مصاريف الإعلان في الصحف
J35: 108 | K35: التأمين | L35: تعويض مصاريف الاستهلاك المنزلي للكهرباء و الغاز بنسبة 50% للجنوب
J36: 109 | K36: مصاريف التكوين | L36: اقتناء و تركيب لواحق الهاتف والربط بالأنترنيت
J37: 110 | K37: حظيرة السيارات | L37: تأمين المباني
J38: 111 | K38: نفقات تسيير وحدات الكشف و المتابعة (UDS) | L38: اللوازم
J39: 112 | K39: المكتبة المدرسية | L39: اقتناء لوازم المكتب
J40: 113 | K40: النفقات المتعلقة بالنشاط الثقافي والرياضي | L40: مستهلكات وبرامج الإعلام الآلي
J41: 114 | K41: صيانة و تصليح المباني البيداغوجية والإدارية | L41: مصاريف النسخ والطبع
J42: 115 | K42: المصاريف القضائية والتعويضات المستخقة على عاتق الدولة | L42: البياضة
J43: 201 | K43: نفقات تسيير أقسام الرياضة والدراسة | L43: المواد الصيدلانية
J44: 301 | K44: منحة التمدرس الخاصة لفائدة التلاميذ المعوزين | L44: مواد التنظيف
J45: 302 | K45: المنح المدرسية | L45: الأدوات و الأثاث
J46: 303 | K46: نفقات الكتاب المدرسي | L46: تجديد وصيانة أدوات وأثاث المكاتب والعتاد المدرسي
J47: 304 | K47: نفقات النشاط التربوي الإستثنائي | L47: اقتناء و صيانة أجهزة الإعلام الآلي
J48: 511 | K48: نفقات اعادة الادراج | L48: اقتناء وصيانة أدوات الوقاية والأمن
J49: 512 | K49: نفقات في انتظار التحويل | L49: تجديد و صيانة لوازم ومستلزمات المطعم
J50: 513 | K50: نفقات اجتماعية لفائدة التلاميذ | L50: اقتناء الستائر و الأعلام و لوازم الداخلية
L51: اللوازم البيداغوجية
L52: لوازم التجارب
L53: مواد التجارب والكواشف ومواد المخابر
L54: الإستنساخ ، الطباشير ، الأقلام ، الطلاسات وغيرها
L55: إطعام التلاميذ
L56: داخليين= العددx المدة x سعر الوجبة
L57: نصف الداخليين= العددx المدة x سعر الوجبة
L58: إطعام المستخدمين = العددx المدة x سعر الوجبة
L59: إطعام المدعوين و آخرون= العددx المدة x سعر الوجبة
L60: الألبسة
L61: ملابس العمال المهنيين
L62: تأمين التلاميذ أثناء الخرجات البيداغوجية
L63: تأمين التلاميذ أثناء الخرجات البيداغوجية
L64: مصاريف التكوين والتحسين المستمرللمستوى المنظم على المستوى الولائي
L65: نفقات التكوين ما قبل الترقية
L66: نفقات الامتحانات و المسابقات المهنية
L67: تشجيع التكوين أثناء الخدمة و عن بعد لمعلمي التعليم الإبتدائي
L68: حظيرة السيارات
L69: اقتناء وتجديد السيارات
L70: الوقود والزيوت
L71: صيانة وتصليح و شحن السيارات وشراء قطع الغيار
L72: اقتناء العجلات
L73: مصاريف الترقيم والتعريف
L74: تأمين السيارات
L75: مصاريف اقتناء قسيمة السيارات
L76: مصاريف المراقبة التقنية للسيارات
L77: نفقات تسيير وحدات الكشف والمتابعة (UDS)
L78: نفقات تسيير وحدات الكشف والمتابعة (UDS)
L79: المكتبة المدرسية
L80: شراء كتب ومجلات تربوية
L81: الإشتراك في المجلات والدوريات البيداغوجية
L82: النفقات المتعلقة بالنشاط الثقافي والرياضي
L83: النفقات المتعلقة بالنشاط الثقافي
L84: النفقات المتعلقة بالنشاط الرياضي
L85: صيانة وتصليح المباني البيداغوجية والإدارية
L86: صيانة وتصليح المباني البيدغوجية والإدارية
L87: اقتناء مواد البناء، الترصيص، الخردوات، كهرباء، التدفئة التكييف وأدوات الصيانة الصغيرة
L88: صيانة المساحات الخضراء والمسالك
L89: المصاريف القضائية والتعويضات المستحقة على عاتق الدولة
L90: المصاريف القضائية والتعويضات المستحقة على عاتق الدولة
L91: نفقات تسيير أقسام الرياضة والدراسة
L92: مصاريف الإطعام
L93: نقل وتأمين التلاميذ
L94: إقتناء الأدوات واللوازم الرياضية والبياغوجية
L95: منحة التمدرس الخاصة لفائدة التلاميذ المعوزين
L96: منحة التمدرس الخاصة لفائدة التلاميذ المعوزين
L97: المنح المدرسية
L98: منحة التجهيز لفائدة التلاميذ
L99: نفقات الكتاب المدرسي
L100: تعويض النفقات المرتبطة بمجانية الكتاب المدرسي لفائدة التلاميذ المعوزين
L101: تسديد مستحقات الديوان الوطني للمطبوعات المدرسية من بيع الكتاب المدرسي
L102: نفقات النشاط التربوي الإستثنائي
L103: الإطعام
L104: مصاريف الإقامة و التمدرس

Sheet Four
A1: الرمز | B1: اسم ولقب الممون | C1: المركز البنكي | D1: رقم الحساب البنكي | E1: اسم البنك | F1: اسم البنك | G1: العنوان | J1: معلومات اخرى | K1: تحقق من رقم الحساب البريدي | L1: تحقق من رقم الحساب البنكي | N1: code | O1: nom | P1: ism
A2: 1 | B2: إتصالات الجــــزائر | C2: العلمة | D2: / | E2: =LEFT(D2,3) -> / | F2: =LOOKUP(LEFT(D2,3),$N$2:$N$25,$P$2:$P$25) ->  | G2: العلمة | J2: =MATCH(K2,D:D) -> 30 | K2: 007999990006470694 55 | L2: 005003284002299150 96 | M2: ب و ج | N2: 001 | O2: B-N-A | P2: ب و ج
A3: 2 | B3: شركة توزيع الكهرباء شرق | C3: ولاية سطيف | D3: 007999990000380676 62 | E3: =LOOKUP(LEFT(D3,3),$N$2:$N$25,$O$2:$O$25) -> CCP | F3: =LOOKUP(LEFT(D3,3),$N$2:$N$25,$P$2:$P$25) -> ح ج ب | G3: ولاية سطيف | J3: =MATCH(L2,D:D)+1 -> 31 | K3: =RIGHT(K2,13) -> 0006470694 55 | L3: =+MID(L2,4,15) -> 003284002299150 | M3: ب خ ج | N3: 002 | O3: B-E-A | P3: ب خ ج
A4: 3 | B4: الجـــــــزائريــــة للمــــــــياه | C4: ولاية سطيف | D4: / | E4: ... | F4: .. | G4: ولاية سطيف | K4: =LEFT(K3,10) -> 0006470694 | L4: =L3*100 -> 328400229915000 | M4: ب ف ت ر | N4: 003 | O4: B-A-D-R | P4: ب ف ت ر
A5: 4 | B5: CRDDP | C5: سطيف | D5: 00819001119000448233 | E5: ... | F5: .. | G5: العلمة | K5: =K4*100 -> 647069400 | L5: =+L4/97 -> 3.385569381e+12 | M5: ث ش ج | N5: 004 | O5: C-P-A | P5: ق ش ج
A6: 5 | B6: مقتصـــد المؤسســة | C6: سطيف | D6: 00819001119000420103 | E6: =LOOKUP(LEFT(D6,3),$N$2:$N$25,$O$2:$O$25) -> TP | F6: خزينة الولاية | G6: عين الحجر | K6: =+MOD(K5,97) -> 54 | L6: =+INT(L5) -> 3385569380567 | M6: ب ت م | N6: 005 | O6: B-D-L | P6: ب ت م
A7: 6 | B7: اللجنة الولائية للتضامن المدرسي | C7: سطيف | D7: 00819001119000448233 | E7: TP | F7: خزينة الولاية | G7: سطيف | K7: 85 | L7: =+L6*97 -> 328400229914999 | M7: بركة | N7: 006 | O7: BARAKA | P7: براكة
A8: 7 | B8: تعاضدية المساعدة المدرسية للشرق | C8: قسنطينة | D8: 00300831010229200053 | E8: B-A-D-R | F8: ب ف ت ر | G8: قسنطينة | K8: =IF(K7+K6>97,K7+K6-97,K7+K6) -> 42 | L8: =L4-L7 -> 1 | M8: ح ج ب | N8: 007 | O8: CCP | P8: ح ج ب
A9: 8 | B9: الإتحادية الولائية للأعمال المكملة للمدرسة | C9: سطيف | D9: 00819001119000210476 | E9: TP | F9: خزينة الولاية | G9: سطيف | K9: =97-K8 -> 55 | L9: =IF((97-L8)<10,0&(97-L8),97-L8) -> 96 | M9: خزينة | N9: 008 | O9: TP | P9: خزينة الولاية
A10: 9 | B10: الرابطة الولائية للرياضة المدرسية | C10: سطيف | D10: 00819001119000162849 | E10: TP | F10: خزينة الولاية | G10: سطيف | K10: =IF(K9<10,"0"&K9,K9) -> 55 | L10: =RIGHT(L2,2) -> 96 | M10: ب ج ت | N10: 009 | O10: BAD | P10: ب ج ت
A11: 10 | B11: المعنيون والمؤطرون | C11: عين الحجر | D11: / | G11: عين الحجر | K11: =RIGHT(K2,2) -> 55 | L11: =RIGHT(L2,2) -> 96 | N11: 010 | O11: CNMA | P11: ص و ت ف
A12: 11 | B12: شركة التضامن العايب وطويجن | C12: عين الحجر | D12: 00799999000989501765 | E12: CCP | F12: ح ج ب | G12: عين الحجر | K12: =LEN(K2) -> 21 | L12: =LEN(L2) -> 21 | M12: ص و ت ا | N12: 011 | O12: CNEP | P12: ص و ت ا
A13: 12 | B13: مؤسسة أشغال البناء والري والأشغال العمومية بارة عبد الحفيظ | C13: العلمــة | D13: 00400327400000273757 | E13: C-P-A | F13: ق ش ج | G13: عين الحجر | K13: =IF(K12=21,"ممتاز","خطأ في عدد الارقام") -> ممتاز | L13: =IF(L12=21,"ممتاز","خطأ في عدد الارقام") -> ممتاز | N13: 012 | O13: CITY_BANK | P13: سيتي بنك
A14: 13 | B14: التونسي سعيدي | C14: عين آزال | D14: 00300699001265300077 | E14: B-A-D-R | F14: ب ف ت ر | G14: عين الحجر | K14: =IF(K10-K11=0,"صحيح","خطا في مفتاح الحساب") -> صحيح | L14: =IF(L10-L11=0,"صحيح","خطا في مفتاح الحساب") -> صحيح | M14: ج ب | N14: 014 | O14: ABC_CORP | P14: ابيسي كورب
A15: 14 | N15: 020 | O15: NATEXIS | P15: ناتكسيس
A16: 15 | B16: منصور بروشي | C16: عين آزال | D16: 00300699010254300068 | E16: B-A-D-R | F16: ب ف ت ر | G16: عين الحجر | M16: سوسيتي جنرال | N16: 021 | O16: SOCIETE-G | P16: سوسيتي جنرال
A17: 16 | B17: نبيل بلقيدوم | C17: عين آزال | D17: 00300699010082300056 | E17: B-A-D-R | F17: ب ف ت ر | G17: عين الحجر | K17: يكتب رقم الحساب : 18 رقم الاولى ثم فراغ ثم الرقمين الاخيرين | N17: 026 | O17: ARAB_BANK_PLC | P17: بنك العرب
A18: 17 | B18: فريد خلفاوي | C18: عين آزال | D18: 00400357400000891020 | E18: C-P-A | F18: ق ش ج | G18: عين الحجر | M18: بي سي يا | N18: 027 | O18: BNP | P18: بي ان بي
A19: 18 | B19: عباس عبد العزيز | C19: سطيف | D19: 00200036360456201113 | E19: B-E-A | F19: ب خ ج | G19: سطيف | N19: 029 | O19: TRUST_BANK | P19: تروست بنك
A20: 19 | B20: فيصل شتيوي | C20: عين آزال | D20: 01100357100000770367 | E20: CNEP | F20: ص و ت ا | G20: عين الحجر | N20: 031 | O20: HOUSING_BANK_AG | P20: هوستيك بنك
A21: 20 | B21: مختار بلعوط | C21: سطيف | D21: 00400364400001051787 | E21: C-P-A | F21: ق ش ج | G21: سطيف | N21: 032 | O21: ALGERIA_GULF_BANK | P21: بنك الخليج الجزائري
A22: 21 | B22: كياس رضوان | C22: عين آزال | D22: 00400357400067811126 | E22: C-P-A | F22: ق ش ج | G22: عين الحجر | N22: 035 | O22: FRANSABANK | P22: فرنس بنك
A23: 22 | B23: ش ذ م م ميتاغروب | C23: سطيف | D23: 00500374400242805066 | E23: B-D-L | F23: ب ت م | G23: سطيف | N23: 036 | O23: CALYON | P23: كاليون
A24: 23 | B24: أولياء التلاميــذ | C24: عين الحجر | D24: / | G24: عين الحجر | N24: 037 | O24: HSBC ALGERIA | P24: اش اس بي سي
A25: 24 | B25: صلاح الدين بلقيدوم | C25: عين آزال | D25: 00400357400080531124 | E25: C-P-A | F25: ق ش ج | G25: عين آزال | N25: 038 | O25: AL_SALAM_BANK_ALGERIA | P25: السلام بنك
A26: 25 | B26: حاج صحراوي بلال | C26: العلمـة | D26: 00400327400001534369 | E26: C-P-A | F26: ق ش ج | G26: العلمـة
A27: 26 | B27: بلقيدوم فوزي | C27: عين الحجر | D27: 00799999002003650442 | E27: CCP | F27: ح ج ب | G27: عين الحجر
A28: 27 | B28: فطيمة جبار | C28: حمام السخنة | D28: 00300713002002300042 | E28: B-A-D-R | F28: ب ف ت ر | G28: حمام السخنة
A29: 28 | B29: فليفلة حدة | C29: عين ولمان | D29: 00400351400000640478 | E29: C-P-A | F29: ق ش ج | G29: عين ولمان
A30: 29 | B30: المطبعة الرسمية | C30: عميروش الجزائر | D30: 00300060000768300050 | E30: B-A-D-R | F30: ب ف ت ر | G30: عميروش الجزائر
A31: 30 | B31: موظفي المؤسســــة | C31: الجــزائر | D31: أرقام الحسابات الجارية للموظفين | E31: =LOOKUP(LEFT(D31,3),$N$2:$N$25,$O$2:$O$25) -> AL_SALAM_BANK_ALGERIA | F31: =LOOKUP(LEFT(D31,3),$N$2:$N$25,$P$2:$P$25) -> السلام بنك | G31: الجــزائر
A32: 31 | B32: العقون عبد الرحمان | C32: عين الحجر | D32: 00799999001461386201 | E32: .... | F32: ... | G32: عين الحجر
A33: 32 | B33: ميكرولوجيسيال | C33: سطيف | D33: 00100711030000060236 | E33: B-N-A | F33: ب و ج | G33: سطيف
A34: 33 | B34: مقيرش نعيم | C34: عين آزال | D34: 00400357400001089773 | E34: C-P-A | F34: ق ش ج | G34: عين الحجر
A35: 34 | B35: عوابد علاوة | C35: عين الحجر | D35: 007999990006470694 55 | E35: CCP | F35: ح ج ب | G35: عين الحجر
A36: 35 | B36: سترة العمرية | C36: عين ولمان | D36: 00300700102155300048 | E36: B-A-D-R | F36: ب ف ت ر | G36: عين ولمان
A37: 36 | B37: بلقيدوم عبد العالي | C37: عين الحجر | D37: 7.999990009e+17 | E37: AL_SALAM_BANK_ALGERIA | F37: السلام بنك | G37: عين الحجر
A38: 37 | B38: ليتيم فارس | C38: بيضاء البرج | D38: 00799999001880424164 | E38: CCP | F38: ح ج ب | G38: بيضاء البرج
A39: 38 | B39: أمين خزينة ولاية سطيف | C39: سطيف | D39: 201007السطر10-07 | E39: =LOOKUP(LEFT(D39,3),$N$2:$N$25,$O$2:$O$25) ->  | F39: =LOOKUP(LEFT(D39,3),$N$2:$N$25,$P$2:$P$25) ->  | G39: سطيف
A40: 39 | B40: عبد الغاني بلة | C40: وكالة 371 سطيف | D40: 01100371100000709721 | E40: CNEP | F40: ص و ت ا | G40: سطيف
A41: 40 | B41: بعداش أحمد | C41: سطيف | D41: 00200036036220004616 | E41: B-E-A | F41: ب خ ج | G41: عين الحجر
A42: 41 | G42: الجزائر
A43: 42 | G43: الجزائر
A44: 43 | G44: الجزائر
A45: 44 | G45: الجزائر
A46: 45 | G46: الجزائر
A47: 46 | G47: الجزائر
A48: 47 | G48: الجزائر
A49: 48 | G49: الجزائر
A50: 49 | G50: الجزائر
A51: 50
A52: 51 | G52: سطيف
G53: سطيف
C54: الجزائر | D54: 007999990002377839 69 | E54: CCP | F54: ح ج ب | G54: الجزائر
C55: الجزائر | D55: 007999990000790568 55 | E55: CCP | F55: ح ج ب | G55: الجزائر
C56: الجزائر | D56: 007999990010088670 39 | E56: CCP | F56: ح ج ب | G56: الجزائر
C57: الجزائر | D57: 007999990009255349 21 | E57: CCP | F57: ح ج ب | G57: الجزائر

Sheet BG
A1: الواجهة | B1: ميزانية | E1: 2017 | K1: جانب النفقات | O1: ميزانية | P1: =[4]MENU!J10 -> 2018 | Q1: جانب الايرادات
A2: الرمز | B2: اسم االمادة | C2: اسم الباب | D2: اسم الفرع | E2: الاعتماد المفتوح | F2: الاعتماد الإضافي | G2: المجموع | H2: الزيادة | I2: النقصان | J2: الاعتماد النهائي | K2: النفقــــــات | L2: نسبة تنفيذ الميزانية | M2: الباقي | N2: الرمز | O2: اسم المادةالايرادات | P2: الاعتماد المفتوح | Q2: الايرادات | R2: باقي التحصيل | S2: ناقص القيمة | T2: زائد القيمة
A3: 1-01-1 | B3: مصاريف المهام و التنقلات والاستقبالات داخل التراب الوطني و الخرجات البيداغوجية | C3: تسديد المصاريف | D3: نفقات التسيير | N3: 0101 | O3: إعانة التسيير للتغذية | U3: =LEFT(A3,4) -> 1-01 | V3: =LEFT(N3,2) -> 01 | X3: النفقات | AC3: الإيرادات
A4: 1-01-2 | B4: مصاريف الدراسة، الخبرة، المحامون والمحضرون القضائيون | C4: تسديد المصاريف | D4: نفقات التسيير | N4: 0102 | O4: إعانة التسيير للمصالح المشتركة | U4: =LEFT(A4,4) -> 1-01 | V4: =LEFT(N4,2) -> 01 | Y4: الباب | Z4: النفقات المتوقعة | AA4: النفقات الفعلية | AB4: الرصيد | AD4: الباب | AE4: الإيرادت المتوقعة | AF4: الإيرادت المفعلية
A5: 1-02-1 | B5: الماء، الكهرباء و الغاز، الوقود، والطاقة الشمسية | C5: التكاليف الملحقة | D5: نفقات التسيير | N5: 0103 | O5: إعانات التسيير الإضافية المختلفة | U5: =LEFT(A5,4) -> 1-02 | V5: 01 | X5: 1-01 | Y5: تسديد المصاريف | Z5: =SUMIF($U$3:$U$65,X5,$G$3:$G$65) -> 0 | AA5: =SUMIF($U$3:$U$65,X5,$K$3:$K$65) -> 0 | AB5: =Z5-AA5 -> 0 | AC5: 01 | AD5: إعانات التسيير الممنوحة من طرف الدولة | AE5: =SUMIF($V$3:$V$47,AC5,$P$3:$P$65) -> 0 | AF5: =SUMIF($V$3:$V$47,AC5,$Q$3:$Q$65) -> 0
A6: 1-02-2 | B6: مصاريف البريد والمواصلات ( اتاوات الهاتف، التلكس، الانترنيت والرسوم المختلفة ) | C6: التكاليف الملحقة | D6: نفقات التسيير | N6: 0104 | O6: إعانات تسيير أقسام رياضة ودراسة | U6: 1-02 | V6: 01 | X6: 1-02 | Y6: التكاليف الملحقة | Z6: =SUMIF($U$3:$U$65,X6,$G$3:$G$65) -> 0 | AA6: =SUMIF($U$3:$U$65,X6,$K$3:$K$65) -> 0 | AB6: =Z6-AA6 -> 0 | AC6: 02 | AD6: الإعانات الممنوحة من الجماعات المحلية والمؤسسات والهيئات العمومية | AE6: =SUMIF($V$3:$V$47,AC6,$P$3:$P$65) -> 0 | AF6: =SUMIF($V$3:$V$47,AC6,$Q$3:$Q$65) -> 0
A7: 1-02-3 | B7: مصاريف الإعلان في الصحف | C7: التكاليف الملحقة | D7: نفقات التسيير | N7: 0105 | O7: المنح (منح النظامين الداخلي ونصف الداخلي ) | U7: 1-02 | V7: 01 | X7: 1-03 | Y7: اللوازم | Z7: 0 | AA7: 0 | AB7: 0 | AC7: 03 | AD7: الهبات والوصايا | AE7: 0 | AF7: =SUMIF($V$3:$V$47,AC7,$Q$3:$Q$65) -> 0
A8: 1-02-4 | B8: تعويض مصاريف الاستهلاك المنزلي للكهرباء و الغاز بنسبة 50% للجنوب | C8: التكاليف الملحقة | D8: نفقات التسيير | N8: 0106 | O8: منح التجهيز | U8: 1-02 | V8: 01 | X8: 1-04 | Y8: الأدوات و الأثاث | Z8: 0 | AA8: 0 | AB8: 0 | AC8: 04 | AD8: ايرادات مرتبطة بنشاط المؤسسة | AE8: 0 | AF8: 0
A9: 1-02-5 | B9: اقتناء و تركيب لواحق الهاتف والربط بالأنترنيت | C9: التكاليف الملحقة | D9: نفقات التسيير | N9: 0107 | O9: دعم الدولة للتلاميذ الممنوحين | U9: 1-02 | V9: 01 | X9: 1-05 | Y9: اللوازم البيداغوجية | Z9: 0 | AA9: 0 | AB9: 0 | AC9: 05 | AD9: ايرادات مختلفة | AE9: 0 | AF9: 0
A10: 1-02-6 | B10: تأمين المباني | C10: التكاليف الملحقة | D10: نفقات التسيير | N10: 0108 | O10: إعانات تسيير وحدة الكشف والمتابعة | U10: 1-02 | V10: 01 | X10: 1-06 | Y10: نفقات الإطعام | Z10: 0 | AA10: 0 | AB10: 0 | AC10: 06 | AD10: ايرادات ناتجة عن تسديد حقوق التسجيل | AE10: 0 | AF10: 0
A11: 1-03-1 | B11: اقتناء لوازم المكتب | C11: اللوازم | D11: نفقات التسيير | N11: 0109 | O11: إعانات النشاط الثقافي والرياضي | U11: 1-03 | V11: 01 | X11: 1-07 | Y11: الألبسة | Z11: 0 | AA11: 0 | AB11: 0 | AC11: 07 | AD11: ايراداد الإطعام | AE11: 0 | AF11: 0
A12: 1-03-2 | B12: مستهلكات وبرامج الإعلام الآلي | C12: اللوازم | D12: نفقات التسيير | N12: 0110 | O12: إعانات دعم المكتبات المدرسية | U12: 1-03 | V12: 01 | X12: 1-08 | Y12: التأمين | Z12: 0 | AA12: 0 | AB12: 0 | AC12: 08 | AD12: المنحة المدرسية الخاصة لفائدة التلاميذ المعوزين | AE12: 0 | AF12: 0
A13: 1-03-3 | B13: مصاريف النسخ والطبع | C13: اللوازم | D13: نفقات التسيير | N13: 0201 | O13: اعانات الاصلاحات الكبرى | U13: 1-03 | V13: 02 | X13: 1-09 | Y13: مصاريف التكوين | Z13: 0 | AA13: 0 | AB13: 0 | AC13: 09 | AD13: مساهمة الدولة في مجانية الكتاب المدرسي لفائدة التلاميذ المعوزين | AE13: 0 | AF13: 0
A14: 1-03-4 | B14: البياضة | C14: اللوازم | D14: نفقات التسيير | N14: 0202 | O14: اعانات المؤسسات و الهيئات العمومية | U14: 1-03 | V14: 02 | X14: 1-10 | Y14: حظيرة السيارات | Z14: 0 | AA14: 0 | AB14: 0 | AC14: 10 | AD14: الإعانة الخاصة بالنشاط التربوي الإستثنائي الواردة من الباب 42-12/ المادة 1 | AE14: 0 | AF14: 0
A15: 1-03-5 | B15: المواد الصيدلانية | C15: اللوازم | D15: نفقات التسيير | N15: 0203 | O15: اعانة مراكز التجميع و التصحيح للامتحانات المدرسية السنوية | U15: 1-03 | V15: 02 | X15: 1-11 | Y15: نفقات تسيير وحدات الكشف و المتابعة (UDS) | Z15: 0 | AA15: 0 | AB15: 0 | AC15: 11 | AD15: ايرادات واردة من الباب 43-03 المعنون "التحسين المستمر للمستوى المنظم على المستوى الولائي ، نفقات | AE15: 0 | AF15: 0
A16: 1-03-6 | B16: مواد التنظيف | C16: اللوازم | D16: نفقات التسيير | N16: 0204 | O16: اعانات اخرى على عاتق الدولة | U16: 1-03 | V16: 02 | X16: 1-12 | Y16: المكتبة المدرسية | Z16: 0 | AA16: 0 | AB16: 0 | AC16: 12 | AD16: ايرادات واردة من الباب 43-60 المعنون "تشجيع التكوين أثناء الخدمة وعن بعد لمعلمي التعليم الإبتدائي " | AE16: 0 | AF16: 0
A17: 1-04-1 | B17: تجديد وصيانة أدوات وأثاث المكاتب والعتاد المدرسي | C17: الأدوات و الأثاث | D17: نفقات التسيير | N17: 0301 | O17: الهبات و الوصايا التي تتحصل عليها المؤسسة | U17: 1-04 | V17: 03 | X17: 1-13 | Y17: النفقات المتعلقة بالنشاط الثقافي والرياضي | Z17: 0 | AA17: 0 | AB17: 0 | AC17: 13 | AD17: نفقات اعادة الادراج | AE17: 0 | AF17: 0
A18: 1-04-2 | B18: اقتناء و صيانة أجهزة الإعلام الآلي | C18: الأدوات و الأثاث | D18: نفقات التسيير | N18: 0401 | O18: عائدات الايجار | U18: 1-04 | V18: 04 | X18: 1-14 | Y18: صيانة و تصليح المباني البيداغوجية والإدارية | Z18: 0 | AA18: 0 | AB18: 0 | AC18: 14 | AD18: نفقات في انتظار التحويل | AE18: 0 | AF18: 0
A19: 1-04-3 | B19: اقتناء وصيانة أدوات الوقاية والأمن | C19: الأدوات و الأثاث | D19: نفقات التسيير | N19: 0402 | O19: ايرادات الايجار ( كهرباء غاز و ماء) | U19: 1-04 | V19: 04 | X19: 1-15 | Y19: المصاريف القضائية والتعويضات المستخقة على عاتق الدولة | Z19: 0 | AA19: 0 | AB19: 0 | AC19: 15 | AD19: نفقات اجتماعية لفائدة التلاميذ | AE19: 0 | AF19: 0
A20: 1-04-4 | B20: تجديد و صيانة لوازم ومستلزمات المطعم | C20: الأدوات و الأثاث | D20: نفقات التسيير | N20: 0403 | O20: مستحقات المبيت | U20: 1-04 | V20: 04 | X20: 2-01 | Y20: نفقات تسيير أقسام الرياضة والدراسة | Z20: 0 | AA20: 0 | AB20: 0
A21: 1-04-5 | B21: اقتناء الستائر و الأعلام و لوازم الداخلية | C21: الأدوات و الأثاث | D21: نفقات التسيير | N21: 0404 | O21: ايرادات بقايا بيع الخبز و الشحوم و الخردوات | U21: 1-04 | V21: 04 | X21: 3-01 | Y21: منحة التمدرس الخاصة لفائدة التلاميذ المعوزين | Z21: 0 | AA21: 0 | AB21: 0
A22: 1-05-1 | B22: لوازم التجارب | C22: اللوازم البيداغوجية | D22: نفقات التسيير | N22: 0405 | O22: الاتلافات | U22: 1-05 | V22: 04 | X22: 3-02 | Y22: المنح المدرسية | Z22: 0 | AA22: 0 | AB22: 0
A23: 1-05-2 | B23: مواد التجارب والكواشف ومواد المخابر | C23: اللوازم البيداغوجية | D23: نفقات التسيير | N23: 0406 | O23: الايرادات الناتجة عن عملية الاسقاط | U23: 1-05 | V23: 04 | X23: 3-03 | Y23: نفقات الكتاب المدرسي | Z23: 0 | AA23: 0 | AB23: 0
A24: 1-05-3 | B24: الإستنساخ ، الطباشير ، الأقلام ، الطلاسات وغيرها | C24: اللوازم البيداغوجية | D24: نفقات التسيير | N24: 0407 | O24: ايرادات بيع الاشياء مصنوعة و منتوج الحدائق | U24: 1-05 | V24: 04 | X24: 3-04 | Y24: نفقات النشاط التربوي الإستثنائي | Z24: 0 | AA24: 0 | AB24: 0
A25: 1-06-1 | B25: إطعام التلاميذ | C25: نفقات الإطعام | D25: نفقات التسيير | N25: 0408 | O25: ايرادات بيع الكتاب المدرسي | U25: 1-06 | V25: 04 | X25: 51-1 | Y25: نفقات اعادة الادراج | Z25: 0 | AA25: 0 | AB25: 0
A26: 1-06-2 | B26: إطعام المستخدمين = العددx المدة x سعر الوجبة | C26: نفقات الإطعام | D26: نفقات التسيير | N26: 0409 | O26: ايرادات شبه مدرسية ( دفتر الصحي دفتر المراسلة و اوراق الامتحانات | U26: 1-06 | V26: 04 | X26: 51-2 | Y26: نفقات في انتظار التحويل | Z26: 0 | AA26: 0 | AB26: 0
A27: 1-06-3 | B27: إطعام المدعوين و آخرون= العددx المدة x سعر الوجبة | C27: نفقات الإطعام | D27: نفقات التسيير | N27: 0410 | O27: ايرادات مرتبطة بنشاط المؤسسة | U27: 1-06 | V27: 04 | X27: 51-3 | Y27: نفقات اجتماعية لفائدة التلاميذ | Z27: 0 | AA27: 0 | AB27: 0
A28: 1-07-1 | B28: ملابس العمال المهنيين | C28: الألبسة | D28: نفقات التسيير | N28: 0501 | O28: تحصيل الدفع غير المستحق | U28: 1-07 | V28: 05
A29: 1-08-1 | B29: تأمين التلاميذ أثناء الخرجات البيداغوجية | C29: التأمين | D29: نفقات التسيير | N29: 0502 | O29: تعويصات التامينات و تعويضات اخرى | U29: 1-08 | V29: 05
A30: 1-09-1 | B30: مصاريف التكوين والتحسين المستمرللمستوى المنظم على المستوى الولائي | C30: نفقات التكوين | D30: نفقات التسيير | N30: 0503 | O30: الباقي للتحصيل للسنوات السابقة | U30: 1-09 | V30: 05
A31: 1-09-2 | B31: نفقات التكوين ما قبل الترقية | C31: نفقات التكوين | D31: نفقات التسيير | N31: 0504 | O31: تصفية حسابات خارج الميزانية | U31: 1-09 | V31: 05
A32: 1-09-3 | B32: نفقات الامتحانات و المسابقات المهنية | C32: نفقات التكوين | D32: نفقات التسيير | N32: 0505 | O32: تعويض العجز في الميزانية | U32: 1-09 | V32: 05
A33: 1-09-4 | B33: تشجيع التكوين أثناء الخدمة و عن بعد لمعلمي التعليم الإبتدائي | C33: نفقات التكوين | D33: نفقات التسيير | N33: 0601 | O33: حقوق التسجيل(حقوق المراسلة) | U33: 1-09 | V33: 06
A34: 1-10-1 | B34: اقتناء وتجديد السيارات | C34: حظيرة السيارات | D34: نفقات التسيير | N34: 0701 | O34: مساهمة عائلات التلاميذ غير ممنوحين في التغذية | U34: 1-10 | V34: 07
A35: 1-10-2 | B35: الوقود والزيوت | C35: حظيرة السيارات | D35: نفقات التسيير | N35: 0702 | O35: ايرادات اطعام مستخدمي القطاع و الاطعام في الملتقيات | U35: 1-10 | V35: 07
A36: 1-10-3 | B36: صيانة وتصليح و شحن السيارات وشراء قطع الغيار | C36: حظيرة السيارات | D36: نفقات التسيير | N36: 0703 | O36: ايرادات ناتجة عن اطعام المدعوين و اخرون | U36: 1-10 | V36: 07
A37: 1-10-4 | B37: اقتناء العجلات | C37: حظيرة السيارات | D37: نفقات التسيير | N37: 0801 | O37: المنحة المدرسية الخاصة لفائدة التلاميذ المعوزين | U37: 1-10 | V37: 08
A38: 1-10-5 | B38: مصاريف الترقيم والتعريف | C38: حظيرة السيارات | D38: نفقات التسيير | N38: 0901 | O38: اعتمادات المخصصة لتغطية تكاليف مجانية الكتاب المدرسي | U38: 1-10 | V38: 09
A39: 1-10-6 | B39: تأمين السيارات | C39: حظيرة السيارات | D39: نفقات التسيير | N39: 1001 | O39: اعتمادات خاصة بالتلاميذ الصحراويين | U39: 1-10 | V39: 10
A40: 1-10-7 | B40: مصاريف اقتناء قسيمة السيارات | C40: حظيرة السيارات | D40: نفقات التسيير | N40: 1101 | O40: ايرادات تغطية العملية التكوينية ولائيا | U40: 1-10 | V40: 11
A41: 1-10-8 | B41: مصاريف المراقبة التقنية للسيارات | C41: حظيرة السيارات | D41: نفقات التسيير | N41: 1102 | O41: ايرادات تغطية نفقات التكوين ماقبل الترقية | U41: 1-10 | V41: 11
A42: 1-11-1 | B42: نفقات تسيير وحدات الكشف والمتابعة (UDS) | C42: نفقات تسيير وحدات الكشف و المتابعة (UDS) | D42: نفقات التسيير | N42: 1201 | O42: ايرادات تغطية نفقات الامتحانات و المسابقات المهنية | U42: 1-11 | V42: 12
A43: 1-12-1 | B43: شراء كتب ومجلات تربوية | C43: المكتبة المدرسية | D43: نفقات التسيير | N43: 1202 | O43: اعتماد تشجيع التكوين اثناء الخدمة و عن بعد لمعلمي الابتدائي | U43: 1-12 | V43: 12
A44: 1-12-2 | B44: الإشتراك في المجلات والدوريات البيداغوجية | C44: المكتبة المدرسية | D44: نفقات التسيير | U44: 1-12
A45: 1-13-1 | B45: النفقات المتعلقة بالنشاط الثقافي | C45: النفقات المتعلقة بالنشاط الثقافي والرياضي | D45: نفقات التسيير | N45: 1311 | O45: نفقات اعادة الادراج | U45: 1-13 | V45: 13
A46: 1-13-2 | B46: النفقات المتعلقة بالنشاط الرياضي | C46: النفقات المتعلقة بالنشاط الثقافي والرياضي | D46: نفقات التسيير | N46: 1412 | O46: نفقات في انتظار التعيين | U46: 1-13 | V46: 14
A47: 1-14-1 | B47: صيانة وتصليح المباني البيدغوجية والإدارية | C47: صيانة و تصليح المباني البيداغوجية والإدارية | D47: نفقات التسيير | N47: 1513 | O47: نفقات اجتماعية لخدمة التلاميذ | U47: 1-14 | V47: 15
A48: 1-14-2 | B48: اقتناء مواد البناء، الترصيص، الخردوات، كهرباء، التدفئة التكييف وأدوات الصيانة الصغيرة | C48: صيانة و تصليح المباني البيداغوجية والإدارية | D48: نفقات التسيير | U48: 1-14
A49: 1-14-3 | B49: صيانة المساحات الخضراء والمسالك | C49: صيانة و تصليح المباني البيداغوجية والإدارية | D49: نفقات التسيير | U49: 1-14
A50: 1-15-1 | B50: المصاريف القضائية والتعويضات المستحقة على عاتق الدولة | C50: المصاريف القضائية والتعويضات المستحقة على عاتق الدولة | D50: نفقات التسيير | U50: 1-15 | AC50: =LEFT(N48,2) -> 
A51: 2-01-1 | B51: مصاريف الإطعام | C51: نفقات تسيير أقسام الرياضة والدراسة | D51: نفقات تسيير أقسام الرياضة والدراسة | U51: 2-01
A52: 2-01-2 | B52: نقل وتأمين التلاميذ | C52: نفقات تسيير أقسام الرياضة والدراسة | D52: نفقات تسيير أقسام الرياضة والدراسة | U52: 2-01
A53: 2-01-3 | B53: إقتناء الأدوات واللوازم الرياضية والبياغوجية | C53: نفقات تسيير أقسام الرياضة والدراسة | D53: نفقات تسيير أقسام الرياضة والدراسة | U53: 2-01
A54: 3-01-1 | B54: منحة التمدرس الخاصة لفائدة التلاميذ المعوزين | C54: منحة التمدرس الخاصة لفائدة التلاميذ المعوزين | D54: نفقات ذات طابع خاص | U54: 3-01
A55: 3-02-1 | B55: منحة التجهيز لفائدة التلاميذ | C55: المنح المدرسية | D55: نفقات ذات طابع خاص | U55: 3-02
A56: 3-03-1 | B56: تعويض النفقات المرتبطة بمجانية الكتاب المدرسي لفائدة التلاميذ المعوزين | C56: نفقات الكتاب المدرسي | D56: نفقات ذات طابع خاص | U56: 3-03
A57: 3-03-2 | B57: تسديد مستحقات الديوان الوطني للمطبوعات المدرسية من بيع الكتاب المدرسي | C57: نفقات الكتاب المدرسي | D57: نفقات ذات طابع خاص | U57: 3-03
A58: 3-04-2 | B58: الإطعام | C58: نفقات النشاط التربوي الإستثنائي | D58: نفقات ذات طابع خاص | O58: مجموع الميزانية | U58: 3-04
A59: 3-04-2 | B59: مصاريف الإقامة و التمدرس | C59: نفقات النشاط التربوي الإستثنائي | D59: نفقات ذات طابع خاص | O59: المجموع العام | U59: 3-04
O61: القسم الاول
O62: القسم الثاني
A63: 51-1 | B63: نفقات اعادة الادراج | C63: نفقات اعادة الادراج | D63: نفقات اعادة الادراج | O63: القسم الثالث | U63: 51-1
A64: 51-2 | B64: نفقات في انتظار التعيين | C64: نفقات في انتظار التعيين | D64: نفقات في انتظار التعيين | O64: القسم الرابع | U64: =LEFT(A64,4) -> 51-2
A65: 51-3 | B65: نفقات اجتماعية لخدمة التلاميذ | C65: نفقات لخدمة التلاميذ | D65: نفقات لخدمة التلاميذ | O65: المجموع العام | U65: 51-3
B66: مجموع الميزانية | E66: =SUM(E3:E58) -> 0 | U66: =LEFT(A66,4) -> 
B67: المجموع العام | E67: =SUM(E59:E65) -> 0 | K67: =SUMIF([4]RD!D:D,BG!A67,[4]RD!K:K) ->  | L67: =IF(K67=0,"",K67/E67) ->  | M67: =SUM(M3:M65) -> 0 | U67: =LEFT(A67,4) -> 
A79: الفقرة | B79: اسم الفقرة | E79: الاعتماد المفتوح | K79: التحويلات | L79: الاعتماد النهائي | M79: النفقات | N79: الرصيد المتبقي
A80: 1211 | B80: منح نصف داخلي | E80: 329832 | L80: =E80+K80 -> 329832 | N80: =L80-M80 -> 329832
A81: 1212 | B81: منح مرجعة | E81: 0 | L81: 0 | N81: =L81-M81 -> 0
A82: 1221 | B82: منح الحافظة | E82: 0 | L82: 0 | N82: 0
A83: 1222 | B83: منح التجهيز التقني | E83: 0 | L83: 0 | N83: 0
A84: 1311 | B84: تكوين اثناء الخدمة | E84: 0 | L84: 0 | N84: 0
A85: 1321 | B85: الترميمات الكبرى اتيو | E85: 0 | L85: 0 | N85: 0
A86: 1331 | B86: مساهمة الدولة | E86: 586368 | L86: 586368 | N86: 586368
A87: 2111 | B87: التغذية | E87: 8134975 | L87: 8134975 | N87: 8134975
A88: 2211 | B88: نسيج منزلي | E88: 0 | L88: 0 | N88: 0
A89: 2212 | B89: ملابس العمال | E89: 25000 | L89: 25000 | N89: 25000
A90: 2221 | B90: مواد صيدلانية | E90: 0 | L90: 0 | N90: 0
A91: 2222 | B91: عتاد صغير للتمريض | E91: 0 | L91: 0 | N91: 0
A92: 2311 | B92: الغاز | E92: 193825 | L92: 193825 | N92: 193825
A93: 2312 | B93: الكهرباء | E93: 270000 | L93: 270000 | N93: 270000
A94: 2313 | B94: القوة المحركة | E94: 0 | L94: 0 | N94: 0
A95: 2314 | B95: محروقات مختلفة | E95: 0 | L95: 0 | N95: 0
A96: 2315 | B96: الماء | E96: 120000 | L96: 120000 | N96: 120000
A97: 2321 | B97: الهاتف | E97: 15000 | L97: 15000 | N97: 15000
A98: 2322 | B98: رسوم و تخليصات | E98: 10000 | L98: 10000 | N98: 10000
A99: 2323 | B99: انترنت | E99: 48000 | L99: 48000 | N99: 48000
A100: 2411 | B100: عتاد صغير للتجارب | E100: 20000 | L100: 20000 | N100: 20000
A101: 2412 | B101: مواد مخبرية | E101: 9000 | L101: 9000 | N101: 9000
A102: 2413 | B102: تشغيل الوسائل السمعية و المرئية | E102: 0 | L102: 0 | N102: 0
A103: 2421 | B103: النسخ | E103: 109200 | L103: 109200 | N103: 109200
A104: 2422 | B104: طباشيرو الطلاسات | E104: 50000 | L104: 50000 | N104: 50000
A105: 2431 | B105: مواد الاشغال | L105: 0 | N105: 0
A106: 2432 | B106: مواد الصيانة | L106: 0 | N106: 0
A107: 2433 | B107: مكتب لدراسات | L107: 0 | N107: 0
A108: 2434 | B108: رواتب و اعباء الاستغلال | L108: 0 | N108: 0
A109: 2441 | B109: الكتب و المؤلفات | E109: 0 | L109: 0 | N109: 0
A110: 2442 | B110: الجرائد و المجلات | E110: 0 | L110: 0 | N110: 0
A111: 2443 | B111: اشتراكات في المطبوعات المدرسية | E111: 21800 | L111: 21800 | N111: 21800
A112: 2451 | B112: النشاط الثقافي | E112: 0 | L112: 0 | N112: 0
A113: 2452 | B113: النشاط الرياضي | E113: 10000 | L113: 10000 | N113: 10000
A114: 2453 | B114: الخرجات البيداغوجية | E114: 0 | L114: 0 | N114: 0
A115: 2511 | B115: الاوراق | E115: 20000 | L115: 20000 | N115: 20000
A116: 2512 | B116: المطبوعات و السجلات | E116: 35000 | L116: 35000 | N116: 35000
A117: 2513 | B117: لوازم اخرى للمكتب | E117: 30000
A118: 2514 | B118: لوازم الاعلام الآلي | E118: 15000 | L118: =E118+K118 -> 15000 | N118: 15000
A119: 2611 | B119: اعباء المهام و التنقل | E119: 15000 | L119: 15000 | N119: 15000
A120: 2612 | B120: اعباء النقل | E120: 5000 | L120: 5000 | N120: 5000
A121: 2613 | B121: اعباء الاستقبال | E121: 2000 | L121: 2000 | N121: 2000
A122: 2711 | B122: مواد الصيانة و التنظيف | E122: 30000 | L122: 30000 | N122: 30000
A123: 2712 | B123: عتاد صغير للصيانة | E123: 40000 | L123: 40000 | N123: 40000
A124: 2713 | B124: صيانة و اصلاح | E124: 140000 | L124: 140000 | N124: 140000
A125: 2714 | B125: عقود الصيانة | E125: 5000 | L125: 5000 | N125: 5000
A126: 2715 | B126: صيانة اجهزة الاعلام الالي | E126: 40000 | L126: 40000 | N126: 40000
A127: 2721 | B127: عتاد واثاث مكتبي | E127: 0 | L127: 0 | N127: 0
A128: 2722 | B128: عتاد واثاث مدرسي | E128: 0 | L128: 0 | N128: 0
A129: 2723 | B129: عتاد واثاث الداخلية | E129: 0 | L129: 0 | N129: 0
A130: 2724 | B130: عتاد صغير للمطبخ | E130: 15000 | L130: 15000 | N130: 15000
A131: 2725 | B131: عتاد واثاث المخابر | E131: 0 | L131: 0 | N131: 0
A132: 2726 | B132: عتاد واثاث التعليم التقني | E132: 0 | L132: 0 | N132: 0
A133: 2727 | B133: عتاد ورشة القيم | E133: 0 | L133: 0 | N133: 0
A134: 2728 | B134: عتاد واثاث التعليم التكنولوجي | E134: 0 | L134: 0 | N134: 0
A135: 2811 | B135: تجديد و تجهيز | E135: 0 | L135: 0 | N135: 0
A136: 2821 | B136: وقود و الدهن | E136: 0 | L136: 0 | N136: 0
A137: 2822 | B137: صيانة السيارة | E137: 0 | L137: 0 | N137: 0
A138: 2823 | B138: العجلات | E138: 0 | L138: 0 | N138: 0
A139: 2824 | B139: تامين السيارة | E139: 0 | L139: 0 | N139: 0
A140: 2825 | B140: اعباء الترقيم | E140: 0 | L140: 0 | N140: 0
A141: 2911 | B141: توزيع الجوائز | E141: 55000 | L141: 55000 | N141: 55000
A142: 3111 | B142: الاصلاحات الكبرى | L142: 0 | N142: 0
A143: 3121 | B143: منح ولائية | L143: 0 | N143: 0
A144: 3122 | B144: منح ولائية اخرى | L144: 0 | N144: 0
A145: 4111 | B145: مصاريف الكتب المدرسية | L145: 0 | N145: =L145-M145 -> 0
A146: 4121 | B146: قروض و تسديد السلفيات | L146: 0 | N146: 0
A147: 4131 | B147: تسديد المبالغ غير مستحقة | L147: 0 | N147: 0
A148: 4141 | B148: مصاريف التبرعات | L148: 0 | N148: 0
A149: 4151 | B149: نفقات خارج التكوين | L149: 0 | N149: 0
A150: 4161 | B150: نفقات باقي التحصيلاات السنوات السابقة | L150: 0 | N150: 0
A151: 4171 | B151: دفع فوائض السنوات السابقة | L151: 0 | N151: 0
A152: 4181 | B152: مصاريف على اعانة عجز السنوان السابقة | L152: 0 | N152: 0
A153: 4191 | B153: مصاريف استثنائية | L153: 0 | N153: 0
A154: 4211 | B154: نفقات تسيير الامتحنات الولائية و الوطنية | L154: 0 | N154: 0
A155: 4221 | B155: نفقات تسيير التكوين | L155: 0 | N155: 0
A156: 4231 | B156: نفقات تسيير المطاعم المدرسية | L156: 0 | N156: 0
A157: 4241 | B157: نفقات منحة التمدرس الخاصة | L157: 0 | N157: 0
A158: 4261 | B158: نفقات ساعات الدعم | L158: 0 | N158: 0
A159: 5111 | B159: نفقات اعادة الادراج | E159: =[14]MENU!F66 -> 0 | L159: 0 | N159: 0
A160: 5121 | B160: نفقات في انتظار التعيين | E160: =[14]MENU!F67 -> 0 | L160: 0 | N160: 0
A161: 5131 | B161: نفقات لخدمة التلاميذ | E161: =[14]MENU!F68 -> 0 | L161: 0 | N161: 0
B162: مجموع الميزنية | E162: =SUM(E80:E141) -> 10400000 | K162: =SUM(K80:K161) -> 0 | L162: 10400000 | M162: =SUM(M80:M161) -> 0 | N162: 10400000
B163: المجموع الكلي | E163: =SUM(E142:E161)+E162 -> 10400000
